FILE,Service Area Categorisation,Service Division Categorisation,Responsible Unit,Unit Code,Expenses Type,Expenses Sub Type,Expense  Code,Detailed Expenses Type,Transaction No.,Amount,Invoice Date,Capital/Revenue,Supplier Name
2012-NOV,Central Services,Fully rechargeable Overheads,Local Involvement Network               ,A01039,Third Party Payments          ,Private Contractors           ,EH10,Contract Payments,1,"8,342.91",11/6/2012,R,MERTON VOLUNTARY SERV COUNCIL 
2012-NOV,Cultural Env Reg&Plan Services,Comm. Safety (Crime Reduction),CCTV                                    ,A01200,Supplies & Services           ,Equip Furniture/Materials     ,DA01,Equipment - R & M,2,540,11/2/2012,R,EUROVIA INFRASTRUCTURE LTD    
2012-NOV,Cultural Env Reg&Plan Services,Comm. Safety (Crime Reduction),CCTV                                    ,A01200,Supplies & Services           ,Equip Furniture/Materials     ,DA01,Equipment - R & M,3,"10,146.65",10/12/2012,R,EUROVIA INFRASTRUCTURE LTD    
2012-NOV,Cultural Env Reg&Plan Services,Comm. Safety (Crime Reduction),CCTV                                    ,A01200,Supplies & Services           ,Comms and Computing           ,DG15,Network Maintenance,4,"2,653.18",10/2/2012,R,BT REDCARE                    
2012-NOV,Adult Social Care,Other Adult Services,DAAT Commissioning                      ,A01300,Third Party Payments          ,Private Contractors           ,EH02,Miscellaneous Hired Services,5,"2,000.00",8/15/2012,R,OTTAWAY STRATEGIC MANAGEMENT  
2012-NOV,Adult Social Care,Other Adult Services,Retention in Drug Treatmt Srvs          ,A01303,Third Party Payments          ,Private Contractors           ,EH02,Miscellaneous Hired Services,6,"6,000.00",11/15/2012,R,CIDARIS CONSULTING LIMITED    
2012-NOV,Adult Social Care,Other Adult Services,Retention in Drug Treatmt Srvs          ,A01303,Third Party Payments          ,Private Contractors           ,EH02,Miscellaneous Hired Services,7,"4,000.00",10/28/2012,R,OTTAWAY STRATEGIC MANAGEMENT  
2012-NOV,Adult Social Care,Other Adult Services,Retention in Drug Treatmt Srvs          ,A01303,Third Party Payments          ,Private Contractors           ,EH02,Miscellaneous Hired Services,8,"377,552.00",11/15/2012,R,SW LONDON ST GEORGES NHS TRUST
2012-NOV,Adult Social Care,Other Adult Services,Retention in Drug Treatmt Srvs          ,A01303,Third Party Payments          ,Private Contractors           ,EH02,Miscellaneous Hired Services,9,"1,250.00",7/9/2012,R,EQUINOX                       
2012-NOV,Adult Social Care,Other Adult Services,Retention in Drug Treatmt Srvs          ,A01303,Third Party Payments          ,Private Contractors           ,EH02,Miscellaneous Hired Services,10,"2,500.00",7/9/2012,R,EQUINOX                       
2012-NOV,Central Services,Fully rechargeable Overheads,NON-STATUTORY MARKETING & COMM ,A02019,Supplies & Services           ,Services                      ,DF02,Misc Advertising/Publicity,11,537.5,8/29/2012,R,JCDECAUX UNITED KINGDOM       
2012-NOV,Central Services,Fully rechargeable Overheads,NON-STATUTORY MARKETING & COMM ,A02019,Supplies & Services           ,Services                      ,DF02,Misc Advertising/Publicity,12,537.5,10/26/2012,R,JCDECAUX UNITED KINGDOM       
2012-NOV,Central Services,Fully rechargeable Overheads,NON-STATUTORY MARKETING & COMM ,A02019,Supplies & Services           ,Services                      ,DF02,Misc Advertising/Publicity,13,537.5,10/26/2012,R,JCDECAUX UNITED KINGDOM       
2012-NOV,Central Services,Fully rechargeable Overheads,NON-STATUTORY MARKETING & COMM ,A02019,Supplies & Services           ,Services                      ,DF35,Graphic Design,14,"3,195.00",11/26/2012,R,THE BIG IDEA
2012-NOV,Central Services,Fully rechargeable Overheads,NON-STATUTORY MARKETING & COMM ,A02019,Supplies & Services           ,Expenses                      ,DH21,Christma Lights               ,15,"1,145.00",11/21/2012,R,MILLWARD FORESTRY             
2012-NOV,Central Services,Fully rechargeable Overheads,Democratic Services                     ,A02023,Employees                     ,Direct Employee Expenses      ,AA17,Agency Staff & Casual Paymts,16,"1,046.10",11/16/2012,R,REDACTED
2012-NOV,Central Services,Fully rechargeable Overheads,Democratic Services                     ,A02023,Supplies & Services           ,Equip Furniture/Materials     ,DA03,Hire of Equipment,17,"1,355.00",11/15/2012,R,R G JONES SOUND ENGINEER      
2012-NOV,Central Services,Fully rechargeable Overheads,Press and Public Relations.             ,A02026,Employees                     ,Direct Employee Expenses      ,AA17,Agency Staff & Casual Paymts,18,"1,130.00",10/12/2012,R,HAYS RECRUITING EXPERTS       
2012-NOV,Central Services,Fully rechargeable Overheads,Press and Public Relations.             ,A02026,Employees                     ,Direct Employee Expenses      ,AA17,Agency Staff & Casual Paymts,19,"1,130.00",10/29/2012,R,HAYS RECRUITING EXPERTS       
2012-NOV,Central Services,Fully rechargeable Overheads,Press and Public Relations.             ,A02026,Employees                     ,Direct Employee Expenses      ,AA17,Agency Staff & Casual Paymts,20,"1,130.00",10/29/2012,R,HAYS RECRUITING EXPERTS       
2012-NOV,Central Services,Fully rechargeable Overheads,Press and Public Relations.             ,A02026,Employees                     ,Direct Employee Expenses      ,AA17,Agency Staff & Casual Paymts,21,"1,130.00",11/6/2012,R,HAYS RECRUITING EXPERTS       
2012-NOV,Central Services,Fully rechargeable Overheads,Press and Public Relations.             ,A02026,Employees                     ,Direct Employee Expenses      ,AA17,Agency Staff & Casual Paymts,22,"1,130.00",11/12/2012,R,HAYS RECRUITING EXPERTS       
2012-NOV,Central Services,Fully rechargeable Overheads,Press and Public Relations.             ,A02026,Employees                     ,Direct Employee Expenses      ,AA17,Agency Staff & Casual Paymts,23,565,11/19/2012,R,HAYS RECRUITING EXPERTS       
2012-NOV,Central Services,Fully rechargeable Overheads,Press and Public Relations.             ,A02026,Supplies & Services           ,Services                      ,DF36,Photography,24,650,11/7/2012,R,SIXPENCE IMAGES               
2012-NOV,Central Services,Fully rechargeable Overheads,Press and Public Relations.             ,A02026,Supplies & Services           ,Grants and Subscriptions      ,DJ04,Subscriptions,25,"1,330.00",10/30/2012,R,SOCITM LTD                    
2012-NOV,CS -Oth Operating Inc & Expend,Trading A/c Surpluses/Deficits,Prtng Jobs - Ext Agncy                  ,A03041,Supplies & Services           ,Prntng Stnry Gen Off Exp      ,DE01,External Printing,26,"1,165.00",11/2/2012,R,SEFTON TRANSMAIL              
2012-NOV,CS -Oth Operating Inc & Expend,Trading A/c Surpluses/Deficits,Prtng Jobs - Ext Agncy                  ,A03041,Supplies & Services           ,Prntng Stnry Gen Off Exp      ,DE01,External Printing,27,500,11/7/2012,R,IMPRESS PRINT SERVICES LTD    
2012-NOV,CS -Oth Operating Inc & Expend,Trading A/c Surpluses/Deficits,Prtng Jobs - Ext Agncy                  ,A03041,Supplies & Services           ,Prntng Stnry Gen Off Exp      ,DE01,External Printing,28,"1,391.00",11/20/2012,R,CLIFFE ENTERPRISE             
2012-NOV,CS -Oth Operating Inc & Expend,Trading A/c Surpluses/Deficits,Translation Services                    ,A04060,Supplies & Services           ,Services                      ,DF45,Payment of Sessional workers,29,"4,311.00",11/19/2012,R,REDACTED
2012-NOV,Central Services,Fully rechargeable Overheads,Merton Link                             ,A04070,Premises Related Expenditure  ,Cleaning and Domestic Supplies,BH03,Cleaning Services,30,860.16,10/31/2012,R,DYNAMIQ CLEANING LIMITED      
2012-NOV,Central Services,Fully rechargeable Overheads,Merton Link                             ,A04070,Supplies & Services           ,Comms and Computing           ,DG15,Network Maintenance,31,771.15,10/1/2012,R,NORTHGATE INFORMATION SOLUTION
2012-NOV,Central Services,Fully rechargeable Overheads,Merton Link                             ,A04070,Supplies & Services           ,Comms and Computing           ,DG15,Network Maintenance,32,771.15,11/1/2012,R,NORTHGATE  INFORMATION SOLUT. 
2012-NOV,Central Services,Fully rechargeable Overheads,COMMERICIAL SERVICES                    ,A04085,Employees                     ,Direct Employee Expenses      ,AA17,Agency Staff & Casual Paymts,33,"1,356.00",10/25/2012,R,HAYS RECRUITING EXPERTS       
2012-NOV,Central Services,Fully rechargeable Overheads,COMMERICIAL SERVICES                    ,A04085,Employees                     ,Direct Employee Expenses      ,AA17,Agency Staff & Casual Paymts,34,678,11/1/2012,R,HAYS RECRUITING EXPERTS       
2012-NOV,Central Services,Fully rechargeable Overheads,COMMERICIAL SERVICES                    ,A04085,Employees                     ,Direct Employee Expenses      ,AA17,Agency Staff & Casual Paymts,35,"3,390.00",11/7/2012,R,HAYS RECRUITING EXPERTS       
2012-NOV,Central Services,Registr'n Birth/Death/Marriage,Reg of B. Deaths & Ms                   ,B06143,Employees                     ,Direct Employee Expenses      ,AA04,Shared Services Salaries,36,"11,303.28",10/16/2012,R,LONDON BOROUGH OF SUTTON      
2012-NOV,Central Services,Fully rechargeable Overheads,Learning and Development                ,B06146,Employees                     ,Indirect Employee Expenses    ,AB57,External Training Costs,37,500,11/15/2012,R,GRANT RICHES COMM. CONSUL.    
2012-NOV,CS -Oth Operating Inc & Expend,Trading A/c Surpluses/Deficits,CHAS Scheme                             ,B06150,Premises Related Expenditure  ,Rents                         ,BC03,Room/venue rental hire,38,"1,765.00",10/16/2012,R,BSI                           
2012-NOV,CS -Oth Operating Inc & Expend,Trading A/c Surpluses/Deficits,CHAS Scheme                             ,B06150,Premises Related Expenditure  ,Rents                         ,BC03,Room/venue rental hire,39,"1,765.00",10/16/2012,R,BSI                           
2012-NOV,CS -Oth Operating Inc & Expend,Trading A/c Surpluses/Deficits,CHAS Scheme                             ,B06150,Supplies & Services           ,Services                      ,DF88,Assessor Fees,40,649,10/28/2012,R,REDACTED
2012-NOV,CS -Oth Operating Inc & Expend,Trading A/c Surpluses/Deficits,CHAS Scheme                             ,B06150,Supplies & Services           ,Services                      ,DF88,Assessor Fees,41,776,10/20/2012,R,REDACTED
2012-NOV,CS -Oth Operating Inc & Expend,Trading A/c Surpluses/Deficits,CHAS Scheme                             ,B06150,Supplies & Services           ,Services                      ,DF88,Assessor Fees,42,729,10/20/2012,R,WOODS CONSULTANCY SERVICES LTD
2012-NOV,CS -Oth Operating Inc & Expend,Trading A/c Surpluses/Deficits,CHAS Scheme                             ,B06150,Supplies & Services           ,Services                      ,DF88,Assessor Fees,43,515,10/22/2012,R,REDACTED
2012-NOV,CS -Oth Operating Inc & Expend,Trading A/c Surpluses/Deficits,CHAS Scheme                             ,B06150,Supplies & Services           ,Services                      ,DF88,Assessor Fees,44,792.75,10/23/2012,R,MCG HEALTH & SAFETY LTD       
2012-NOV,CS -Oth Operating Inc & Expend,Trading A/c Surpluses/Deficits,CHAS Scheme                             ,B06150,Supplies & Services           ,Services                      ,DF88,Assessor Fees,45,"1,044.00",10/29/2012,R,REDACTED
2012-NOV,CS -Oth Operating Inc & Expend,Trading A/c Surpluses/Deficits,CHAS Scheme                             ,B06150,Supplies & Services           ,Services                      ,DF88,Assessor Fees,46,"4,553.00",11/1/2012,R,ARC ASSOCIATES (UK)           
2012-NOV,CS -Oth Operating Inc & Expend,Trading A/c Surpluses/Deficits,CHAS Scheme                             ,B06150,Supplies & Services           ,Services                      ,DF88,Assessor Fees,47,"2,601.00",10/28/2012,R,ALIMOR SAFETY LTD             
2012-NOV,CS -Oth Operating Inc & Expend,Trading A/c Surpluses/Deficits,CHAS Scheme                             ,B06150,Supplies & Services           ,Services                      ,DF88,Assessor Fees,48,515,10/31/2012,R,REDACTED
2012-NOV,CS -Oth Operating Inc & Expend,Trading A/c Surpluses/Deficits,CHAS Scheme                             ,B06150,Supplies & Services           ,Services                      ,DF88,Assessor Fees,49,856,10/26/2012,R,REDACTED
2012-NOV,CS -Oth Operating Inc & Expend,Trading A/c Surpluses/Deficits,CHAS Scheme                             ,B06150,Supplies & Services           ,Services                      ,DF88,Assessor Fees,50,"2,709.00",10/31/2012,R,SOUTH EAST HEALTH & SAFETY LTD
2012-NOV,CS -Oth Operating Inc & Expend,Trading A/c Surpluses/Deficits,CHAS Scheme                             ,B06150,Supplies & Services           ,Services                      ,DF88,Assessor Fees,51,696,10/31/2012,R,REDACTED
2012-NOV,CS -Oth Operating Inc & Expend,Trading A/c Surpluses/Deficits,CHAS Scheme                             ,B06150,Supplies & Services           ,Services                      ,DF88,Assessor Fees,52,682,10/31/2012,R,REDACTED
2012-NOV,CS -Oth Operating Inc & Expend,Trading A/c Surpluses/Deficits,CHAS Scheme                             ,B06150,Supplies & Services           ,Services                      ,DF88,Assessor Fees,53,903,10/31/2012,R,REDACTED
2012-NOV,CS -Oth Operating Inc & Expend,Trading A/c Surpluses/Deficits,CHAS Scheme                             ,B06150,Supplies & Services           ,Services                      ,DF88,Assessor Fees,54,"1,531.00",10/28/2012,R,REDACTED
2012-NOV,CS -Oth Operating Inc & Expend,Trading A/c Surpluses/Deficits,CHAS Scheme                             ,B06150,Supplies & Services           ,Services                      ,DF88,Assessor Fees,55,"2,645.00",10/28/2012,R,REDACTED
2012-NOV,CS -Oth Operating Inc & Expend,Trading A/c Surpluses/Deficits,CHAS Scheme                             ,B06150,Supplies & Services           ,Services                      ,DF88,Assessor Fees,56,"1,030.00",10/31/2012,R,REDACTED
2012-NOV,CS -Oth Operating Inc & Expend,Trading A/c Surpluses/Deficits,CHAS Scheme                             ,B06150,Supplies & Services           ,Services                      ,DF88,Assessor Fees,57,"2,180.00",10/31/2012,R,REDACTED
2012-NOV,CS -Oth Operating Inc & Expend,Trading A/c Surpluses/Deficits,CHAS Scheme                             ,B06150,Supplies & Services           ,Services                      ,DF88,Assessor Fees,58,515,10/17/2012,R,REDACTED
2012-NOV,CS -Oth Operating Inc & Expend,Trading A/c Surpluses/Deficits,CHAS Scheme                             ,B06150,Supplies & Services           ,Services                      ,DF88,Assessor Fees,59,856,10/31/2012,R,REDACTED
2012-NOV,CS -Oth Operating Inc & Expend,Trading A/c Surpluses/Deficits,CHAS Scheme                             ,B06150,Supplies & Services           ,Services                      ,DF88,Assessor Fees,60,"1,825.00",11/1/2012,R,MGW SAFETY SERVICES           
2012-NOV,CS -Oth Operating Inc & Expend,Trading A/c Surpluses/Deficits,CHAS Scheme                             ,B06150,Supplies & Services           ,Services                      ,DF88,Assessor Fees,61,508,11/1/2012,R,REDACTED
2012-NOV,CS -Oth Operating Inc & Expend,Trading A/c Surpluses/Deficits,CHAS Scheme                             ,B06150,Supplies & Services           ,Services                      ,DF88,Assessor Fees,62,"1,444.00",10/31/2012,R,2ND NATURE SAFETY SOLUTIONS UK
2012-NOV,CS -Oth Operating Inc & Expend,Trading A/c Surpluses/Deficits,CHAS Scheme                             ,B06150,Supplies & Services           ,Services                      ,DF88,Assessor Fees,63,"1,999.00",10/29/2012,R,REDACTED
2012-NOV,CS -Oth Operating Inc & Expend,Trading A/c Surpluses/Deficits,CHAS Scheme                             ,B06150,Supplies & Services           ,Services                      ,DF88,Assessor Fees,64,849,10/31/2012,R,REDACTED
2012-NOV,CS -Oth Operating Inc & Expend,Trading A/c Surpluses/Deficits,CHAS Scheme                             ,B06150,Supplies & Services           ,Services                      ,DF88,Assessor Fees,65,762,11/2/2012,R,REDACTED
2012-NOV,CS -Oth Operating Inc & Expend,Trading A/c Surpluses/Deficits,CHAS Scheme                             ,B06150,Supplies & Services           ,Services                      ,DF88,Assessor Fees,66,"2,246.00",10/16/2012,R,HOLLYGLADE LTD T/A BEACONRISK 
2012-NOV,CS -Oth Operating Inc & Expend,Trading A/c Surpluses/Deficits,CHAS Scheme                             ,B06150,Supplies & Services           ,Services                      ,DF88,Assessor Fees,67,733.45,10/31/2012,R,REDACTED
2012-NOV,CS -Oth Operating Inc & Expend,Trading A/c Surpluses/Deficits,CHAS Scheme                             ,B06150,Supplies & Services           ,Services                      ,DF88,Assessor Fees,68,"2,713.00",11/4/2012,R,REDACTED
2012-NOV,CS -Oth Operating Inc & Expend,Trading A/c Surpluses/Deficits,CHAS Scheme                             ,B06150,Supplies & Services           ,Services                      ,DF88,Assessor Fees,69,"1,865.00",11/2/2012,R,REDACTED
2012-NOV,CS -Oth Operating Inc & Expend,Trading A/c Surpluses/Deficits,CHAS Scheme                             ,B06150,Supplies & Services           ,Services                      ,DF88,Assessor Fees,70,"1,491.00",10/31/2012,R,REDACTED
2012-NOV,CS -Oth Operating Inc & Expend,Trading A/c Surpluses/Deficits,CHAS Scheme                             ,B06150,Supplies & Services           ,Services                      ,DF88,Assessor Fees,71,562,11/3/2012,R,REDACTED
2012-NOV,CS -Oth Operating Inc & Expend,Trading A/c Surpluses/Deficits,CHAS Scheme                             ,B06150,Supplies & Services           ,Services                      ,DF88,Assessor Fees,72,"1,872.00",10/31/2012,R,REDACTED
2012-NOV,CS -Oth Operating Inc & Expend,Trading A/c Surpluses/Deficits,CHAS Scheme                             ,B06150,Supplies & Services           ,Services                      ,DF88,Assessor Fees,73,"2,641.00",11/3/2012,R,REDACTED
2012-NOV,CS -Oth Operating Inc & Expend,Trading A/c Surpluses/Deficits,CHAS Scheme                             ,B06150,Supplies & Services           ,Services                      ,DF88,Assessor Fees,74,"1,070.00",11/2/2012,R,REDACTED
2012-NOV,CS -Oth Operating Inc & Expend,Trading A/c Surpluses/Deficits,CHAS Scheme                             ,B06150,Supplies & Services           ,Services                      ,DF88,Assessor Fees,75,503.05,10/31/2012,R,REDACTED
2012-NOV,CS -Oth Operating Inc & Expend,Trading A/c Surpluses/Deficits,CHAS Scheme                             ,B06150,Supplies & Services           ,Services                      ,DF88,Assessor Fees,76,"1,150.00",11/1/2012,R,REDACTED
2012-NOV,CS -Oth Operating Inc & Expend,Trading A/c Surpluses/Deficits,CHAS Scheme                             ,B06150,Supplies & Services           ,Services                      ,DF88,Assessor Fees,77,"1,444.00",10/31/2012,R,REDACTED
2012-NOV,CS -Oth Operating Inc & Expend,Trading A/c Surpluses/Deficits,CHAS Scheme                             ,B06150,Supplies & Services           ,Services                      ,DF88,Assessor Fees,78,"2,481.00",10/31/2012,R,REDACTED
2012-NOV,CS -Oth Operating Inc & Expend,Trading A/c Surpluses/Deficits,CHAS Scheme                             ,B06150,Supplies & Services           ,Services                      ,DF88,Assessor Fees,79,541,11/3/2012,R,REDACTED
2012-NOV,CS -Oth Operating Inc & Expend,Trading A/c Surpluses/Deficits,CHAS Scheme                             ,B06150,Supplies & Services           ,Services                      ,DF88,Assessor Fees,80,"1,568.00",11/5/2012,R,REDACTED
2012-NOV,CS -Oth Operating Inc & Expend,Trading A/c Surpluses/Deficits,CHAS Scheme                             ,B06150,Supplies & Services           ,Services                      ,DF88,Assessor Fees,81,"3,071.00",10/31/2012,R,STALLARD KANE ASSOCIATES LTD  
2012-NOV,CS -Oth Operating Inc & Expend,Trading A/c Surpluses/Deficits,CHAS Scheme                             ,B06150,Supplies & Services           ,Services                      ,DF88,Assessor Fees,82,"1,780.00",11/9/2012,R,REDACTED
2012-NOV,CS -Oth Operating Inc & Expend,Trading A/c Surpluses/Deficits,CHAS Scheme                             ,B06150,Supplies & Services           ,Services                      ,DF88,Assessor Fees,83,509.85,11/10/2012,R,REDACTED
2012-NOV,CS -Oth Operating Inc & Expend,Trading A/c Surpluses/Deficits,CHAS Scheme                             ,B06150,Supplies & Services           ,Services                      ,DF88,Assessor Fees,84,"1,759.00",11/9/2012,R,REDACTED
2012-NOV,CS -Oth Operating Inc & Expend,Trading A/c Surpluses/Deficits,CHAS Scheme                             ,B06150,Supplies & Services           ,Services                      ,DF88,Assessor Fees,85,990,11/11/2012,R,REDACTED
2012-NOV,CS -Oth Operating Inc & Expend,Trading A/c Surpluses/Deficits,CHAS Scheme                             ,B06150,Supplies & Services           ,Services                      ,DF88,Assessor Fees,86,943,11/12/2012,R,REDACTED
2012-NOV,CS -Oth Operating Inc & Expend,Trading A/c Surpluses/Deficits,CHAS Scheme                             ,B06150,Supplies & Services           ,Services                      ,DF88,Assessor Fees,87,522,11/6/2012,R,REDACTED
2012-NOV,CS -Oth Operating Inc & Expend,Trading A/c Surpluses/Deficits,CHAS Scheme                             ,B06150,Supplies & Services           ,Services                      ,DF88,Assessor Fees,88,593,11/7/2012,R,ARC ASSOCIATES (UK)           
2012-NOV,CS -Oth Operating Inc & Expend,Trading A/c Surpluses/Deficits,CHAS Scheme                             ,B06150,Supplies & Services           ,Services                      ,DF88,Assessor Fees,89,955,11/11/2012,R,REDACTED
2012-NOV,CS -Oth Operating Inc & Expend,Trading A/c Surpluses/Deficits,CHAS Scheme                             ,B06150,Supplies & Services           ,Services                      ,DF88,Assessor Fees,90,555,11/14/2012,R,REDACTED
2012-NOV,CS -Oth Operating Inc & Expend,Trading A/c Surpluses/Deficits,CHAS Scheme                             ,B06150,Supplies & Services           ,Services                      ,DF88,Assessor Fees,91,"1,404.00",11/12/2012,R,REDACTED
2012-NOV,CS -Oth Operating Inc & Expend,Trading A/c Surpluses/Deficits,CHAS Scheme                             ,B06150,Supplies & Services           ,Services                      ,DF88,Assessor Fees,92,"2,493.00",11/11/2012,R,REDACTED
2012-NOV,CS -Oth Operating Inc & Expend,Trading A/c Surpluses/Deficits,CHAS Scheme                             ,B06150,Supplies & Services           ,Services                      ,DF88,Assessor Fees,93,"1,110.00",11/20/2012,R,REDACTED
2012-NOV,CS -Oth Operating Inc & Expend,Trading A/c Surpluses/Deficits,CHAS Scheme                             ,B06150,Supplies & Services           ,Services                      ,DF88,Assessor Fees,94,896,11/12/2012,R,REDACTED
2012-NOV,CS -Oth Operating Inc & Expend,Trading A/c Surpluses/Deficits,CHAS Scheme                             ,B06150,Supplies & Services           ,Services                      ,DF88,Assessor Fees,95,809,11/13/2012,R,REDACTED
2012-NOV,CS -Oth Operating Inc & Expend,Trading A/c Surpluses/Deficits,CHAS Scheme                             ,B06150,Supplies & Services           ,Services                      ,DF88,Assessor Fees,96,"1,672.00",11/20/2012,R,TERN ASSOCIATES LTD           
2012-NOV,CS -Oth Operating Inc & Expend,Trading A/c Surpluses/Deficits,CHAS Scheme                             ,B06150,Supplies & Services           ,Services                      ,DF88,Assessor Fees,97,"2,264.30",11/19/2012,R,REDACTED
2012-NOV,CS -Oth Operating Inc & Expend,Trading A/c Surpluses/Deficits,CHAS Scheme                             ,B06150,Supplies & Services           ,Services                      ,DF88,Assessor Fees,98,"1,491.00",10/31/2012,R,REDACTED
2012-NOV,CS -Oth Operating Inc & Expend,Trading A/c Surpluses/Deficits,CHAS Scheme                             ,B06150,Supplies & Services           ,Services                      ,DF88,Assessor Fees,99,"1,395.00",11/9/2012,R,REDACTED
2012-NOV,CS -Oth Operating Inc & Expend,Trading A/c Surpluses/Deficits,CHAS Scheme                             ,B06150,Supplies & Services           ,Services                      ,DF88,Assessor Fees,100,"2,053.00",11/20/2012,R,WEST WALES SAFETY SERVICES    
2012-NOV,CS -Oth Operating Inc & Expend,Trading A/c Surpluses/Deficits,CHAS Scheme                             ,B06150,Supplies & Services           ,Services                      ,DF88,Assessor Fees,101,508,11/26/2012,R,REDACTED
2012-NOV,CS -Oth Operating Inc & Expend,Trading A/c Surpluses/Deficits,CHAS Scheme                             ,B06150,Supplies & Services           ,Services                      ,DF88,Assessor Fees,102,642,11/25/2012,R,REDACTED
2012-NOV,CS -Oth Operating Inc & Expend,Trading A/c Surpluses/Deficits,CHAS Scheme                             ,B06150,Supplies & Services           ,Services                      ,DF88,Assessor Fees,103,642,11/20/2012,R,REDACTED
2012-NOV,CS -Oth Operating Inc & Expend,Trading A/c Surpluses/Deficits,CHAS Scheme                             ,B06150,Supplies & Services           ,Services                      ,DF88,Assessor Fees,104,809,11/24/2012,R,REDACTED
2012-NOV,CS -Oth Operating Inc & Expend,Trading A/c Surpluses/Deficits,CHAS Scheme                             ,B06150,Supplies & Services           ,Services                      ,DF88,Assessor Fees,105,508.9,11/23/2012,R,REDACTED
2012-NOV,CS -Oth Operating Inc & Expend,Trading A/c Surpluses/Deficits,CHAS Scheme                             ,B06150,Supplies & Services           ,Expenses                      ,DH02,Conferences,106,"1,800.00",11/2/2012,R,UBM INFORMATION LTD           
2012-NOV,CS -Oth Operating Inc & Expend,Trading A/c Surpluses/Deficits,CHAS Scheme                             ,B06150,Supplies & Services           ,Grants and Subscriptions      ,DJ04,Subscriptions,107,600,11/16/2012,R,LIVELY LTD                    
2012-NOV,Central Services,Fully rechargeable Overheads,Strategic Personnel Management          ,B06151,Supplies & Services           ,Services                      ,DF03,Consultants,108,800,10/15/2012,R,REDACTED
2012-NOV,,,London Libraries Consortium             ,CC012EA,Vehicles Plant Equipment and Machinery,0,D5,Software,109,"2,875.00",11/30/2012,C,AXIELL                        
2012-NOV,,,Merton Information Portal               ,CC018FD,Vehicles Plant Equipment and Machinery,0,D5,Software,110,"30,000.00",3/14/2012,C,OPEN OBJECTS SOFTWARE LTD     
2012-NOV,,,Merton Information Portal               ,CC018FD,Vehicles Plant Equipment and Machinery,0,D5,Software,111,"1,995.00",5/31/2012,C,OPEN OBJECTS SOFTWARE LTD     
2012-NOV,,,Lottery Project CL/1/010251720          ,CC043AA,New Construction Conversion and Renovation,0,B4,Site Works - Contractor,112,"11,888.38",10/31/2012,C,SALTASH ENTERPRISES LTD       
2012-NOV,,,Disabled Facilities Grant DCLG          ,CE004RA,Other Capital Expenditure,0,E1,Grants,113,"1,582.08",11/1/2012,C,CBS ADAPTATION                
2012-NOV,,,Disabled Facilities Grant DCLG          ,CE004RA,Other Capital Expenditure,0,E1,Grants,114,"5,720.00",11/1/2012,C,DREW PARTNERSHIP LTD.         
2012-NOV,,,Disabled Facilities Grant DCLG          ,CE004RA,Other Capital Expenditure,0,E1,Grants,115,600,11/1/2012,C,CHEAM DISABILITY SOLUTIONS    
2012-NOV,,,Disabled Facilities Grant DCLG          ,CE004RA,Other Capital Expenditure,0,E1,Grants,116,"2,127.20",11/1/2012,C,REDACTED
2012-NOV,,,Disabled Facilities Grant DCLG          ,CE004RA,Other Capital Expenditure,0,E1,Grants,117,917.39,11/14/2012,C,ABLE 2 OCCUP.THERAPY SERV.LTD 
2012-NOV,,,Disabled Facilities Grant DCLG          ,CE004RA,Other Capital Expenditure,0,E1,Grants,118,"1,109.25",11/14/2012,C,ABLE 2 OCCUP.THERAPY SERV.LTD 
2012-NOV,,,Disabled Facilities Grant DCLG          ,CE004RA,Other Capital Expenditure,0,E1,Grants,119,"11,363.00",11/14/2012,C,FREEWAY LIFT SERVICES LTD     
2012-NOV,,,Disabled Facilities Grant DCLG          ,CE004RA,Other Capital Expenditure,0,E1,Grants,120,"5,913.00",11/14/2012,C,F G KEEN LIMITED              
2012-NOV,,,Disabled Facilities Grant DCLG          ,CE004RA,Other Capital Expenditure,0,E1,Grants,121,"4,590.00",11/14/2012,C,ASCENDIT LIFTS LTD            
2012-NOV,,,Disabled Facilities Grant DCLG          ,CE004RA,Other Capital Expenditure,0,E1,Grants,122,"1,670.00",11/16/2012,C,ALAN PIPER CONSULTANCY        
2012-NOV,,,Disabled Facilities Grant DCLG          ,CE004RA,Other Capital Expenditure,0,E1,Grants,123,"8,968.00",11/19/2012,C,ATRIUM DESIGN & INSTALLATION  
2012-NOV,,,Disabled Facilities Grant DCLG          ,CE004RA,Other Capital Expenditure,0,E1,Grants,124,"5,206.10",11/21/2012,C,WEALDEN REHAB                 
2012-NOV,,,Disabled Facilities Grant DCLG          ,CE004RA,Other Capital Expenditure,0,E1,Grants,125,"5,589.72",11/21/2012,C,TBS ADAPTATIONS LTD           
2012-NOV,,,Disabled Facilities Grant DCLG          ,CE004RA,Other Capital Expenditure,0,E1,Grants,126,"1,006.15",11/23/2012,C,STAYING FIRST                 
2012-NOV,,,Disabled Facilities Grant DCLG          ,CE004RA,Other Capital Expenditure,0,E1,Grants,127,"2,261.50",11/23/2012,C,CBS ADAPTATION                
2012-NOV,,,Disabled Facilities Grant DCLG          ,CE004RA,Other Capital Expenditure,0,E1,Grants,128,"5,875.00",11/27/2012,C,ZAIMAJ CONSTRUCTION           
2012-NOV,,,Disabled Facilities Grant DCLG          ,CE004RA,Other Capital Expenditure,0,E1,Grants,129,"11,050.03",11/27/2012,C,BPL BUILDING SERVICES LIMITED 
2012-NOV,,,Disabled Facilities Grant DCLG          ,CE004RA,Other Capital Expenditure,0,E1,Grants,130,"6,501.00",11/28/2012,C,AMWELL CONSTRUCTION           
2012-NOV,,,Disabled Facilities Grant DCLG          ,CE004RA,Other Capital Expenditure,0,E1,Grants,131,"1,118.83",11/28/2012,C,CBS ADAPTATION                
2012-NOV,,,Disabled Facilities Grant DCLG          ,CE004RA,Other Capital Expenditure,0,E1,Grants,132,"1,504.18",11/28/2012,C,STAYING FIRST                 
2012-NOV,,,Disabled Facilities Grant DCLG          ,CE004RA,Other Capital Expenditure,0,E1,Grants,133,"2,555.00",11/29/2012,C,AQUANEED LIMITED              
2012-NOV,,,Disabled Facilities Grant DCLG          ,CE004RA,Other Capital Expenditure,0,E1,Grants,134,"8,456.99",11/29/2012,C,VISTA SCAPES                  
2012-NOV,,,Disabled Facilities Grant DCLG          ,CE004RA,Other Capital Expenditure,0,E1,Grants,135,"8,167.44",11/29/2012,C,VISTA SCAPES                  
2012-NOV,,,Disabled Facilities Grant DCLG          ,CE004RA,Other Capital Expenditure,0,E1,Grants,136,"1,643.25",11/29/2012,C,WEALDEN REHAB                 
2012-NOV,,,Disabled Facilities Grant DCLG          ,CE004RA,Other Capital Expenditure,0,E1,Grants,137,"2,104.45",11/29/2012,C,CBS ADAPTATION                
2012-NOV,,,Disabled Facilities Grant DCLG          ,CE004RA,Other Capital Expenditure,0,E1,Grants,138,"1,163.90",11/29/2012,C,CBS ADAPTATION                
2012-NOV,,,Disabled Facilities Grant DCLG          ,CE004RA,Other Capital Expenditure,0,E1,Grants,139,"9,361.00",11/29/2012,C,TBS ADAPTATIONS LTD           
2012-NOV,,,Wim Pk Tennis Crt re-surfacing          ,CE009BA,New Construction Conversion and Renovation,0,B4,Site Works - Contractor,140,"67,467.84",11/5/2012,C,THOMAS SINDEN CONSTRUCTION LTD
2012-NOV,,,B487 Landscape Ravensbury Park          ,CE009CA,New Construction Conversion and Renovation,0,B4,Site Works - Contractor,141,645,9/23/2012,C,REDACTED
2012-NOV,,,Enhancement of Investment Prop          ,CE010BA,New Construction Conversion and Renovation,0,B4,Site Works - Contractor,142,"1,880.00",10/26/2012,C,LA BELLE ROOFING CO LTD       
2012-NOV,,,Enhancement of Investment Prop          ,CE010BA,New Construction Conversion and Renovation,0,B4,Site Works - Contractor,143,"1,420.00",11/1/2012,C,JUST METAL UK LTD             
2012-NOV,,,Enhancement of Investment Prop          ,CE010BA,New Construction Conversion and Renovation,0,B4,Site Works - Contractor,144,737,11/13/2012,C,TAYLOR BUILDING COMPANY LTD   
2012-NOV,,,Enhancement of Investment Prop          ,CE010BA,New Construction Conversion and Renovation,0,B4,Site Works - Contractor,145,"1,877.00",11/13/2012,C,TAYLOR BUILDING COMPANY LTD   
2012-NOV,,,Enhancement of Investment Prop          ,CE010BA,New Construction Conversion and Renovation,0,B4,Site Works - Contractor,146,"3,989.17",11/19/2012,C,MORTON FAIRVIEW ELEC SERVICES 
2012-NOV,,,Parks Investment                        ,CE013SA,New Construction Conversion and Renovation,0,B4,Site Works - Contractor,147,"1,180.00",10/26/2012,C,JUST METAL UK LTD             
2012-NOV,,,Parks Investment                        ,CE013SA,New Construction Conversion and Renovation,0,B4,Site Works - Contractor,148,"1,750.00",10/26/2012,C,JUST METAL UK LTD             
2012-NOV,,,Parks Investment                        ,CE013SA,New Construction Conversion and Renovation,0,B4,Site Works - Contractor,149,"1,395.00",8/30/2012,C,REDACTED
2012-NOV,,,Parks Investment                        ,CE013SA,New Construction Conversion and Renovation,0,B4,Site Works - Contractor,150,"3,900.00",8/30/2012,C,REDACTED
2012-NOV,,,Surface Water Drainage                  ,CE024FA,New Construction Conversion and Renovation,0,B4,Site Works - Contractor,151,"4,941.06",11/26/2012,C,FM CONWAY LTD                 
2012-NOV,,,Borough Roads Maintenance               ,CE026FA,New Construction Conversion and Renovation,0,B4,Site Works - Contractor,152,990,10/31/2012,C,FM CONWAY LTD                 
2012-NOV,,,Borough Roads Maintenance               ,CE026FA,New Construction Conversion and Renovation,0,B4,Site Works - Contractor,153,"1,144.85",11/14/2012,C,FM CONWAY LTD                 
2012-NOV,,,Borough Roads Maintenance               ,CE026FA,New Construction Conversion and Renovation,0,B4,Site Works - Contractor,154,"2,438.40",11/14/2012,C,FM CONWAY LTD                 
2012-NOV,,,Borough Roads Maintenance               ,CE026FA,New Construction Conversion and Renovation,0,B4,Site Works - Contractor,155,"24,058.63",11/19/2012,C,FM CONWAY LTD                 
2012-NOV,,,Borough Roads Maintenance               ,CE026FA,New Construction Conversion and Renovation,0,B4,Site Works - Contractor,156,"3,327.00",11/23/2012,C,FM CONWAY LTD                 
2012-NOV,,,Borough Roads Maintenance               ,CE026FA,New Construction Conversion and Renovation,0,B4,Site Works - Contractor,157,"32,000.00",11/23/2012,C,FM CONWAY LTD                 
2012-NOV,,,Borough Roads Maintenance               ,CE026FA,New Construction Conversion and Renovation,0,B4,Site Works - Contractor,158,"2,624.24",11/23/2012,C,FM CONWAY LTD                 
2012-NOV,,,Borough Roads Maintenance               ,CE026FA,New Construction Conversion and Renovation,0,B4,Site Works - Contractor,159,"4,780.79",11/26/2012,C,FM CONWAY LTD                 
2012-NOV,,,Borough Roads Maintenance               ,CE026FA,New Construction Conversion and Renovation,0,B4,Site Works - Contractor,160,"35,000.00",11/26/2012,C,FM CONWAY LTD                 
2012-NOV,,,Borough Roads Maintenance               ,CE026FA,New Construction Conversion and Renovation,0,B4,Site Works - Contractor,161,"1,057.05",11/26/2012,C,FM CONWAY LTD                 
2012-NOV,,,Borough Roads Maintenance               ,CE026FA,New Construction Conversion and Renovation,0,B4,Site Works - Contractor,162,"10,949.48",11/26/2012,C,FM CONWAY LTD                 
2012-NOV,,,Borough Roads Maintenance               ,CE026FA,New Construction Conversion and Renovation,0,B4,Site Works - Contractor,163,"24,965.61",11/26/2012,C,FM CONWAY LTD                 
2012-NOV,,,Maintain AntiSkid and Coloured          ,CE027FA,New Construction Conversion and Renovation,0,B4,Site Works - Contractor,164,"3,548.34",11/19/2012,C,FM CONWAY LTD                 
2012-NOV,,,Maintain AntiSkid and Coloured          ,CE027FA,New Construction Conversion and Renovation,0,B4,Site Works - Contractor,165,"1,107.71",11/23/2012,C,FM CONWAY LTD                 
2012-NOV,,,Public Right of Way Improvemen          ,CE028FA,New Construction Conversion and Renovation,0,B4,Site Works - Contractor,166,"1,170.12",10/11/2012,C,VEOLIA ES (UK) LIMITED        
2012-NOV,,,Public Right of Way Improvemen          ,CE028FA,New Construction Conversion and Renovation,0,B4,Site Works - Contractor,167,"4,267.20",11/14/2012,C,FM CONWAY LTD                 
2012-NOV,,,Repairs to Footways                     ,CE029FA,New Construction Conversion and Renovation,0,B4,Site Works - Contractor,168,"25,000.00",11/13/2012,C,FM CONWAY LTD                 
2012-NOV,,,Repairs to Footways                     ,CE029FA,New Construction Conversion and Renovation,0,B4,Site Works - Contractor,169,"1,134.28",11/14/2012,C,FM CONWAY LTD                 
2012-NOV,,,Repairs to Footways                     ,CE029FA,New Construction Conversion and Renovation,0,B4,Site Works - Contractor,170,"3,108.23",11/14/2012,C,FM CONWAY LTD                 
2012-NOV,,,Climate Change Initiatives              ,CE052MA,New Construction Conversion and Renovation,0,B2,Design and Supervision - Site Surveys,171,"1,800.00",10/18/2012,C,MPM                           
2012-NOV,,,Climate Change Initiatives              ,CE052MA,New Construction Conversion and Renovation,0,B2,Design and Supervision - Site Surveys,172,"5,311.16",11/6/2012,C,MPM                           
2012-NOV,,,Improve markings & road signs           ,CE066EA,Vehicles Plant Equipment and Machinery,0,D4,Specialist Furniture,173,"1,081.50",11/9/2012,C,UNIQUE OFFICE SOLUTIONS LTD   
2012-NOV,,,B591a Street Scene Improvement          ,CE066FH,New Construction Conversion and Renovation,0,B4,Site Works - Contractor,174,"3,231.81",11/13/2012,C,FM CONWAY LTD                 
2012-NOV,,,Street Tree Programme                   ,CE067FA,New Construction Conversion and Renovation,0,B4,Site Works - Contractor,175,"13,616.06",10/30/2012,C,VEOLIA ES (UK) LIMITED        
2012-NOV,,,Alley Gating Scheme - Fly Tip           ,CE087FA,Other Capital Expenditure,0,E1,Grants,176,"1,328.94",10/30/2012,C,MR & CW ALLEYGATE ASSOCIATION 
2012-NOV,,,Alley Gating Scheme - Fly Tip           ,CE087FA,Other Capital Expenditure,0,E1,Grants,177,694.44,10/25/2012,C,CAMBORNE GATEWAY              
2012-NOV,,,Alley Gating Scheme - Fly Tip           ,CE087FA,Other Capital Expenditure,0,E1,Grants,178,528.75,11/1/2012,C,LYNDHURST SEVENTEEN           
2012-NOV,,,Alley Gating Scheme - Fly Tip           ,CE087FA,Other Capital Expenditure,0,E1,Grants,179,829.44,11/12/2012,C,CLEVELAND RISE SECURITY GATES 
2012-NOV,,,Alley Gating Scheme - Fly Tip           ,CE087FA,Other Capital Expenditure,0,E1,Grants,180,"4,300.00",11/12/2012,C,M.M.K. ALLEYGATE ASSOCIATION  
2012-NOV,,,Waste Phase B - Replace RCVs            ,CE092EA,New Construction Conversion and Renovation,0,B4,Site Works - Contractor,181,"2,000.00",10/31/2012,C,FM CONWAY LTD                 
2012-NOV,,,Waste Phase B - Replace RCVs            ,CE092EA,New Construction Conversion and Renovation,0,B4,Site Works - Contractor,182,"46,000.00",10/31/2012,C,FM CONWAY LTD                 
2012-NOV,,,B453 Haydons Road                       ,CE098FA,New Construction Conversion and Renovation,0,B4,Site Works - Contractor,183,"4,281.00",11/6/2012,C,TAYLOR BUILDING COMPANY LTD   
2012-NOV,,,Strategic corridor Mitcham              ,CE104FB,New Construction Conversion and Renovation,0,B2,Design and Supervision - Site Surveys,184,"6,600.00",10/24/2012,C,MHC TRAFFIC                   
2012-NOV,,,Strategic corridor Mitcham              ,CE104FB,New Construction Conversion and Renovation,0,B2,Design and Supervision - Site Surveys,185,"18,995.00",11/9/2012,C,LASER SURVEYS                 
2012-NOV,,,Accesibility Programme                  ,CE104FD,New Construction Conversion and Renovation,0,B4,Site Works - Contractor,186,"20,000.00",11/10/2012,C,FM CONWAY LTD                 
2012-NOV,,,Accesibility Programme                  ,CE104FD,New Construction Conversion and Renovation,0,B4,Site Works - Contractor,187,"1,210.62",11/23/2012,C,FM CONWAY LTD                 
2012-NOV,,,Accesibility Programme                  ,CE104FD,New Construction Conversion and Renovation,0,B4,Site Works - Contractor,188,834.12,11/23/2012,C,FM CONWAY LTD                 
2012-NOV,,,Accesibility Programme                  ,CE104FD,New Construction Conversion and Renovation,0,B4,Site Works - Contractor,189,"1,526.54",11/23/2012,C,FM CONWAY LTD                 
2012-NOV,,,Accesibility Programme                  ,CE104FD,New Construction Conversion and Renovation,0,B6,Site Works - Other Costs,190,"42,331.85",11/14/2012,C,TRANSPORT FOR LONDON          
2012-NOV,,,Casualty Reduction & Schools            ,CE104RA,New Construction Conversion and Renovation,0,B2,Design and Supervision - Site Surveys,191,500,11/6/2012,C,REDACTED
2012-NOV,,,Casualty Reduction & Schools            ,CE104RA,New Construction Conversion and Renovation,0,B4,Site Works - Contractor,192,"10,000.00",11/19/2012,C,FM CONWAY LTD                 
2012-NOV,,,School & Road Safety Campaigns          ,CE104RC,Other Capital Expenditure,0,E4,TFL Other,193,800,5/15/2012,C,A.M.A.UK                      
2012-NOV,,,School & Road Safety Campaigns          ,CE104RC,Other Capital Expenditure,0,E4,TFL Other,194,500,11/13/2012,C,BLAKES DRIVER TRAINING        
2012-NOV,,,School & Road Safety Campaigns          ,CE104RC,Other Capital Expenditure,0,E4,TFL Other,195,"6,932.00",11/15/2012,C,THE RIOT ACT                  
2012-NOV,,,Cycle Improvements                      ,CE104RM,New Construction Conversion and Renovation,0,B4,Site Works - Contractor,196,"23,115.00",11/19/2012,C,FM CONWAY LTD                 
2012-NOV,,,Wim TC Accessibility & Streets          ,CE106FA,New Construction Conversion and Renovation,0,B2,Design and Supervision - Site Surveys,197,"3,980.00",11/6/2012,C,MHC TRAFFIC                   
2012-NOV,,,Lower Downs Rd walking/cycling          ,CE106FB,New Construction Conversion and Renovation,0,B4,Site Works - Contractor,198,"6,885.00",11/19/2012,C,FM CONWAY LTD                 
2012-NOV,,,Universal Cold Busters                  ,CE120RA,Other Capital Expenditure,0,E1,Grants,199,"3,736.95",11/13/2012,C,GLOWARM CENTRAL HEATING LTD   
2012-NOV,,,Universal Cold Busters                  ,CE120RA,Other Capital Expenditure,0,E1,Grants,200,586.2,11/13/2012,C,CLIMATE ENERGY LTD            
2012-NOV,,,Universal Cold Busters                  ,CE120RA,Other Capital Expenditure,0,E1,Grants,201,547.68,11/15/2012,C,CLIMATE ENERGY LTD            
2012-NOV,,,Universal Cold Busters                  ,CE120RA,Other Capital Expenditure,0,E1,Grants,202,"3,399.90",11/15/2012,C,CLIMATE ENERGY SOLUTIONS LTD  
2012-NOV,,,Universal Cold Busters                  ,CE120RA,Other Capital Expenditure,0,E1,Grants,203,"3,436.65",11/21/2012,C,CLIMATE ENERGY SOLUTIONS LTD  
2012-NOV,,,Universal Cold Busters                  ,CE120RA,Other Capital Expenditure,0,E1,Grants,204,551.88,11/21/2012,C,CLIMATE ENERGY LTD            
2012-NOV,,,Empty Homes Grant                       ,CE122RA,Other Capital Expenditure,0,E1,Grants,205,"1,850.00",11/14/2012,C,REDACTED
2012-NOV,,,Energy Utility Invest to Save           ,CF002SA,New Construction Conversion and Renovation,0,B4,Site Works - Contractor,206,"1,949.50",11/21/2012,C,HEATING CONTROLS ONLINE       
2012-NOV,,,IT Equip Room-Air Conditioning          ,CF004EB,New Construction Conversion and Renovation,0,B4,Site Works - Contractor,207,500,6/30/2012,C,BUXTON ASSOCS (CONS) ENG.LTD  
2012-NOV,,,Wim Lib/ Marlborough Hall-Lift          ,CF006SA,New Construction Conversion and Renovation,0,B4,Site Works - Contractor,208,"4,267.43",11/7/2012,C,MOY CONSTRUCTION CO LTD       
2012-NOV,,,Replace Pavilion & Toilets,CGH374D,New Construction Conversion and Renovation,0,2N,Capital main contractor payments,209,"1,960.00",10/12/2012,C,MOY CONSTRUCTION CO LTD       
2012-NOV,,,Replace Pavilion & Toilets,CGH374D,New Construction Conversion and Renovation,0,2N,Capital main contractor payments,210,"5,821.35",10/12/2012,C,MOY CONSTRUCTION CO LTD       
2012-NOV,,,St Ann's - Targeted Capital             ,CS001DA,New Construction Conversion and Renovation,0,B5,Site Works - Suppliers,211,"3,714.23",11/1/2012,C,BOSHIRE LTD                   
2012-NOV,,,Bishop Gilpin new classroom             ,CS003RA,New Construction Conversion and Renovation,0,B2,Design and Supervision - Site Surveys,212,"7,909.29",10/29/2012,C,WILBY & BURNETT               
2012-NOV,,,Bishop Gilpin new classroom             ,CS003RA,New Construction Conversion and Renovation,0,B4,Site Works - Contractor,213,"18,977.20",11/3/2012,C,P R FREDDI LTD                
2012-NOV,,,All Saints/ South Wim YCC exp           ,CS008SB,New Construction Conversion and Renovation,0,B2,Design and Supervision - Site Surveys,214,"1,440.00",9/26/2012,C,F A BARTLETT TREE EXPERTS LTD 
2012-NOV,,,All Saints/ South Wim YCC exp           ,CS008SB,New Construction Conversion and Renovation,0,B4,Site Works - Contractor,215,"115,258.00",10/31/2012,C,GEE CONSTRUCTION LTD          
2012-NOV,,,Benedict expansion                      ,CS009AA,New Construction Conversion and Renovation,0,B1,Design and Supervision - Consultants Fee,216,"15,000.00",10/31/2012,C,THE HOCA PRACTISE             
2012-NOV,,,Joseph Hood Permanent Expansn           ,CS012AA,New Construction Conversion and Renovation,0,B1,Design and Supervision - Consultants Fee,217,"9,162.00",11/12/2012,C,HAVERSTOCK ASSOCIATES LLP     
2012-NOV,,,Joseph Hood Permanent Expansn           ,CS012AA,New Construction Conversion and Renovation,0,B4,Site Works - Contractor,218,"113,000.00",11/9/2012,C,GEE CONSTRUCTION LTD          
2012-NOV,,,Garden PCP                              ,CS013AA,New Construction Conversion and Renovation,0,B4,Site Works - Contractor,219,"105,173.72",11/15/2012,C,R DURTNELL & SONS LTD         
2012-NOV,,,Garden PCP                              ,CS013AA,New Construction Conversion and Renovation,0,B6,Site Works - Other Costs,220,588,10/31/2012,C,EDE'S (U.K.) LTD              
2012-NOV,,,St Marks PS-classroom lighting          ,CS015AC,New Construction Conversion and Renovation,0,B1,Design and Supervision - Consultants Fee,221,"1,244.86",10/23/2012,C,EC HARRIS LLP                 
2012-NOV,,,St Marks PS-classroom lighting          ,CS015AC,New Construction Conversion and Renovation,0,B4,Site Works - Contractor,222,"25,926.16",10/23/2012,C,R DURTNELL & SONS LTD         
2012-NOV,,,Gorringe Park expansion                 ,CS018AB,New Construction Conversion and Renovation,0,B1,Design and Supervision - Consultants Fee,223,"21,905.00",11/12/2012,C,HAVERSTOCK ASSOCIATES LLP     
2012-NOV,,,Gorringe Park expansion                 ,CS018AB,New Construction Conversion and Renovation,0,B4,Site Works - Contractor,224,"256,000.00",11/8/2012,C,GEE CONSTRUCTION LTD          
2012-NOV,,,Hillcross School Expansion              ,CS020AC,New Construction Conversion and Renovation,0,B4,Site Works - Contractor,225,"9,311.00",11/15/2012,C,GML CONSTRUCTION LTD          
2012-NOV,,,Pelham - Window Replacement             ,CS023AD,New Construction Conversion and Renovation,0,B4,Site Works - Contractor,226,"4,240.29",11/12/2012,C,UPRISE LIMITED                
2012-NOV,,,Stanford-Imprvement to toilets          ,CS024AC,New Construction Conversion and Renovation,0,B1,Design and Supervision - Consultants Fee,227,"1,246.63",10/23/2012,C,EC HARRIS LLP                 
2012-NOV,,,St Ann's Primary Phase                  ,CS032AA,New Construction Conversion and Renovation,0,B4,Site Works - Contractor,228,"9,405.17",11/20/2012,C,R DURTNELL & SONS LTD         
2012-NOV,,,St Anns - Primary                       ,CS032AB,New Construction Conversion and Renovation,0,B4,Site Works - Contractor,229,680.34,11/1/2012,C,PORTAKABIN LIMITED            
2012-NOV,,,Liberty expansion                       ,CS036AB,New Construction Conversion and Renovation,0,B4,Site Works - Contractor,230,"128,660.85",10/26/2012,C,R DURTNELL & SONS LTD         
2012-NOV,,,Holy Trinity Expansion                  ,CS044RA,New Construction Conversion and Renovation,0,B1,Design and Supervision - Consultants Fee,231,"3,586.72",10/30/2012,C,CURL LA TOURELLE ARCHITECTS   
2012-NOV,,,Holy Trinity Expansion                  ,CS044RA,New Construction Conversion and Renovation,0,B1,Design and Supervision - Consultants Fee,232,"3,586.72",11/23/2012,C,CURL LA TOURELLE ARCHITECTS   
2012-NOV,,,Wimbledon Park expansion                ,CS050AA,New Construction Conversion and Renovation,0,B1,Design and Supervision - Consultants Fee,233,"2,400.00",10/30/2012,C,SYNERGY CPC LLP               
2012-NOV,,,Wimbledon Park expansion                ,CS050AA,New Construction Conversion and Renovation,0,B2,Design and Supervision - Site Surveys,234,"1,220.00",10/30/2012,C,REDACTED
2012-NOV,,,Wimbledon Park expansion                ,CS050AA,New Construction Conversion and Renovation,0,B4,Site Works - Contractor,235,"360,342.93",11/8/2012,C,GEE CONSTRUCTION LTD          
2012-NOV,,,Merton Pk- Entrance adaptation          ,CS052AB,New Construction Conversion and Renovation,0,B1,Design and Supervision - Consultants Fee,236,"2,778.44",10/26/2012,C,EC HARRIS LLP                 
2012-NOV,,,Document Managemnt-Contractual          ,CT004EA,Vehicles Plant Equipment and Machinery,0,D3,Equipment,237,"6,650.00",10/12/2012,C,OPEN TEXT UK LTD              
2012-NOV,,,Document Managemnt-Contractual          ,CT004EA,Vehicles Plant Equipment and Machinery,0,D3,Equipment,238,"1,900.00",10/12/2012,C,OPEN TEXT UK LTD              
2012-NOV,,,IT Equipment                            ,CT006EA,Other Capital Expenditure,0,E3,Miscellaneous Capital Expenditure,239,"3,680.00",11/14/2012,C,VERISEC LIMITED               
2012-NOV,,,IT Strategy - unallocated               ,CT007EW,Vehicles Plant Equipment and Machinery,0,D3,Equipment,240,"1,247.40",10/17/2012,C,VIDEK LTD                     
2012-NOV,,,IT Strategy - unallocated               ,CT007EW,Vehicles Plant Equipment and Machinery,0,D3,Equipment,241,"3,492.65",10/17/2012,C,VIDEK LTD                     
2012-NOV,,,IT Strategy - unallocated               ,CT007EW,Vehicles Plant Equipment and Machinery,0,D3,Equipment,242,"1,617.84",10/17/2012,C,VIDEK LTD                     
2012-NOV,,,IT Strategy - unallocated               ,CT007EW,Vehicles Plant Equipment and Machinery,0,D3,Equipment,243,"6,348.16",10/17/2012,C,VIDEK LTD                     
2012-NOV,,,IT Strategy - unallocated               ,CT007EW,Vehicles Plant Equipment and Machinery,0,D3,Equipment,244,"1,469.85",11/16/2012,C,VIDEK LTD                     
2012-NOV,,,IT Strategy - unallocated               ,CT007EW,Vehicles Plant Equipment and Machinery,0,D3,Equipment,245,693.36,11/16/2012,C,VIDEK LTD                     
2012-NOV,,,IT Strategy - unallocated               ,CT007EW,Vehicles Plant Equipment and Machinery,0,D3,Equipment,246,"2,746.80",11/16/2012,C,VIDEK LTD                     
2012-NOV,,,IT Strategy - unallocated               ,CT007EW,Vehicles Plant Equipment and Machinery,0,D3,Equipment,247,"13,230.00",11/22/2012,C,INCOM TELECOMMUNICATIONS      
2012-NOV,,,IT Strategy - unallocated               ,CT007EW,Vehicles Plant Equipment and Machinery,0,D5,Software,248,"88,932.50",10/31/2012,C,NEC (UK) LTD                  
2012-NOV,,,Stability Networks                      ,CT012ED,Vehicles Plant Equipment and Machinery,0,D3,Equipment,249,"7,504.00",10/31/2012,C,MISCO                         
2012-NOV,,,Stability Networks                      ,CT012ED,Vehicles Plant Equipment and Machinery,0,D3,Equipment,250,"11,160.00",11/19/2012,C,HORNBILL SERVICE MGMENT LTD   
2012-NOV,,,Stability Networks                      ,CT012ED,Vehicles Plant Equipment and Machinery,0,D3,Equipment,251,"1,324.27",11/19/2012,C,HORNBILL SERVICE MGMENT LTD   
2012-NOV,,,Stability Networks                      ,CT012ED,Other Capital Expenditure,0,E3,Miscellaneous Capital Expenditure,252,950,10/31/2012,C,HORNBILL SERVICE MGMENT LTD   
2012-NOV,,,Replacement parking system              ,CT012EF,Vehicles Plant Equipment and Machinery,0,D5,Software,253,"9,865.20",10/31/2012,C,IMPERIAL CIVIL ENFORC.SOLUT.  
2012-NOV,,,Replacement parking system              ,CT012EF,Vehicles Plant Equipment and Machinery,0,D5,Software,254,"8,464.80",10/31/2012,C,IMPERIAL CIVIL ENFORC.SOLUT.  
2012-NOV,Central Services,Local Tax Collection,Local Taxation Services                 ,E02100,Supplies & Services           ,Services                      ,DF95,Services from Provider,255,"10,348.00",10/31/2012,R,DATATANK                      
2012-NOV,Central Services,Local Tax Collection,Local Taxation Services                 ,E02100,Supplies & Services           ,Comms and Computing           ,DG09,Computer Purchases - Misc,256,550,10/31/2012,R,BLAZIE                        
2012-NOV,Central Services,Local Tax Collection,Local Taxation Services                 ,E02100,Supplies & Services           ,Comms and Computing           ,DG09,Computer Purchases - Misc,257,875,11/6/2012,R,CIVICA UK LIMITED             
2012-NOV,Central Services,Local Tax Collection,Local Taxation Services                 ,E02100,Supplies & Services           ,Comms and Computing           ,DG09,Computer Purchases - Misc,258,"2,560.00",10/15/2012,R,CIVICA UK LIMITED             
2012-NOV,Central Services,Local Tax Collection,Local Taxation Services                 ,E02100,Supplies & Services           ,Comms and Computing           ,DG09,Computer Purchases - Misc,259,725,11/13/2012,R,MAG:NET SOLUTIONS             
2012-NOV,Central Services,Local Tax Collection,Local Taxation Services                 ,E02100,Third Party Payments          ,Private Contractors           ,EH01,Miscellaneous Contrct Services,260,"1,067.70",11/1/2012,R,COMMERCIAL COLLECTION SERVICES
2012-NOV,Central Services,Local Tax Collection,Local Taxation Services                 ,E02100,Support Services,Corporate Services,GB16,Legal,261,"3,257.50",10/26/2012,R,WELBECK LAW LLP               
2012-NOV,Central Services,Local Tax Collection,Local Taxation Services                 ,E02100,Support Services,Corporate Services,GB16,Legal,262,925,11/21/2012,R,WELBECK LAW LLP               
2012-NOV,Central Services,Local Tax Collection,Local Taxation Bailiffs                 ,E02101,Supplies & Services           ,Services                      ,DF18,Bailiffs' fees,263,590,10/24/2012,R,GREASBY'S AUCTION ROOMS       
2012-NOV,Central Services,Local Tax Collection,Local Taxation Bailiffs                 ,E02101,Supplies & Services           ,Services                      ,DF18,Bailiffs' fees,264,637.5,10/24/2012,R,GREASBY'S AUCTION ROOMS       
2012-NOV,Central Services,Local Tax Collection,Local Taxation Bailiffs                 ,E02101,Supplies & Services           ,Services                      ,DF18,Bailiffs' fees,265,800.5,11/15/2012,R,REDACTED
2012-NOV,Housing Services,Housing Benefit Administration,Benefits Administration                 ,E02120,Employees                     ,Indirect Employee Expenses    ,AB57,External Training Costs,266,750,10/18/2012,R,HBINFO LTD                    
2012-NOV,Housing Services,Housing Benefit Administration,Benefits Administration                 ,E02120,Employees                     ,Indirect Employee Expenses    ,AB57,External Training Costs,267,597,10/19/2012,R,HBINFO LTD                    
2012-NOV,Central Services,Fully rechargeable Overheads,Payroll                                 ,E02140,Third Party Payments          ,Private Contractors           ,EH10,Contract Payments,268,"13,463.00",10/8/2012,R,LONDON BOROUGH OF SUTTON      
2012-NOV,Central Services,Fully rechargeable Overheads,Payroll                                 ,E02140,Third Party Payments          ,Private Contractors           ,EH10,Contract Payments,269,"14,508.61",11/7/2012,R,LONDON BOROUGH OF SUTTON      
2012-NOV,Central Services,Fully rechargeable Overheads,Payroll                                 ,E02140,Third Party Payments          ,Private Contractors           ,EH10,Contract Payments,270,"5,766.66",10/17/2012,R,LONDON BOROUGH OF SUTTON      
2012-NOV,Central Services,Fully rechargeable Overheads,Pensions                                ,E02160,Supplies & Services           ,Comms and Computing           ,DG02,Software Licences,271,"58,976.75",11/6/2012,R,HEYWOOD                       
2012-NOV,Central Services,Fully rechargeable Overheads,AD Customer Services                    ,E02180,Supplies & Services           ,Prntng Stnry Gen Off Exp      ,DE03,Stationery,272,"1,195.00",10/17/2012,R,OVENDEN PAPERS LTD            
2012-NOV,Central Services,Fully rechargeable Overheads,AD Customer Services                    ,E02180,Supplies & Services           ,Prntng Stnry Gen Off Exp      ,DE03,Stationery,273,"1,195.00",10/17/2012,R,OVENDEN PAPERS LTD            
2012-NOV,Central Services,Fully rechargeable Overheads,Post Room                               ,E02220,Supplies & Services           ,Equip Furniture/Materials     ,DA01,Equipment - R & M,274,864.77,9/27/2012,R,NEOPOST FINANCE LIMITED       
2012-NOV,Central Services,Fully rechargeable Overheads,Post Room                               ,E02220,Supplies & Services           ,Equip Furniture/Materials     ,DA01,Equipment - R & M,275,"4,832.11",10/29/2012,R,NEOPOST FINANCE LIMITED       
2012-NOV,Central Services,Fully rechargeable Overheads,Post Room                               ,E02220,Supplies & Services           ,Equip Furniture/Materials     ,DA01,Equipment - R & M,276,"1,424.47",11/1/2012,R,NEOPOST FINANCE LIMITED       
2012-NOV,Central Services,Fully rechargeable Overheads,Post Room                               ,E02220,Supplies & Services           ,Comms and Computing           ,DG04,Postage - General,277,"2,372.70",6/27/2012,R,DX NETWORK SERVICES           
2012-NOV,Central Services,Fully rechargeable Overheads,Post Room                               ,E02220,Supplies & Services           ,Comms and Computing           ,DG04,Postage - General,278,520,9/26/2012,R,TRAVELCARE                    
2012-NOV,Central Services,Fully rechargeable Overheads,Post Room                               ,E02220,Supplies & Services           ,Comms and Computing           ,DG04,Postage - General,279,635,11/1/2012,R,TRAVELCARE                    
2012-NOV,Central Services,Fully rechargeable Overheads,Civic Centre                            ,E02222,Premises Related Expenditure  ,RepairsAlterations&MtceOfBldgs,BA29,Build Maint Mgt Fees,280,713.9,11/9/2012,R,UNIQUE OFFICE SOLUTIONS LTD   
2012-NOV,Central Services,Fully rechargeable Overheads,Civic Centre                            ,E02222,Premises Related Expenditure  ,Cleaning and Domestic Supplies,BH01,Cleaning Materials,281,510.6,11/7/2012,R,GREENHAM                      
2012-NOV,Central Services,Fully rechargeable Overheads,Civic Centre                            ,E02222,Premises Related Expenditure  ,Cleaning and Domestic Supplies,BH03,Cleaning Services,282,"1,875.68",10/31/2012,R,DYNAMIQ CLEANING LIMITED      
2012-NOV,Central Services,Fully rechargeable Overheads,Civic Centre                            ,E02222,Premises Related Expenditure  ,Cleaning and Domestic Supplies,BH03,Cleaning Services,283,881.21,10/31/2012,R,DYNAMIQ CLEANING LIMITED      
2012-NOV,Central Services,Fully rechargeable Overheads,Civic Centre                            ,E02222,Premises Related Expenditure  ,Cleaning and Domestic Supplies,BH03,Cleaning Services,284,887.21,10/31/2012,R,DYNAMIQ CLEANING LIMITED      
2012-NOV,Central Services,Fully rechargeable Overheads,Civic Centre                            ,E02222,Premises Related Expenditure  ,Cleaning and Domestic Supplies,BH03,Cleaning Services,285,"5,476.41",10/31/2012,R,DYNAMIQ CLEANING LIMITED      
2012-NOV,Central Services,Fully rechargeable Overheads,Civic Centre                            ,E02222,Third Party Payments          ,Private Contractors           ,EH10,Contract Payments,286,"3,771.17",10/24/2012,R,ISS COLLECTIONS LTD           
2012-NOV,Central Services,Fully rechargeable Overheads,Civic Centre                            ,E02222,Third Party Payments          ,Private Contractors           ,EH10,Contract Payments,287,"1,056.35",10/24/2012,R,ISS COLLECTIONS LTD           
2012-NOV,Central Services,Fully rechargeable Overheads,Gifford House                           ,E02223,Premises Related Expenditure  ,Cleaning and Domestic Supplies,BH03,Cleaning Services,288,510.7,10/31/2012,R,DYNAMIQ CLEANING LIMITED      
2012-NOV,Central Services,Fully rechargeable Overheads,Morden Park House                       ,E02229,Premises Related Expenditure  ,Cleaning and Domestic Supplies,BH03,Cleaning Services,289,958.85,10/31/2012,R,DYNAMIQ CLEANING LIMITED      
2012-NOV,Central Services,Fully rechargeable Overheads,Facilities                              ,E02231,Employees                     ,Indirect Employee Expenses    ,AB02,Recruitment Adverts,290,"4,000.00",10/22/2012,R,HAYS RECRUITING EXPERTS       
2012-NOV,Central Services,Fully rechargeable Overheads,Facilities                              ,E02231,Premises Related Expenditure  ,RepairsAlterations&MtceOfBldgs,BA06,Repairs & Maintenance General,291,"7,680.00",10/10/2012,R,FORBO FLOORING UK LTD         
2012-NOV,Central Services,Fully rechargeable Overheads,Facilities                              ,E02231,Premises Related Expenditure  ,RepairsAlterations&MtceOfBldgs,BA29,Build Maint Mgt Fees,292,"3,000.00",10/18/2012,R,CIPFA                         
2012-NOV,Central Services,Fully rechargeable Overheads,Facilities                              ,E02231,Premises Related Expenditure  ,RepairsAlterations&MtceOfBldgs,BA29,Build Maint Mgt Fees,293,"12,960.00",10/18/2012,R,CIPFA                         
2012-NOV,Central Services,Fully rechargeable Overheads,Facilities                              ,E02231,Premises Related Expenditure  ,RepairsAlterations&MtceOfBldgs,BA89,Fire Safety Risk Assessment,294,"4,074.00",10/30/2012,R,FIRST CHOICE FACILITIES PLC   
2012-NOV,Central Services,Fully rechargeable Overheads,Facilities                              ,E02231,Premises Related Expenditure  ,RepairsAlterations&MtceOfBldgs,BA89,Fire Safety Risk Assessment,295,"4,332.00",10/31/2012,R,FIRST CHOICE FACILITIES PLC   
2012-NOV,Central Services,Fully rechargeable Overheads,Facilities                              ,E02231,Premises Related Expenditure  ,RepairsAlterations&MtceOfBldgs,BA89,Fire Safety Risk Assessment,296,"6,091.00",9/30/2012,R,FIRST CHOICE FACILITIES PLC   
2012-NOV,Central Services,Fully rechargeable Overheads,FM External Fees                        ,E02239,Supplies & Services           ,Services                      ,DF57,Consulting Engineers Fees,297,"5,500.00",8/17/2012,R,COMPLEMENT CONSULTING LIMITED 
2012-NOV,Central Services,Fully rechargeable Overheads,FM External Fees                        ,E02239,Supplies & Services           ,Services                      ,DF57,Consulting Engineers Fees,298,"1,461.33",8/17/2012,R,COMPLEMENT CONSULTING LIMITED 
2012-NOV,Central Services,Fully rechargeable Overheads,FM External Fees                        ,E02239,Supplies & Services           ,Services                      ,DF57,Consulting Engineers Fees,299,"6,069.33",8/17/2012,R,COMPLEMENT CONSULTING LIMITED 
2012-NOV,Central Services,Fully rechargeable Overheads,FM External Fees                        ,E02239,Supplies & Services           ,Services                      ,DF57,Consulting Engineers Fees,300,"6,898.87",8/17/2012,R,COMPLEMENT CONSULTING LIMITED 
2012-NOV,Central Services,Fully rechargeable Overheads,Corporate Services Buildings            ,E02240,Premises Related Expenditure  ,RepairsAlterations&MtceOfBldgs,BA01,DDM - General Building,301,"1,095.77",9/12/2012,R,COFELY LIMITED                
2012-NOV,Central Services,Fully rechargeable Overheads,Corporate Services Buildings            ,E02240,Premises Related Expenditure  ,RepairsAlterations&MtceOfBldgs,BA01,DDM - General Building,302,850,11/5/2012,R,JAYS CASH & CARRY GLASS       
2012-NOV,Central Services,Fully rechargeable Overheads,Corporate Services Buildings            ,E02240,Premises Related Expenditure  ,RepairsAlterations&MtceOfBldgs,BA01,DDM - General Building,303,601.26,10/16/2012,R,PJ HARVEY & CO LTD            
2012-NOV,Central Services,Fully rechargeable Overheads,Corporate Services Buildings            ,E02240,Premises Related Expenditure  ,RepairsAlterations&MtceOfBldgs,BA03,DDM - Mechanical,304,993.12,9/27/2012,R,COFELY LIMITED                
2012-NOV,Central Services,Fully rechargeable Overheads,Corporate Services Buildings            ,E02240,Premises Related Expenditure  ,RepairsAlterations&MtceOfBldgs,BA03,DDM - Mechanical,305,"1,500.00",9/27/2012,R,COFELY LIMITED                
2012-NOV,Central Services,Fully rechargeable Overheads,Corporate Services Buildings            ,E02240,Premises Related Expenditure  ,RepairsAlterations&MtceOfBldgs,BA03,DDM - Mechanical,306,"2,386.49",9/27/2012,R,COFELY LIMITED                
2012-NOV,Central Services,Fully rechargeable Overheads,Corporate Services Buildings            ,E02240,Premises Related Expenditure  ,RepairsAlterations&MtceOfBldgs,BA03,DDM - Mechanical,307,"4,098.21",10/25/2012,R,COFELY LIMITED                
2012-NOV,Central Services,Fully rechargeable Overheads,Corporate Services Buildings            ,E02240,Premises Related Expenditure  ,RepairsAlterations&MtceOfBldgs,BA05,DDM - Electrical,308,"2,270.40",11/14/2012,R,EDMUNDSON ELECTRICAL LTD      
2012-NOV,Central Services,Fully rechargeable Overheads,Corporate Services Buildings            ,E02240,Premises Related Expenditure  ,Energy Costs                  ,BB02,Electricity,309,"1,218.75",11/1/2012,R,EDF ENERGY 1 LIMITED          
2012-NOV,Central Services,Fully rechargeable Overheads,Corporate Services Buildings            ,E02240,Premises Related Expenditure  ,Energy Costs                  ,BB02,Electricity,310,"1,217.54",10/31/2012,R,EDF ENERGY 1 LIMITED          
2012-NOV,Central Services,Fully rechargeable Overheads,Corporate Services Buildings            ,E02240,Premises Related Expenditure  ,Energy Costs                  ,BB03,Gas (incl. Butane),311,"1,787.87",10/22/2012,R,KENT COUNTY COUNCIL           
2012-NOV,Central Services,Fully rechargeable Overheads,Corporate Services Buildings            ,E02240,Premises Related Expenditure  ,Water Services                ,BE01,Use of Water (Metered),312,981.47,10/26/2012,R,SUTTON & EAST SURREY WATER PLC
2012-NOV,Cultural Env Reg&Plan Services,Open Spaces,E & R Buildings                         ,E02344,Premises Related Expenditure  ,RepairsAlterations&MtceOfBldgs,BA03,DDM - Mechanical,313,569.45,10/25/2012,R,COFELY LIMITED                
2012-NOV,Adult Social Care,Adult u65 Phys/Sensory Impair,C & H Buildings                         ,E02345,Premises Related Expenditure  ,RepairsAlterations&MtceOfBldgs,BA03,DDM - Mechanical,314,694.4,10/25/2012,R,COFELY LIMITED                
2012-NOV,Cultural Env Reg&Plan Services,Open Spaces,Leisure Buildings                       ,E02350,Premises Related Expenditure  ,RepairsAlterations&MtceOfBldgs,BA01,DDM - General Building,315,529.25,7/26/2012,R,SALTASH ENTERPRISES LTD       
2012-NOV,Cultural Env Reg&Plan Services,Open Spaces,Leisure Buildings                       ,E02350,Premises Related Expenditure  ,RepairsAlterations&MtceOfBldgs,BA03,DDM - Mechanical,316,668.48,10/25/2012,R,COFELY LIMITED                
2012-NOV,Central Services,Fully rechargeable Overheads,Director of Corporate Services          ,E04060,Employees                     ,Direct Employee Expenses      ,AA17,Agency Staff & Casual Paymts,317,"10,075.00",10/21/2012,R,REDACTED
2012-NOV,Central Services,Fully rechargeable Overheads,Director of Corporate Services          ,E04060,Employees                     ,Direct Employee Expenses      ,AA17,Agency Staff & Casual Paymts,318,"7,150.00",11/2/2012,R,REDACTED
2012-NOV,Central Services,Fully rechargeable Overheads,AD RESOURCES                            ,E04061,Employees                     ,Direct Employee Expenses      ,AA17,Agency Staff & Casual Paymts,319,"14,000.00",10/10/2012,R,REDACTED
2012-NOV,Central Services,Fully rechargeable Overheads,AD RESOURCES                            ,E04061,Supplies & Services           ,Services                      ,DF03,Consultants,320,"9,660.00",10/31/2012,R,PUBLIC SECTOR CONSULTANTS     
2012-NOV,Central Services,Fully rechargeable Overheads,Corporate Accountancy                   ,E06209,Supplies & Services           ,Services                      ,DF58,Audit Fee,321,"57,795.00",9/21/2012,R,ERNST & YOUNG LLP             
2012-NOV,Central Services,Fully rechargeable Overheads,Corporate Accountancy                   ,E06209,Supplies & Services           ,Services                      ,DF58,Audit Fee,322,"12,430.50",11/2/2012,R,AUDIT COMMISSION              
2012-NOV,Central Services,Fully rechargeable Overheads,Corporate Accountancy                   ,E06209,Supplies & Services           ,Grants and Subscriptions      ,DJ04,Subscriptions,323,500,10/23/2012,R,KPMG LLP FEES ACCOUNT         
2012-NOV,Central Services,Fully rechargeable Overheads,Treasury & Insurance                    ,E06222,Employees                     ,Direct Employee Expenses      ,AA17,Agency Staff & Casual Paymts,324,"7,050.00",11/27/2012,R,RANDSTAD FIN & PROF LTD.      
2012-NOV,Central Services,Fully rechargeable Overheads,Parking Cash Collect'n Contrct          ,E06225,Third Party Payments          ,Private Contractors           ,EH02,Miscellaneous Hired Services,325,"1,089.00",7/31/2012,R,BANKING AUTOMATION LTD        
2012-NOV,Central Services,Fully rechargeable Overheads,Parking Cash Collect'n Contrct          ,E06225,Third Party Payments          ,Private Contractors           ,EH02,Miscellaneous Hired Services,326,"10,251.85",7/31/2012,R,BANKING AUTOMATION LTD        
2012-NOV,Central Services,Fully rechargeable Overheads,Parking Cash Collect'n Contrct          ,E06225,Third Party Payments          ,Private Contractors           ,EH02,Miscellaneous Hired Services,327,"12,157.90",10/31/2012,R,BANKING AUTOMATION LTD        
2012-NOV,Central Services,Fully rechargeable Overheads,Establishments' Cash Collect'n          ,E06226,Third Party Payments          ,Private Contractors           ,EH02,Miscellaneous Hired Services,328,702.65,10/31/2012,R,LOOMIS UK LTD                 
2012-NOV,Central Services,Fully rechargeable Overheads,Service Accountancy                     ,E06227,Employees                     ,Direct Employee Expenses      ,AA17,Agency Staff & Casual Paymts,329,"2,300.00",10/5/2012,R,RANDSTAD FIN & PROF LTD.      
2012-NOV,Central Services,Fully rechargeable Overheads,Service Accountancy                     ,E06227,Employees                     ,Direct Employee Expenses      ,AA17,Agency Staff & Casual Paymts,330,"2,300.00",11/19/2012,R,RANDSTAD FIN & PROF LTD.      
2012-NOV,Central Services,Fully rechargeable Overheads,Service Accountancy                     ,E06227,Employees                     ,Direct Employee Expenses      ,AA17,Agency Staff & Casual Paymts,331,"5,000.00",11/26/2012,R,RANDSTAD FIN & PROF LTD.      
2012-NOV,Central Services,Fully rechargeable Overheads,Service Accountancy                     ,E06227,Employees                     ,Indirect Employee Expenses    ,AB57,External Training Costs,332,"3,500.00",11/1/2012,R,ARLINGCLOSE LTD               
2012-NOV,Central Services,Fully rechargeable Overheads,AD CORPORATE GOVERNANCE               ,E10279,Employees                     ,Indirect Employee Expenses    ,AB57,External Training Costs,333,"1,390.00",10/30/2012,R,AEA (BOOKINGS)                
2012-NOV,Central Services,Fully rechargeable Overheads,AD CORPORATE GOVERNANCE               ,E10279,Supplies & Services           ,Prntng Stnry Gen Off Exp      ,DE03,Stationery,334,"1,666.73",10/19/2012,R,FINANCIAL DATA MANAGEMENT PLC 
2012-NOV,Central Services,Fully rechargeable Overheads,AD CORPORATE GOVERNANCE               ,E10279,Supplies & Services           ,Prntng Stnry Gen Off Exp      ,DE03,Stationery,335,"2,121.75",10/1/2012,R,FINANCIAL DATA MANAGEMENT PLC 
2012-NOV,Central Services,Fully rechargeable Overheads,AD CORPORATE GOVERNANCE               ,E10279,Supplies & Services           ,Grants and Subscriptions      ,DJ04,Subscriptions,336,"2,075.00",11/14/2012,R,AUDIT COMMISSION              
2012-NOV,Central Services,Fully rechargeable Overheads,Legal Services                          ,E10282,Supplies & Services           ,Services                      ,DF28,Court Fees,337,"3,205.00",11/14/2012,R,REDACTED
2012-NOV,Central Services,Fully rechargeable Overheads,Legal Services                          ,E10282,Supplies & Services           ,Services                      ,DF28,Court Fees,338,"1,980.00",11/14/2012,R,REDACTED
2012-NOV,Central Services,Fully rechargeable Overheads,Legal Services                          ,E10282,Supplies & Services           ,Services                      ,DF28,Court Fees,339,"2,225.00",11/14/2012,R,REDACTED
2012-NOV,Central Services,Fully rechargeable Overheads,Legal Services                          ,E10282,Supplies & Services           ,Services                      ,DF28,Court Fees,340,600,11/14/2012,R,REDACTED
2012-NOV,Central Services,Fully rechargeable Overheads,Legal Services                          ,E10282,Supplies & Services           ,Services                      ,DF28,Court Fees,341,"2,225.00",11/27/2012,R,REDACTED
2012-NOV,Central Services,Elections,Electoral Registration                  ,E10285,Supplies & Services           ,Comms and Computing           ,DG04,Postage - General,342,"1,122.15",10/15/2012,R,ROYAL MAIL GROUP LTD          
2012-NOV,Central Services,Fully rechargeable Overheads,Shared Legal Service                    ,E10288,Supplies & Services           ,Equip Furniture/Materials     ,DA80,Books,343,788,10/3/2012,R,THOMSON REUTERS               
2012-NOV,Central Services,Fully rechargeable Overheads,Shared Legal Service                    ,E10288,Supplies & Services           ,Equip Furniture/Materials     ,DA80,Books,344,"29,990.00",11/12/2012,R,LEXIS NEXIS                   
2012-NOV,Central Services,Fully rechargeable Overheads,Shared Legal Service                    ,E10288,Supplies & Services           ,Services                      ,DF95,Services from Provider,345,"1,059.10",10/2/2012,R,KENT COUNTY COUNCIL           
2012-NOV,Central Services,Fully rechargeable Overheads,Shared Legal Service                    ,E10288,Supplies & Services           ,Services                      ,DF95,Services from Provider,346,"4,752.60",8/24/2012,R,KENT COUNTY COUNCIL           
2012-NOV,Central Services,Fully rechargeable Overheads,Shared Legal Service                    ,E10288,Supplies & Services           ,Services                      ,DF95,Services from Provider,347,783.2,8/6/2012,R,KENT COUNTY COUNCIL           
2012-NOV,Central Services,Fully rechargeable Overheads,Shared Legal Service                    ,E10288,Supplies & Services           ,Services                      ,DF95,Services from Provider,348,790.3,10/29/2012,R,KENT COUNTY COUNCIL           
2012-NOV,Central Services,Fully rechargeable Overheads,Shared Legal Service                    ,E10288,Supplies & Services           ,Comms and Computing           ,DG02,Software Licences,349,"12,307.50",10/29/2012,R,ZYLPHA LIMITED                
2012-NOV,Central Services,Fully rechargeable Overheads,Shared Legal Service                    ,E10288,Supplies & Services           ,Comms and Computing           ,DG04,Postage - General,350,750,11/12/2012,R,ROYAL MAIL GROUP LTD          
2012-NOV,Central Services,Fully rechargeable Overheads,Richmond Legal                          ,E10289,Supplies & Services           ,Services                      ,DF11,Counsel's fees,351,"1,985.00",10/2/2012,R,REDACTED
2012-NOV,Central Services,Fully rechargeable Overheads,Richmond Legal                          ,E10289,Supplies & Services           ,Services                      ,DF11,Counsel's fees,352,"1,505.50",10/22/2012,R,REDACTED
2012-NOV,Central Services,Fully rechargeable Overheads,Richmond Legal                          ,E10289,Supplies & Services           ,Services                      ,DF11,Counsel's fees,353,"1,714.60",10/11/2012,R,REDACTED
2012-NOV,Central Services,Fully rechargeable Overheads,Richmond Legal                          ,E10289,Supplies & Services           ,Services                      ,DF11,Counsel's fees,354,750,10/24/2012,R,REDACTED
2012-NOV,Central Services,Fully rechargeable Overheads,Richmond Legal                          ,E10289,Supplies & Services           ,Services                      ,DF11,Counsel's fees,355,"2,365.00",10/25/2012,R,REDACTED
2012-NOV,Central Services,Fully rechargeable Overheads,Richmond Legal                          ,E10289,Supplies & Services           ,Services                      ,DF11,Counsel's fees,356,647.5,11/7/2012,R,REDACTED
2012-NOV,Central Services,Fully rechargeable Overheads,Richmond Legal                          ,E10289,Supplies & Services           ,Services                      ,DF14,Doctors and other fees,357,680.25,10/16/2012,R,SECECETRA EXPERT SERVICES     
2012-NOV,Central Services,Fully rechargeable Overheads,Richmond Legal                          ,E10289,Supplies & Services           ,Services                      ,DF95,Services from Provider,358,"25,000.00",11/12/2012,R,REDACTED
2012-NOV,Central Services,Fully rechargeable Overheads,Richmond Legal                          ,E10289,Supplies & Services           ,Services                      ,DF95,Services from Provider,359,"11,500.00",11/21/2012,R,BRENT PRIVATE TENANT RIGHTS GP
2012-NOV,Central Services,Fully rechargeable Overheads,Richmond Legal                          ,E10289,Supplies & Services           ,Services                      ,DF95,Services from Provider,360,"2,921.00",11/12/2012,R,REDACTED
2012-NOV,Central Services,Fully rechargeable Overheads,Coroners Courts                         ,E11300,Third Party Payments          ,Joint Authorities             ,EC11,SW Inner London Coroners Crt C,361,"49,747.00",10/18/2012,R,CITY OF WESTMINSTER           
2012-NOV,Central Services,Fully rechargeable Overheads,AD Business Improvement                 ,E14358,Employees                     ,Direct Employee Expenses      ,AA17,Agency Staff & Casual Paymts,362,"2,034.00",10/25/2012,R,HAYS RECRUITING EXPERTS       
2012-NOV,Central Services,Fully rechargeable Overheads,AD Business Improvement                 ,E14358,Employees                     ,Direct Employee Expenses      ,AA17,Agency Staff & Casual Paymts,363,"2,260.00",10/25/2012,R,HAYS RECRUITING EXPERTS       
2012-NOV,Central Services,Fully rechargeable Overheads,AD Business Improvement                 ,E14358,Employees                     ,Direct Employee Expenses      ,AA17,Agency Staff & Casual Paymts,364,"1,808.00",11/15/2012,R,HAYS RECRUITING EXPERTS       
2012-NOV,Central Services,Fully rechargeable Overheads,AD Business Improvement                 ,E14358,Employees                     ,Direct Employee Expenses      ,AA17,Agency Staff & Casual Paymts,365,"2,260.00",11/12/2012,R,HAYS RECRUITING EXPERTS       
2012-NOV,Central Services,Fully rechargeable Overheads,BI IT Projects                          ,E14360,Supplies & Services           ,Services                      ,DF03,Consultants,366,950,10/18/2012,R,ASH INFORMATION SYSTEMS LTD   
2012-NOV,Central Services,Fully rechargeable Overheads,Systems & Projects                      ,E14366,Employees                     ,Indirect Employee Expenses    ,AB02,Recruitment Adverts,367,640,11/13/2012,R,PENNA COMMUNICATIONS (NO 2 A/C
2012-NOV,Central Services,Fully rechargeable Overheads,Systems & Projects                      ,E14366,Employees                     ,Indirect Employee Expenses    ,AB57,External Training Costs,368,"2,000.00",9/28/2012,R,FIRMSTEP                      
2012-NOV,Central Services,Fully rechargeable Overheads,Systems & Projects                      ,E14366,Supplies & Services           ,Equip Furniture/Materials     ,DA65,Application Licenses,369,"14,500.00",9/28/2012,R,FIRMSTEP                      
2012-NOV,Central Services,Fully rechargeable Overheads,Systems & Projects                      ,E14366,Supplies & Services           ,Equip Furniture/Materials     ,DA83,Projects,370,"3,000.00",9/28/2012,R,FIRMSTEP                      
2012-NOV,Central Services,Fully rechargeable Overheads,Systems & Projects                      ,E14366,Supplies & Services           ,Equip Furniture/Materials     ,DA83,Projects,371,"4,000.00",9/28/2012,R,FIRMSTEP                      
2012-NOV,Central Services,Fully rechargeable Overheads,Systems & Projects                      ,E14366,Supplies & Services           ,Equip Furniture/Materials     ,DA83,Projects,372,"-3,000.00",11/1/2012,R,FIRMSTEP                      
2012-NOV,Central Services,Fully rechargeable Overheads,Systems & Projects                      ,E14366,Supplies & Services           ,Services                      ,DF03,Consultants,373,"1,250.00",10/17/2012,R,CASHFRIDAY                    
2012-NOV,Central Services,Fully rechargeable Overheads,Systems & Projects                      ,E14366,Supplies & Services           ,Services                      ,DF03,Consultants,374,"1,250.00",10/24/2012,R,CASHFRIDAY                    
2012-NOV,Central Services,Fully rechargeable Overheads,Systems & Projects                      ,E14366,Supplies & Services           ,Services                      ,DF03,Consultants,375,750,10/31/2012,R,CASHFRIDAY                    
2012-NOV,Central Services,Fully rechargeable Overheads,Operations & Telecomms                  ,E14367,Supplies & Services           ,Comms and Computing           ,DG15,Network Maintenance,376,"101,505.00",10/29/2012,R,SYNETRIX LIMITED              
2012-NOV,Central Services,Fully rechargeable Overheads,Operations & Telecomms                  ,E14367,Supplies & Services           ,Comms and Computing           ,DG15,Network Maintenance,377,"3,263.90",10/22/2012,R,VIRGIN MEDIA PAYMENTS LIMITED 
2012-NOV,Central Services,Fully rechargeable Overheads,Operations & Telecomms                  ,E14367,Supplies & Services           ,Comms and Computing           ,DG15,Network Maintenance,378,"1,466.99",10/31/2012,R,AXIAL SYSTEMS                 
2012-NOV,Central Services,Fully rechargeable Overheads,Operations & Telecomms                  ,E14367,Supplies & Services           ,Comms and Computing           ,DG15,Network Maintenance,379,"1,466.99",10/31/2012,R,AXIAL SYSTEMS                 
2012-NOV,Central Services,Fully rechargeable Overheads,Operations & Telecomms                  ,E14367,Supplies & Services           ,Comms and Computing           ,DG15,Network Maintenance,380,"2,932.01",10/31/2012,R,AXIAL SYSTEMS                 
2012-NOV,Central Services,Fully rechargeable Overheads,Operations & Telecomms                  ,E14367,Supplies & Services           ,Comms and Computing           ,DG15,Network Maintenance,381,"2,932.96",10/31/2012,R,AXIAL SYSTEMS                 
2012-NOV,Central Services,Fully rechargeable Overheads,Distributed Services                    ,E14368,Supplies & Services           ,Comms and Computing           ,DG63,Software Licences - Data,382,"1,619.10",9/25/2012,R,CIVICA UK LIMITED             
2012-NOV,Central Services,Fully rechargeable Overheads,Distributed Services                    ,E14368,Supplies & Services           ,Comms and Computing           ,DG63,Software Licences - Data,383,"1,000.00",11/14/2012,R,GEOINFORMATION GROUP          
2012-NOV,Central Services,Fully rechargeable Overheads,Distributed Services                    ,E14368,Supplies & Services           ,Comms and Computing           ,DG63,Software Licences - Data,384,"16,683.15",9/25/2012,R,INFOR GLOBAL SOLUTIONS-FRIMLEY
2012-NOV,Central Services,Fully rechargeable Overheads,Distributed Services                    ,E14368,Supplies & Services           ,Comms and Computing           ,DG63,Software Licences - Data,385,"4,364.00",10/10/2012,R,FIRMSTEP                      
2012-NOV,Central Services,Fully rechargeable Overheads,Distributed Services                    ,E14368,Supplies & Services           ,Comms and Computing           ,DG65,Application Licences,386,"10,800.00",11/2/2012,R,BDO STOY HAYWARD LLP          
2012-NOV,Central Services,Fully rechargeable Overheads,Distributed Services                    ,E14368,Supplies & Services           ,Comms and Computing           ,DG65,Application Licences,387,"1,200.00",11/21/2012,R,SOCITM LTD                    
2012-NOV,Central Services,Fully rechargeable Overheads,Facilities Magt Cptal Works             ,E14370,Premises Related Expenditure  ,RepairsAlterations&MtceOfBldgs,BA01,DDM - General Building,388,950,8/3/2012,R,COMPLEMENT CONSULTING LIMITED 
2012-NOV,Cultural Env Reg&Plan Services,SMSS (Env),ES Support & Development                ,G00070,Supplies & Services           ,Expenses                      ,DH02,Conferences,389,"1,350.00",10/29/2012,R,OXFORD COLLEGE OF MARKETING   
2012-NOV,Cultural Env Reg&Plan Services,SMSS (Env),Senior Mgt. - E.S.C.                    ,G00100,Supplies & Services           ,Services                      ,DF03,Consultants,390,"23,125.00",11/6/2012,R,EUNOMIA RESEARCH & CONSULTING 
2012-NOV,Cultural Env Reg&Plan Services,SMSS (Env),Senior Mgt. - E.S.C.                    ,G00100,Supplies & Services           ,Services                      ,DF11,Counsel's fees,391,"4,050.00",9/26/2012,R,REDACTED
2012-NOV,Highways & Transport Services,Structural Maintenance,C'way & F'way Mtce                      ,G00121,Supplies & Services           ,Services                      ,DF03,Consultants,392,"2,960.00",6/15/2012,R,METIS CONSULTANTS LIMITED     
2012-NOV,Highways & Transport Services,Structural Maintenance,C'way & F'way Mtce                      ,G00121,Supplies & Services           ,Grants and Subscriptions      ,DJ04,Subscriptions,393,"7,180.00",7/23/2012,R,IHS(GLOBAL)LTD                
2012-NOV,Highways & Transport Services,Structural Maintenance,C'way & F'way Mtce                      ,G00121,Supplies & Services           ,Grants and Subscriptions      ,DJ04,Subscriptions,394,"1,450.00",7/23/2012,R,IHS(GLOBAL)LTD                
2012-NOV,Highways & Transport Services,Structural Maintenance,Surf Water Drainage                     ,G00123,Third Party Payments          ,Private Contractors           ,EH56,Carriageway/Fway Maint,395,"2,200.56",11/23/2012,R,FM CONWAY LTD                 
2012-NOV,Highways & Transport Services,Structural Maintenance,Surf Water Drainage                     ,G00123,Third Party Payments          ,Private Contractors           ,EH56,Carriageway/Fway Maint,396,"1,144.45",11/26/2012,R,FM CONWAY LTD                 
2012-NOV,Highways & Transport Services,Env Safety&Routine Maintenance,Walk Sheets                             ,G00127,Third Party Payments          ,Private Contractors           ,EH56,Carriageway/Fway Maint,397,"1,039.50",10/27/2012,R,NEWSQUEST (LONDON)LTD         
2012-NOV,Highways & Transport Services,Env Safety&Routine Maintenance,Walk Sheets                             ,G00127,Third Party Payments          ,Private Contractors           ,EH56,Carriageway/Fway Maint,398,"2,118.30",11/13/2012,R,FM CONWAY LTD                 
2012-NOV,Highways & Transport Services,Env Safety&Routine Maintenance,Walk Sheets                             ,G00127,Third Party Payments          ,Private Contractors           ,EH56,Carriageway/Fway Maint,399,"47,013.13",11/13/2012,R,FM CONWAY LTD                 
2012-NOV,Highways & Transport Services,Env Safety&Routine Maintenance,Walk Sheets                             ,G00127,Third Party Payments          ,Private Contractors           ,EH56,Carriageway/Fway Maint,400,"49,788.73",11/13/2012,R,FM CONWAY LTD                 
2012-NOV,Highways & Transport Services,Env Safety&Routine Maintenance,Walk Sheets                             ,G00127,Third Party Payments          ,Private Contractors           ,EH56,Carriageway/Fway Maint,401,"1,204.69",11/10/2012,R,FM CONWAY LTD                 
2012-NOV,Highways & Transport Services,Env Safety&Routine Maintenance,Walk Sheets                             ,G00127,Third Party Payments          ,Private Contractors           ,EH56,Carriageway/Fway Maint,402,"1,204.69",11/10/2012,R,FM CONWAY LTD                 
2012-NOV,Highways & Transport Services,Env Safety&Routine Maintenance,Walk Sheets                             ,G00127,Third Party Payments          ,Private Contractors           ,EH56,Carriageway/Fway Maint,403,"12,308.84",11/14/2012,R,FM CONWAY LTD                 
2012-NOV,Highways & Transport Services,Env Safety&Routine Maintenance,Walk Sheets                             ,G00127,Third Party Payments          ,Private Contractors           ,EH56,Carriageway/Fway Maint,404,"3,301.99",11/19/2012,R,FM CONWAY LTD                 
2012-NOV,Highways & Transport Services,Env Safety&Routine Maintenance,Walk Sheets                             ,G00127,Third Party Payments          ,Private Contractors           ,EH56,Carriageway/Fway Maint,405,"1,316.70",11/10/2012,R,NEWSQUEST (LONDON)LTD         
2012-NOV,Highways & Transport Services,Env Safety&Routine Maintenance,Walk Sheets                             ,G00127,Third Party Payments          ,Private Contractors           ,EH56,Carriageway/Fway Maint,406,"2,691.16",11/23/2012,R,FM CONWAY LTD                 
2012-NOV,Highways & Transport Services,Env Safety&Routine Maintenance,Walk Sheets                             ,G00127,Third Party Payments          ,Private Contractors           ,EH56,Carriageway/Fway Maint,407,"2,545.03",11/23/2012,R,FM CONWAY LTD                 
2012-NOV,Highways & Transport Services,Env Safety&Routine Maintenance,Walk Sheets                             ,G00127,Third Party Payments          ,Private Contractors           ,EH56,Carriageway/Fway Maint,408,"2,716.06",11/23/2012,R,FM CONWAY LTD                 
2012-NOV,Highways & Transport Services,Env Safety&Routine Maintenance,Walk Sheets                             ,G00127,Third Party Payments          ,Private Contractors           ,EH56,Carriageway/Fway Maint,409,"1,308.40",11/26/2012,R,FM CONWAY LTD                 
2012-NOV,Highways & Transport Services,Env Safety&Routine Maintenance,Walk Sheets                             ,G00127,Third Party Payments          ,Private Contractors           ,EH56,Carriageway/Fway Maint,410,"100,000.00",11/26/2012,R,FM CONWAY LTD                 
2012-NOV,Highways & Transport Services,Env Safety&Routine Maintenance,Traffic Signs.                          ,G00160,Third Party Payments          ,Private Contractors           ,EH01,Miscellaneous Contrct Services,411,845,11/14/2012,R,FM CONWAY LTD                 
2012-NOV,Highways & Transport Services,Env Safety&Routine Maintenance,Traffic Signs.                          ,G00160,Third Party Payments          ,Private Contractors           ,EH01,Miscellaneous Contrct Services,412,"1,820.00",11/14/2012,R,FM CONWAY LTD                 
2012-NOV,Highways & Transport Services,Env Safety&Routine Maintenance,Traffic Signs.                          ,G00160,Third Party Payments          ,Private Contractors           ,EH02,Miscellaneous Hired Services,413,876.37,11/13/2012,R,FM CONWAY LTD                 
2012-NOV,Highways & Transport Services,Tr'sport Plg / Policy / Str'gy,CPZ implementation & Consultat          ,G00211,Third Party Payments          ,Private Contractors           ,EH56,Carriageway/Fway Maint,414,641.2,11/13/2012,R,FM CONWAY LTD                 
2012-NOV,Highways & Transport Services,Tr'sport Plg / Policy / Str'gy,CPZ implementation & Consultat          ,G00211,Third Party Payments          ,Private Contractors           ,EH56,Carriageway/Fway Maint,415,"8,972.67",11/23/2012,R,FM CONWAY LTD                 
2012-NOV,Highways & Transport Services,Tr'sport Plg / Policy / Str'gy,CPZ implementation & Consultat          ,G00211,Third Party Payments          ,Private Contractors           ,EH56,Carriageway/Fway Maint,416,"4,995.02",11/23/2012,R,FM CONWAY LTD                 
2012-NOV,Highways & Transport Services,Traffic Mgt & Road Safety,Tr Man & Accid Sch                      ,G00220,Third Party Payments          ,Private Contractors           ,EH02,Miscellaneous Hired Services,417,831.6,10/20/2012,R,NEWSQUEST (LONDON)LTD         
2012-NOV,Highways & Transport Services,Traffic Mgt & Road Safety,Tr Man & Accid Sch                      ,G00220,Third Party Payments          ,Private Contractors           ,EH02,Miscellaneous Hired Services,418,559.44,11/13/2012,R,FM CONWAY LTD                 
2012-NOV,Highways & Transport Services,Traffic Mgt & Road Safety,Tr Man & Accid Sch                      ,G00220,Third Party Payments          ,Private Contractors           ,EH02,Miscellaneous Hired Services,419,831.6,11/3/2012,R,NEWSQUEST (LONDON)LTD         
2012-NOV,Highways & Transport Services,Street Lights(Inc Energy Cost),Street Lighting .                       ,G00260,Premises Related Expenditure  ,Energy Costs                  ,BB02,Electricity,420,"7,531.37",10/10/2012,R,KENT COUNTY COUNCIL           
2012-NOV,Highways & Transport Services,Street Lights(Inc Energy Cost),Street Lighting .                       ,G00260,Premises Related Expenditure  ,Energy Costs                  ,BB02,Electricity,421,"45,867.22",10/10/2012,R,KENT COUNTY COUNCIL           
2012-NOV,Highways & Transport Services,Street Lights(Inc Energy Cost),Street Lighting .                       ,G00260,Third Party Payments          ,Private Contractors           ,EH01,Miscellaneous Contrct Services,422,644,10/23/2012,R,UK POWER NETWORKS (OPERATIONS)
2012-NOV,Highways & Transport Services,Street Lights(Inc Energy Cost),Street Lighting .                       ,G00260,Third Party Payments          ,Private Contractors           ,EH01,Miscellaneous Contrct Services,423,644,10/23/2012,R,UK POWER NETWORKS (OPERATIONS)
2012-NOV,Highways & Transport Services,Street Lights(Inc Energy Cost),Street Lighting .                       ,G00260,Third Party Payments          ,Private Contractors           ,EH01,Miscellaneous Contrct Services,424,661,10/23/2012,R,UK POWER NETWORKS (OPERATIONS)
2012-NOV,Highways & Transport Services,Street Lights(Inc Energy Cost),Street Lighting .                       ,G00260,Third Party Payments          ,Private Contractors           ,EH01,Miscellaneous Contrct Services,425,661,10/23/2012,R,UK POWER NETWORKS (OPERATIONS)
2012-NOV,Highways & Transport Services,Street Lights(Inc Energy Cost),Street Lighting .                       ,G00260,Third Party Payments          ,Private Contractors           ,EH01,Miscellaneous Contrct Services,426,644,10/23/2012,R,UK POWER NETWORKS (OPERATIONS)
2012-NOV,Highways & Transport Services,Street Lights(Inc Energy Cost),Street Lighting .                       ,G00260,Third Party Payments          ,Private Contractors           ,EH01,Miscellaneous Contrct Services,427,"13,947.98",10/26/2012,R,MAY GURNEY LTD T/A CARTLEDGE  
2012-NOV,Highways & Transport Services,Street Lights(Inc Energy Cost),Street Lighting .                       ,G00260,Third Party Payments          ,Private Contractors           ,EH01,Miscellaneous Contrct Services,428,654.05,10/26/2012,R,MAY GURNEY LTD T/A CARTLEDGE  
2012-NOV,Highways & Transport Services,Street Lights(Inc Energy Cost),Street Lighting .                       ,G00260,Third Party Payments          ,Private Contractors           ,EH01,Miscellaneous Contrct Services,429,644,11/2/2012,R,UK POWER NETWORKS (OPERATIONS)
2012-NOV,Highways & Transport Services,Street Lights(Inc Energy Cost),Street Lighting .                       ,G00260,Third Party Payments          ,Private Contractors           ,EH01,Miscellaneous Contrct Services,430,644,11/2/2012,R,UK POWER NETWORKS (OPERATIONS)
2012-NOV,Highways & Transport Services,Street Lights(Inc Energy Cost),Street Lighting .                       ,G00260,Third Party Payments          ,Private Contractors           ,EH01,Miscellaneous Contrct Services,431,513,11/2/2012,R,UK POWER NETWORKS (OPERATIONS)
2012-NOV,Highways & Transport Services,Street Lights(Inc Energy Cost),Street Lighting .                       ,G00260,Third Party Payments          ,Private Contractors           ,EH01,Miscellaneous Contrct Services,432,644,10/18/2012,R,UK POWER NETWORKS (OPERATIONS)
2012-NOV,Highways & Transport Services,Parking Services,York Close CP                           ,G00298,Premises Related Expenditure  ,Energy Costs                  ,BB02,Electricity,433,563.94,11/6/2012,R,EDF ENERGY 1 LIMITED          
2012-NOV,Highways & Transport Services,Parking Services,St. Georges Car Park WEST M/S           ,G00302,Premises Related Expenditure  ,RepairsAlterations&MtceOfBldgs,BA06,Repairs & Maintenance General,434,"2,060.00",11/21/2012,R,TEASDALE GROUP LTD            
2012-NOV,Highways & Transport Services,Parking Services,St. Georges Car Park WEST M/S           ,G00302,Premises Related Expenditure  ,Energy Costs                  ,BB02,Electricity,435,"1,205.60",11/5/2012,R,KENT COUNTY COUNCIL           
2012-NOV,Highways & Transport Services,Parking Services,"St. Mks Rd, Multi Sty                   ",G00308,Premises Related Expenditure  ,RepairsAlterations&MtceOfBldgs,BA06,Repairs & Maintenance General,436,"5,995.00",10/30/2012,R,R.J.H.WELDING                 
2012-NOV,Highways & Transport Services,Parking Services,"St. Mks Rd, Multi Sty                   ",G00308,Premises Related Expenditure  ,RepairsAlterations&MtceOfBldgs,BA06,Repairs & Maintenance General,437,"1,430.00",11/21/2012,R,TEASDALE GROUP LTD            
2012-NOV,Highways & Transport Services,Parking Services,"St. Mks Rd, Multi Sty                   ",G00308,Premises Related Expenditure  ,Energy Costs                  ,BB02,Electricity,438,"2,743.23",10/31/2012,R,EDF ENERGY 1 LIMITED          
2012-NOV,Highways & Transport Services,Traffic Mgt & Road Safety,CYCLECITIES - INTERREG IVC              ,G00324,Supplies & Services           ,Catering                      ,DB50,Refreshments,439,847.5,11/23/2012,R,THE NATIONAL TRUST            
2012-NOV,Highways & Transport Services,Traffic Mgt & Road Safety,CYCLECITIES - INTERREG IVC              ,G00324,Supplies & Services           ,Catering                      ,DB50,Refreshments,440,574.58,11/30/2012,R,LIGHT HOUSE RESTAURANT        
2012-NOV,Highways & Transport Services,Parking Services,Civil Enforcement Officers              ,G00330,Premises Related Expenditure  ,Rents                         ,BC01,Miscellaneous Rents,441,750,10/19/2012,R,REDACTED
2012-NOV,Highways & Transport Services,Parking Services,Operational Running Costs               ,G00331,Supplies & Services           ,Equip Furniture/Materials     ,DA09,Equip-Purchases,442,"1,440.00",11/20/2012,R,RAEVAN SUPPLIES LTD           
2012-NOV,Highways & Transport Services,Parking Services,Operational Running Costs               ,G00331,Supplies & Services           ,Equip Furniture/Materials     ,DA09,Equip-Purchases,443,"1,386.20",11/21/2012,R,TEASDALE GROUP LTD            
2012-NOV,Highways & Transport Services,Parking Services,Operational Running Costs               ,G00331,Supplies & Services           ,Prntng Stnry Gen Off Exp      ,DE01,External Printing,444,742,10/29/2012,R,ORION SECURITY PRINT LIMITED  
2012-NOV,Highways & Transport Services,Parking Services,Operational Running Costs               ,G00331,Supplies & Services           ,Comms and Computing           ,DG61,Computer Servs Special,445,"3,102.80",11/19/2012,R,IMPERIAL CIVIL ENFORC.SOLUT.  
2012-NOV,Highways & Transport Services,Tr'sport Plg / Policy / Str'gy,RASWA                                   ,G00382,Supplies & Services           ,Comms and Computing           ,DG07,Computer Software,446,562.74,11/5/2012,R,SOFTCAT LTD                   
2012-NOV,Highways & Transport Services,Tr'sport Plg / Policy / Str'gy,Trench Reinstatements Unlocate          ,G00389,Supplies & Services           ,Comms and Computing           ,DG61,Computer Servs Special,447,837,11/19/2012,R,PITNEY BOWES SOFTWARE LTD     
2012-NOV,Highways & Transport Services,Structural Maintenance,Footpath Crossings.                     ,G00390,Third Party Payments          ,Private Contractors           ,EH56,Carriageway/Fway Maint,448,"12,133.92",11/13/2012,R,FM CONWAY LTD                 
2012-NOV,Highways & Transport Services,Structural Maintenance,Footpath Crossings.                     ,G00390,Third Party Payments          ,Private Contractors           ,EH56,Carriageway/Fway Maint,449,"5,993.19",11/10/2012,R,FM CONWAY LTD                 
2012-NOV,Highways & Transport Services,Structural Maintenance,Footpath Crossings.                     ,G00390,Third Party Payments          ,Private Contractors           ,EH56,Carriageway/Fway Maint,450,513,10/18/2012,R,UK POWER NETWORKS (OPERATIONS)
2012-NOV,Highways & Transport Services,Structural Maintenance,Footpath Crossings.                     ,G00390,Third Party Payments          ,Private Contractors           ,EH56,Carriageway/Fway Maint,451,"2,866.08",11/26/2012,R,FM CONWAY LTD                 
2012-NOV,Highways & Transport Services,Structural Maintenance,Footpath Crossings.                     ,G00390,Third Party Payments          ,Private Contractors           ,EH56,Carriageway/Fway Maint,452,"3,162.03",11/26/2012,R,FM CONWAY LTD                 
2012-NOV,Highways & Transport Services,Structural Maintenance,Footpath Crossings.                     ,G00390,Third Party Payments          ,Private Contractors           ,EH56,Carriageway/Fway Maint,453,571.1,11/26/2012,R,FM CONWAY LTD                 
2012-NOV,Highways & Transport Services,Structural Maintenance,Footpath Crossings.                     ,G00390,Third Party Payments          ,Private Contractors           ,EH56,Carriageway/Fway Maint,454,643,10/18/2012,R,UK POWER NETWORKS (OPERATIONS)
2012-NOV,Highways & Transport Services,Structural Maintenance,Footpath Crossings.                     ,G00390,Third Party Payments          ,Private Contractors           ,EH56,Carriageway/Fway Maint,455,"5,844.78",11/26/2012,R,FM CONWAY LTD                 
2012-NOV,Highways & Transport Services,Structural Maintenance,Footpath Crossings.                     ,G00390,Customer and client receipts  ,Charges                       ,RC64,Footway Crossovers X,456,"1,009.27",11/27/2012,R,REDACTED
2012-NOV,Cultural Env Reg&Plan Services,Street Cleaning - Not highways,Street Cleansing (Inc. Gully)           ,G00492,Premises Related Expenditure  ,Energy Costs                  ,BB02,Electricity,457,650.24,11/1/2012,R,EDF ENERGY                    
2012-NOV,Cultural Env Reg&Plan Services,Street Cleaning - Not highways,Street Cleansing (Inc. Gully)           ,G00492,Transport Related Expenditure ,Direct Transport Costs        ,CA01,Petrol Derv & Oil,458,"1,437.83",9/18/2012,R,B P OIL UK LIMITED            
2012-NOV,Cultural Env Reg&Plan Services,Street Cleaning - Not highways,Street Cleansing (Inc. Gully)           ,G00492,Supplies & Services           ,Equip Furniture/Materials     ,DA01,Equipment - R & M,459,"1,301.80",10/31/2012,R,N A BROWN LTD                 
2012-NOV,Cultural Env Reg&Plan Services,Street Cleaning - Not highways,Street Cleansing (Inc. Gully)           ,G00492,Supplies & Services           ,Equip Furniture/Materials     ,DA08,Tools-Purchase,460,"1,491.75",11/13/2012,R,BELL BRUSH                    
2012-NOV,Cultural Env Reg&Plan Services,Street Cleaning - Not highways,Street Cleansing (Inc. Gully)           ,G00492,Supplies & Services           ,Equip Furniture/Materials     ,DA31,Waste Sacks & Bags,461,"3,175.20",10/16/2012,R,POLARIS PLASTICS LTD          
2012-NOV,Cultural Env Reg&Plan Services,Street Cleaning - Not highways,Street Cleansing (Inc. Gully)           ,G00492,Supplies & Services           ,Equip Furniture/Materials     ,DA31,Waste Sacks & Bags,462,"1,587.60",10/29/2012,R,POLARIS PLASTICS LTD          
2012-NOV,Cultural Env Reg&Plan Services,Street Cleaning - Not highways,Street Cleansing (Inc. Gully)           ,G00492,Supplies & Services           ,Clothing Unfrms Laundry       ,DC02,Clothing & Uniforms,463,827.23,10/25/2012,R,SAFETY MANAGEMENT             
2012-NOV,Cultural Env Reg&Plan Services,Street Cleaning - Not highways,Street Cleansing (Inc. Gully)           ,G00492,Third Party Payments          ,Private Contractors           ,EH74,Weed Spraying Contract,464,750,10/15/2012,R,COMPLETE WEED CONTROL         
2012-NOV,Cultural Env Reg&Plan Services,Street Cleaning - Not highways,Street Cleansing (Inc. Gully)           ,G00492,Third Party Payments          ,Private Contractors           ,EH74,Weed Spraying Contract,465,"3,839.33",9/28/2012,R,COMPLETE WEED CONTROL         
2012-NOV,Cultural Env Reg&Plan Services,Street Cleaning - Not highways,Street Cleansing (Inc. Gully)           ,G00492,Third Party Payments          ,Private Contractors           ,EH74,Weed Spraying Contract,466,"11,517.98",9/28/2012,R,COMPLETE WEED CONTROL         
2012-NOV,Cultural Env Reg&Plan Services,Waste Disposal,Waste Disposal .                        ,G00550,Third Party Payments          ,Private Contractors           ,EH04,Accommodation Based Support,467,"420,650.73",11/1/2012,R,KINGSTON CORPORATION          
2012-NOV,Cultural Env Reg&Plan Services,Waste Disposal,Waste Disposal .                        ,G00550,Third Party Payments          ,Private Contractors           ,EH10,Contract Payments,468,"36,824.62",11/1/2012,R,KINGSTON CORPORATION          
2012-NOV,Cultural Env Reg&Plan Services,Waste Disposal,Waste Disposal .                        ,G00550,Third Party Payments          ,Private Contractors           ,EH66,Clinical Waste Disposal,469,728.39,10/31/2012,R,S.GRUNDON (WASTE) LTD.        
2012-NOV,Cultural Env Reg&Plan Services,Waste Disposal,Waste Disposal .                        ,G00550,Third Party Payments          ,Private Contractors           ,EH66,Clinical Waste Disposal,470,"1,054.11",8/31/2012,R,S.GRUNDON (WASTE) LTD.        
2012-NOV,Cultural Env Reg&Plan Services,Waste Disposal,Waste Disposal .                        ,G00550,Third Party Payments          ,Private Contractors           ,EH91,Disposal of Asbestos,471,"1,467.79",10/29/2012,R,CITY OF LONDON CORPORATION    
2012-NOV,Cultural Env Reg&Plan Services,Waste Disposal,Waste Disposal .                        ,G00550,Third Party Payments          ,Private Contractors           ,EH91,Disposal of Asbestos,472,"1,500.00",10/29/2012,R,CITY OF LONDON CORPORATION    
2012-NOV,Cultural Env Reg&Plan Services,Waste Disposal,Waste Disposal .                        ,G00550,Third Party Payments          ,Private Contractors           ,EH96,Gen Waste - Alt.  Contractor  ,473,"1,964.36",10/31/2012,R,CORY ENVIRONMENTAL LIMITED    
2012-NOV,Cultural Env Reg&Plan Services,Waste Disposal,Garth Road Site                         ,G00580,Supplies & Services           ,Equip Furniture/Materials     ,DA04,Materials,474,"2,729.68",10/31/2012,R,S.GRUNDON (WASTE) LTD.        
2012-NOV,Cultural Env Reg&Plan Services,Waste Disposal,Garth Road Site                         ,G00580,Third Party Payments          ,Private Contractors           ,EH63,Paper Haulage,475,"24,101.61",11/1/2012,R,KINGSTON CORPORATION          
2012-NOV,Highways & Transport Services,Structural Maintenance,Grass Cut/Tr Mtce                       ,G00600,Premises Related Expenditure  ,Ground Maintenance Costs      ,BL03,Maintenance of Grounds,476,841.12,10/30/2012,R,VEOLIA ES (UK) LIMITED        
2012-NOV,Highways & Transport Services,Structural Maintenance,Grass Cut/Tr Mtce                       ,G00600,Premises Related Expenditure  ,Ground Maintenance Costs      ,BL03,Maintenance of Grounds,477,504.64,10/30/2012,R,VEOLIA ES (UK) LIMITED        
2012-NOV,Highways & Transport Services,Structural Maintenance,Grass Cut/Tr Mtce                       ,G00600,Premises Related Expenditure  ,Ground Maintenance Costs      ,BL03,Maintenance of Grounds,478,"1,519.22",10/30/2012,R,VEOLIA ES (UK) LIMITED        
2012-NOV,Highways & Transport Services,Structural Maintenance,Grass Cut/Tr Mtce                       ,G00600,Premises Related Expenditure  ,Ground Maintenance Costs      ,BL03,Maintenance of Grounds,479,"1,313.12",10/30/2012,R,VEOLIA ES (UK) LIMITED        
2012-NOV,Highways & Transport Services,Structural Maintenance,Grass Cut/Tr Mtce                       ,G00600,Premises Related Expenditure  ,Ground Maintenance Costs      ,BL03,Maintenance of Grounds,480,"4,689.34",10/30/2012,R,VEOLIA ES (UK) LIMITED        
2012-NOV,Highways & Transport Services,Structural Maintenance,Grass Cut/Tr Mtce                       ,G00600,Premises Related Expenditure  ,Ground Maintenance Costs      ,BL03,Maintenance of Grounds,481,"13,490.38",10/30/2012,R,VEOLIA ES (UK) LIMITED        
2012-NOV,Highways & Transport Services,Structural Maintenance,Grass Cut/Tr Mtce                       ,G00600,Premises Related Expenditure  ,Ground Maintenance Costs      ,BL03,Maintenance of Grounds,482,"1,194.30",11/13/2012,R,VEOLIA ES (UK) LIMITED        
2012-NOV,Highways & Transport Services,Structural Maintenance,Grass Cut/Tr Mtce                       ,G00600,Premises Related Expenditure  ,Ground Maintenance Costs      ,BL03,Maintenance of Grounds,483,"2,260.83",11/13/2012,R,VEOLIA ES (UK) LIMITED        
2012-NOV,Highways & Transport Services,Structural Maintenance,Grass Cut/Tr Mtce                       ,G00600,Premises Related Expenditure  ,Ground Maintenance Costs      ,BL03,Maintenance of Grounds,484,"3,595.96",11/1/2012,R,VEOLIA ES (UK) LIMITED        
2012-NOV,Highways & Transport Services,Structural Maintenance,Grass Cut/Tr Mtce                       ,G00600,Premises Related Expenditure  ,Ground Maintenance Costs      ,BL03,Maintenance of Grounds,485,"1,145.94",11/13/2012,R,VEOLIA ES (UK) LIMITED        
2012-NOV,Highways & Transport Services,Structural Maintenance,Grass Cut/Tr Mtce                       ,G00600,Premises Related Expenditure  ,Ground Maintenance Costs      ,BL03,Maintenance of Grounds,486,819.4,11/13/2012,R,VEOLIA ES (UK) LIMITED        
2012-NOV,Highways & Transport Services,Structural Maintenance,Grass Cut/Tr Mtce                       ,G00600,Premises Related Expenditure  ,Ground Maintenance Costs      ,BL03,Maintenance of Grounds,487,552.87,11/1/2012,R,VEOLIA ES (UK) LIMITED        
2012-NOV,Highways & Transport Services,Structural Maintenance,Grass Cut/Tr Mtce                       ,G00600,Premises Related Expenditure  ,Ground Maintenance Costs      ,BL03,Maintenance of Grounds,488,"36,174.31",10/30/2012,R,VEOLIA ES (UK) LIMITED        
2012-NOV,Highways & Transport Services,Structural Maintenance,Grass Cut/Tr Mtce                       ,G00600,Premises Related Expenditure  ,Ground Maintenance Costs      ,BL03,Maintenance of Grounds,489,500,11/21/2012,R,COMPLETE WEED CONTROL         
2012-NOV,Highways & Transport Services,Structural Maintenance,Grass Cut/Tr Mtce                       ,G00600,Premises Related Expenditure  ,Ground Maintenance Costs      ,BL03,Maintenance of Grounds,490,690,11/21/2012,R,COMPLETE WEED CONTROL         
2012-NOV,Cultural Env Reg&Plan Services,Environmental Health,Dog Control.                            ,G00620,Third Party Payments          ,Private Contractors           ,EH02,Miscellaneous Hired Services,491,500,10/21/2012,R,WOODLANDS ANIMAL CARE LTD     
2012-NOV,Cultural Env Reg&Plan Services,Environmental Health,Dog Control.                            ,G00620,Third Party Payments          ,Private Contractors           ,EH02,Miscellaneous Hired Services,492,"3,753.00",10/1/2012,R,NOAH'S ARK ENVIRONMENTAL SERV.
2012-NOV,Cultural Env Reg&Plan Services,Waste Collection,Recycling Activities                    ,G00640,Supplies & Services           ,Equip Furniture/Materials     ,DA04,Materials,493,"28,974.35",10/8/2012,R,SPHERE PROFFESSIONAL          
2012-NOV,Cultural Env Reg&Plan Services,Waste Collection,Recycling Activities                    ,G00640,Supplies & Services           ,Equip Furniture/Materials     ,DA31,Waste Sacks & Bags,494,"2,509.00",10/16/2012,R,POLARIS PLASTICS LTD          
2012-NOV,Cultural Env Reg&Plan Services,Waste Collection,Recycling Activities                    ,G00640,Supplies & Services           ,Equip Furniture/Materials     ,DA32,Wheeled Bins,495,"16,520.00",5/31/2012,R,MATTIUSSI UK                  
2012-NOV,Cultural Env Reg&Plan Services,Waste Collection,Recycling Activities                    ,G00640,Supplies & Services           ,Expenses                      ,DH14,Prizes and Awards,496,675,8/3/2012,R,CIWM                          
2012-NOV,Cultural Env Reg&Plan Services,Waste Collection,Recycling Activities                    ,G00640,Third Party Payments          ,Private Contractors           ,EH03,Term Contract,497,"51,011.70",11/1/2012,R,KINGSTON CORPORATION          
2012-NOV,Cultural Env Reg&Plan Services,Waste Collection,Recycling Activities                    ,G00640,Third Party Payments          ,Private Contractors           ,EH10,Contract Payments,498,"6,806.58",11/1/2012,R,KINGSTON CORPORATION          
2012-NOV,Cultural Env Reg&Plan Services,Waste Collection,Recycling Activities                    ,G00640,Third Party Payments          ,Private Contractors           ,EH18,Disposal of Kitchen Waste,499,"15,698.87",11/1/2012,R,KINGSTON CORPORATION          
2012-NOV,Cultural Env Reg&Plan Services,Waste Collection,Recycling Activities                    ,G00640,Third Party Payments          ,Private Contractors           ,EH19,Dano Drum Contract Sita Haulag,500,"2,106.14",11/1/2012,R,KINGSTON CORPORATION          
2012-NOV,Cultural Env Reg&Plan Services,Waste Collection,Recycling Activities                    ,G00640,Third Party Payments          ,Private Contractors           ,EH61,Green Waste Disposal,501,"17,646.84",8/31/2012,R,VIRIDOR WASTE KENT LTD        
2012-NOV,Cultural Env Reg&Plan Services,Waste Collection,Recycling Activities                    ,G00640,Third Party Payments          ,Private Contractors           ,EH61,Green Waste Disposal,502,"12,223.46",10/31/2012,R,VIRIDOR WASTE KENT LTD        
2012-NOV,Cultural Env Reg&Plan Services,Waste Collection,Recycling Activities                    ,G00640,Third Party Payments          ,Private Contractors           ,EH63,Paper Haulage,503,"20,954.25",11/1/2012,R,KINGSTON CORPORATION          
2012-NOV,Cultural Env Reg&Plan Services,Waste Collection,Recycling Activities                    ,G00640,Third Party Payments          ,Private Contractors           ,EH94,Waste Disposal - Alt. Site,504,"7,682.89",11/1/2012,R,KINGSTON CORPORATION          
2012-NOV,Cultural Env Reg&Plan Services,Waste Collection,BARROW AND BINS REPLACEMENT        ,G00641,Supplies & Services           ,Equip Furniture/Materials     ,DA54,Recycling Containers,505,"6,048.00",11/1/2012,R,STRAIGHT PLC                  
2012-NOV,Cultural Env Reg&Plan Services,Waste Collection,Recycling Collection                    ,G00645,Supplies & Services           ,Equip Furniture/Materials     ,DA32,Wheeled Bins,506,"2,960.00",11/2/2012,R,UK CONTAINER MAINTENANCE LTD  
2012-NOV,Cultural Env Reg&Plan Services,Waste Collection,Recycling Collection                    ,G00645,Supplies & Services           ,Clothing Unfrms Laundry       ,DC02,Clothing & Uniforms,507,837.83,10/25/2012,R,SAFETY MANAGEMENT             
2012-NOV,Cultural Env Reg&Plan Services,Waste Collection,Refuse Collection (Operations)          ,G00661,Transport Related Expenditure ,Direct Transport Costs        ,CA01,Petrol Derv & Oil,508,"1,107.50",9/18/2012,R,B P OIL UK LIMITED            
2012-NOV,Cultural Env Reg&Plan Services,Waste Collection,Refuse Collection (Operations)          ,G00661,Transport Related Expenditure ,Direct Transport Costs        ,CA52,Reps Vehicles Ins Claims,509,750,11/1/2012,R,S.E.T.S SERVICES              
2012-NOV,Cultural Env Reg&Plan Services,Waste Collection,Commercial Waste Collection             ,G00665,Supplies & Services           ,Equip Furniture/Materials     ,DA32,Wheeled Bins,510,"1,117.50",11/6/2012,R,SSI SCHAEFER LTD              
2012-NOV,Cultural Env Reg&Plan Services,Waste Collection,Commercial Waste Collection             ,G00665,Supplies & Services           ,Equip Furniture/Materials     ,DA32,Wheeled Bins,511,"1,750.00",11/6/2012,R,SSI SCHAEFER LTD              
2012-NOV,Cultural Env Reg&Plan Services,Environmental Health,Health & Safety                         ,G00697,Supplies & Services           ,Grants and Subscriptions      ,DJ04,Subscriptions,512,"1,092.00",11/15/2012,R,CHARTERED INST.OF ENVIR.HEALTH
2012-NOV,Cultural Env Reg&Plan Services,Environmental Health,Pest Control                            ,G00724,Supplies & Services           ,Equip Furniture/Materials     ,DA09,Equip-Purchases,513,514.42,11/6/2012,R,KILLGERM CHEMICALS LIMITED    
2012-NOV,Cultural Env Reg&Plan Services,Environmental Health,Housing/Env                             ,G00730,Employees                     ,Direct Employee Expenses      ,AA17,Agency Staff & Casual Paymts,514,877.45,10/31/2012,R,REDACTED
2012-NOV,Cultural Env Reg&Plan Services,Environmental Health,Housing/Env                             ,G00730,Employees                     ,Direct Employee Expenses      ,AA17,Agency Staff & Casual Paymts,515,571.55,11/7/2012,R,REDACTED
2012-NOV,Cultural Env Reg&Plan Services,Environmental Health,Housing/Env                             ,G00730,Employees                     ,Direct Employee Expenses      ,AA17,Agency Staff & Casual Paymts,516,700.35,11/14/2012,R,REDACTED
2012-NOV,Cultural Env Reg&Plan Services,Environmental Health,Housing/Env                             ,G00730,Supplies & Services           ,Grants and Subscriptions      ,DJ04,Subscriptions,517,936,11/15/2012,R,CHARTERED INST.OF ENVIR.HEALTH
2012-NOV,Cultural Env Reg&Plan Services,Environmental Health,LICENSING TEAM                          ,G00740,Third Party Payments          ,Private Contractors           ,EH59,Veterinary Costs,518,"3,836.00",10/30/2012,R,CITY OF LONDON CORPORATION    
2012-NOV,Cultural Env Reg&Plan Services,SMSS (Env),Waste Management                        ,G00900,Premises Related Expenditure  ,Energy Costs                  ,BB02,Electricity,519,666.77,11/15/2012,R,EDF ENERGY                    
2012-NOV,Central Services,Gen Grants Bequest & Donations,Vestry Hall                             ,G40314,Employees                     ,Direct Employee Expenses      ,AA17,Agency Staff & Casual Paymts,520,"1,521.54",10/31/2012,R,PCL SECURITY LTD              
2012-NOV,Central Services,Gen Grants Bequest & Donations,Vestry Hall                             ,G40314,Employees                     ,Direct Employee Expenses      ,AA17,Agency Staff & Casual Paymts,521,"4,486.95",11/10/2012,R,PCL SECURITY LTD              
2012-NOV,Central Services,Gen Grants Bequest & Donations,Vestry Hall                             ,G40314,Premises Related Expenditure  ,Energy Costs                  ,BB02,Electricity,522,"2,809.39",11/1/2012,R,EDF ENERGY                    
2012-NOV,Central Services,Gen Grants Bequest & Donations,Vestry Hall                             ,G40314,Third Party Payments          ,Private Contractors           ,EH02,Miscellaneous Hired Services,523,855.14,10/31/2012,R,DYNAMIQ CLEANING LIMITED      
2012-NOV,Cultural Env Reg&Plan Services,Building Control,Building Control                        ,H01100,Supplies & Services           ,Services                      ,DF57,Consulting Engineers Fees,524,"1,210.00",11/1/2012,R,BSI CUSTOMER SERVICES         
2012-NOV,Cultural Env Reg&Plan Services,Development Control,Development Control                     ,H01130,Supplies & Services           ,Services                      ,DF02,Misc Advertising/Publicity,525,549,11/17/2012,R,NEWSQUEST (LONDON)LTD         
2012-NOV,Cultural Env Reg&Plan Services,Development Control,Development Control                     ,H01130,Supplies & Services           ,Services                      ,DF11,Counsel's fees,526,"2,250.00",9/24/2012,R,VALUATION OFFICE AGENCY ADMIN.
2012-NOV,Cultural Env Reg&Plan Services,Economic Development,GREENING BUSINESS                       ,H01225,Supplies & Services           ,Grants and Subscriptions      ,DJ54,Contributions,527,"2,886.54",10/31/2012,R,MERTON CHAMBER OF COMMERCE    
2012-NOV,CS -Oth Operating Inc & Expend,Trading A/c Surpluses/Deficits,Transport-Contract Hire                 ,J01374,Premises Related Expenditure  ,Energy Costs                  ,BB02,Electricity,528,"1,061.80",11/1/2012,R,EDF ENERGY                    
2012-NOV,CS -Oth Operating Inc & Expend,Trading A/c Surpluses/Deficits,Transport-Contract Hire                 ,J01374,Transport Related Expenditure ,Direct Transport Costs        ,CA01,Petrol Derv & Oil,529,"31,581.00",10/22/2012,R,EMO OILS LTD                  
2012-NOV,CS -Oth Operating Inc & Expend,Trading A/c Surpluses/Deficits,Transport-Contract Hire                 ,J01374,Transport Related Expenditure ,Direct Transport Costs        ,CA01,Petrol Derv & Oil,530,"39,412.50",11/7/2012,R,EMO OILS LTD                  
2012-NOV,CS -Oth Operating Inc & Expend,Trading A/c Surpluses/Deficits,Transport-Contract Hire                 ,J01374,Transport Related Expenditure ,Direct Transport Costs        ,CA52,Reps Vehicles Ins Claims,531,500,10/29/2012,R,FLEETSPEED COACHWORKS LTD.    
2012-NOV,CS -Oth Operating Inc & Expend,Trading A/c Surpluses/Deficits,Transport-Contract Hire                 ,J01374,Transport Related Expenditure ,Contract Hire and Op Leasing  ,CC53,Plant Hire for MRCS,532,875,10/22/2012,R,GULLIVER'S TRUCK HIRE LTD.    
2012-NOV,CS -Oth Operating Inc & Expend,Trading A/c Surpluses/Deficits,Transport-Contract Hire                 ,J01374,Transport Related Expenditure ,Contract Hire and Op Leasing  ,CC53,Plant Hire for MRCS,533,700,10/28/2012,R,PHOENIX VEHICLE HIRE LTD      
2012-NOV,CS -Oth Operating Inc & Expend,Trading A/c Surpluses/Deficits,Transport-Contract Hire                 ,J01374,Transport Related Expenditure ,Contract Hire and Op Leasing  ,CC53,Plant Hire for MRCS,534,"1,311.00",10/31/2012,R,GVS HIRE LTD                  
2012-NOV,CS -Oth Operating Inc & Expend,Trading A/c Surpluses/Deficits,Transport-Contract Hire                 ,J01374,Transport Related Expenditure ,Contract Hire and Op Leasing  ,CC53,Plant Hire for MRCS,535,"1,350.00",10/31/2012,R,GVS HIRE LTD                  
2012-NOV,CS -Oth Operating Inc & Expend,Trading A/c Surpluses/Deficits,Transport-Contract Hire                 ,J01374,Transport Related Expenditure ,Contract Hire and Op Leasing  ,CC53,Plant Hire for MRCS,536,525,11/4/2012,R,PHOENIX VEHICLE HIRE LTD      
2012-NOV,CS -Oth Operating Inc & Expend,Trading A/c Surpluses/Deficits,Transport-Contract Hire                 ,J01374,Transport Related Expenditure ,Contract Hire and Op Leasing  ,CC53,Plant Hire for MRCS,537,700,11/4/2012,R,PHOENIX VEHICLE HIRE LTD      
2012-NOV,CS -Oth Operating Inc & Expend,Trading A/c Surpluses/Deficits,Transport-Contract Hire                 ,J01374,Transport Related Expenditure ,Contract Hire and Op Leasing  ,CC53,Plant Hire for MRCS,538,"2,000.00",10/26/2012,R,NOBLET MUNICIPAL SERVICES LTD 
2012-NOV,CS -Oth Operating Inc & Expend,Trading A/c Surpluses/Deficits,Transport-Contract Hire                 ,J01374,Transport Related Expenditure ,Contract Hire and Op Leasing  ,CC53,Plant Hire for MRCS,539,851,10/31/2012,R,SHB HIRE LTD                  
2012-NOV,CS -Oth Operating Inc & Expend,Trading A/c Surpluses/Deficits,Transport-Contract Hire                 ,J01374,Transport Related Expenditure ,Contract Hire and Op Leasing  ,CC53,Plant Hire for MRCS,540,851,10/31/2012,R,SHB HIRE LTD                  
2012-NOV,CS -Oth Operating Inc & Expend,Trading A/c Surpluses/Deficits,Transport-Contract Hire                 ,J01374,Transport Related Expenditure ,Contract Hire and Op Leasing  ,CC53,Plant Hire for MRCS,541,851,10/31/2012,R,SHB HIRE LTD                  
2012-NOV,CS -Oth Operating Inc & Expend,Trading A/c Surpluses/Deficits,Transport-Contract Hire                 ,J01374,Transport Related Expenditure ,Contract Hire and Op Leasing  ,CC53,Plant Hire for MRCS,542,"1,050.00",11/5/2012,R,COMPACT SWEEPERS LTD          
2012-NOV,CS -Oth Operating Inc & Expend,Trading A/c Surpluses/Deficits,Transport-Contract Hire                 ,J01374,Transport Related Expenditure ,Contract Hire and Op Leasing  ,CC53,Plant Hire for MRCS,543,700,11/11/2012,R,PHOENIX VEHICLE HIRE LTD      
2012-NOV,CS -Oth Operating Inc & Expend,Trading A/c Surpluses/Deficits,Transport-Contract Hire                 ,J01374,Transport Related Expenditure ,Contract Hire and Op Leasing  ,CC53,Plant Hire for MRCS,544,525,11/8/2012,R,GULLIVER'S TRUCK HIRE LTD.    
2012-NOV,CS -Oth Operating Inc & Expend,Trading A/c Surpluses/Deficits,Transport-Contract Hire                 ,J01374,Transport Related Expenditure ,Contract Hire and Op Leasing  ,CC53,Plant Hire for MRCS,545,525,11/11/2012,R,PHOENIX VEHICLE HIRE LTD      
2012-NOV,CS -Oth Operating Inc & Expend,Trading A/c Surpluses/Deficits,Transport-Contract Hire                 ,J01374,Transport Related Expenditure ,Contract Hire and Op Leasing  ,CC53,Plant Hire for MRCS,546,700,11/18/2012,R,PHOENIX VEHICLE HIRE LTD      
2012-NOV,CS -Oth Operating Inc & Expend,Trading A/c Surpluses/Deficits,Transport-Contract Hire                 ,J01374,Transport Related Expenditure ,Contract Hire and Op Leasing  ,CC53,Plant Hire for MRCS,547,525,11/18/2012,R,PHOENIX VEHICLE HIRE LTD      
2012-NOV,CS -Oth Operating Inc & Expend,Trading A/c Surpluses/Deficits,Transport-Contract Hire                 ,J01374,Transport Related Expenditure ,Contract Hire and Op Leasing  ,CC53,Plant Hire for MRCS,548,735,11/19/2012,R,COMPACT SWEEPERS LTD          
2012-NOV,CS -Oth Operating Inc & Expend,Trading A/c Surpluses/Deficits,Transport-Contract Hire                 ,J01374,Transport Related Expenditure ,Contract Hire and Op Leasing  ,CC57,Plant Hire for Housing,549,667,10/21/2012,R,KENT COUNTY COUNCIL           
2012-NOV,CS -Oth Operating Inc & Expend,Trading A/c Surpluses/Deficits,Transport-Contract Hire                 ,J01374,Transport Related Expenditure ,Contract Hire and Op Leasing  ,CC57,Plant Hire for Housing,550,940,10/31/2012,R,REDACTED
2012-NOV,CS -Oth Operating Inc & Expend,Trading A/c Surpluses/Deficits,Transport-Contract Hire                 ,J01374,Transport Related Expenditure ,Contract Hire and Op Leasing  ,CC58,Plant Hire - Ad Hoc,551,759,10/31/2012,R,GVS HIRE LTD                  
2012-NOV,CS -Oth Operating Inc & Expend,Trading A/c Surpluses/Deficits,Transport-Contract Hire                 ,J01374,Transport Related Expenditure ,Contract Hire and Op Leasing  ,CC58,Plant Hire - Ad Hoc,552,759,10/31/2012,R,GVS HIRE LTD                  
2012-NOV,CS -Oth Operating Inc & Expend,Trading A/c Surpluses/Deficits,Transport-Contract Hire                 ,J01374,Transport Related Expenditure ,Contract Hire and Op Leasing  ,CC59,Plant Hire - Non-Rechargeable ,553,"1,458.62",11/4/2012,R,DAWSON RENTALS BUS AND COACH  
2012-NOV,CS -Oth Operating Inc & Expend,Trading A/c Surpluses/Deficits,Transport-Contract Hire                 ,J01374,Transport Related Expenditure ,Contract Hire and Op Leasing  ,CC59,Plant Hire - Non-Rechargeable ,554,"1,458.62",11/4/2012,R,DAWSON RENTALS BUS AND COACH  
2012-NOV,CS -Oth Operating Inc & Expend,Trading A/c Surpluses/Deficits,Transport-Contract Hire                 ,J01374,Transport Related Expenditure ,Contract Hire and Op Leasing  ,CC59,Plant Hire - Non-Rechargeable ,555,"2,238.32",10/31/2012,R,REDACTED
2012-NOV,CS -Oth Operating Inc & Expend,Trading A/c Surpluses/Deficits,Transport-Contract Hire                 ,J01374,Transport Related Expenditure ,Contract Hire and Op Leasing  ,CC59,Plant Hire - Non-Rechargeable ,556,"7,787.20",11/5/2012,R,KENT COUNTY COUNCIL           
2012-NOV,CS -Oth Operating Inc & Expend,Trading A/c Surpluses/Deficits,Transport-Contract Hire                 ,J01374,Transport Related Expenditure ,Contract Hire and Op Leasing  ,CC64,Mini Cab Hire for Education,557,"12,112.62",10/28/2012,R,KINGSTON ACCESSIBILITY TRAN LT
2012-NOV,CS -Oth Operating Inc & Expend,Trading A/c Surpluses/Deficits,Transport-Contract Hire                 ,J01374,Transport Related Expenditure ,Contract Hire and Op Leasing  ,CC64,Mini Cab Hire for Education,558,700,10/31/2012,R,AERIAL CAR SERVICES LTD       
2012-NOV,CS -Oth Operating Inc & Expend,Trading A/c Surpluses/Deficits,Transport-Contract Hire                 ,J01374,Transport Related Expenditure ,Contract Hire and Op Leasing  ,CC64,Mini Cab Hire for Education,559,600,10/31/2012,R,AERIAL CAR SERVICES LTD       
2012-NOV,CS -Oth Operating Inc & Expend,Trading A/c Surpluses/Deficits,Transport-Contract Hire                 ,J01374,Transport Related Expenditure ,Contract Hire and Op Leasing  ,CC64,Mini Cab Hire for Education,560,"2,800.00",10/31/2012,R,BARCLAYS ASSET & SALES FINANCE
2012-NOV,CS -Oth Operating Inc & Expend,Trading A/c Surpluses/Deficits,Transport-Contract Hire                 ,J01374,Transport Related Expenditure ,Contract Hire and Op Leasing  ,CC64,Mini Cab Hire for Education,561,"1,104.00",10/31/2012,R,BARCLAYS ASSET & SALES FINANCE
2012-NOV,CS -Oth Operating Inc & Expend,Trading A/c Surpluses/Deficits,Transport-Contract Hire                 ,J01374,Transport Related Expenditure ,Contract Hire and Op Leasing  ,CC64,Mini Cab Hire for Education,562,"3,811.48",10/31/2012,R,BARCLAYS ASSET & SALES FINANCE
2012-NOV,CS -Oth Operating Inc & Expend,Trading A/c Surpluses/Deficits,Transport-Contract Hire                 ,J01374,Transport Related Expenditure ,Contract Hire and Op Leasing  ,CC64,Mini Cab Hire for Education,563,"3,400.00",10/31/2012,R,BARCLAYS ASSET & SALES FINANCE
2012-NOV,CS -Oth Operating Inc & Expend,Trading A/c Surpluses/Deficits,Transport-Contract Hire                 ,J01374,Transport Related Expenditure ,Contract Hire and Op Leasing  ,CC64,Mini Cab Hire for Education,564,"2,684.00",10/31/2012,R,NVCAR HIRE LTD                
2012-NOV,CS -Oth Operating Inc & Expend,Trading A/c Surpluses/Deficits,Transport-Contract Hire                 ,J01374,Transport Related Expenditure ,Contract Hire and Op Leasing  ,CC64,Mini Cab Hire for Education,565,800,10/31/2012,R,NVCAR HIRE LTD                
2012-NOV,CS -Oth Operating Inc & Expend,Trading A/c Surpluses/Deficits,Transport-Contract Hire                 ,J01374,Transport Related Expenditure ,Contract Hire and Op Leasing  ,CC64,Mini Cab Hire for Education,566,"1,440.00",10/31/2012,R,NVCAR HIRE LTD                
2012-NOV,CS -Oth Operating Inc & Expend,Trading A/c Surpluses/Deficits,Transport-Contract Hire                 ,J01374,Transport Related Expenditure ,Contract Hire and Op Leasing  ,CC64,Mini Cab Hire for Education,567,"3,057.00",10/31/2012,R,NVCAR HIRE LTD                
2012-NOV,CS -Oth Operating Inc & Expend,Trading A/c Surpluses/Deficits,Transport-Contract Hire                 ,J01374,Transport Related Expenditure ,Contract Hire and Op Leasing  ,CC64,Mini Cab Hire for Education,568,588,10/31/2012,R,NVCAR HIRE LTD                
2012-NOV,CS -Oth Operating Inc & Expend,Trading A/c Surpluses/Deficits,Transport-Contract Hire                 ,J01374,Transport Related Expenditure ,Contract Hire and Op Leasing  ,CC64,Mini Cab Hire for Education,569,"1,400.00",10/31/2012,R,NVCAR HIRE LTD                
2012-NOV,CS -Oth Operating Inc & Expend,Trading A/c Surpluses/Deficits,Transport-Contract Hire                 ,J01374,Transport Related Expenditure ,Contract Hire and Op Leasing  ,CC64,Mini Cab Hire for Education,570,880,10/31/2012,R,AERIAL CAR SERVICES LTD       
2012-NOV,CS -Oth Operating Inc & Expend,Trading A/c Surpluses/Deficits,Transport-Contract Hire                 ,J01374,Transport Related Expenditure ,Contract Hire and Op Leasing  ,CC64,Mini Cab Hire for Education,571,"1,444.00",10/31/2012,R,BARCLAYS ASSET & SALES FINANCE
2012-NOV,CS -Oth Operating Inc & Expend,Trading A/c Surpluses/Deficits,Transport-Contract Hire                 ,J01374,Transport Related Expenditure ,Contract Hire and Op Leasing  ,CC64,Mini Cab Hire for Education,572,"1,344.00",10/31/2012,R,BARCLAYS ASSET & SALES FINANCE
2012-NOV,CS -Oth Operating Inc & Expend,Trading A/c Surpluses/Deficits,Transport-Contract Hire                 ,J01374,Transport Related Expenditure ,Contract Hire and Op Leasing  ,CC64,Mini Cab Hire for Education,573,"3,920.00",10/31/2012,R,BARCLAYS ASSET & SALES FINANCE
2012-NOV,CS -Oth Operating Inc & Expend,Trading A/c Surpluses/Deficits,Transport-Contract Hire                 ,J01374,Transport Related Expenditure ,Contract Hire and Op Leasing  ,CC64,Mini Cab Hire for Education,574,555,11/1/2012,R,KENDALL CARS                  
2012-NOV,CS -Oth Operating Inc & Expend,Trading A/c Surpluses/Deficits,Transport-Contract Hire                 ,J01374,Transport Related Expenditure ,Contract Hire and Op Leasing  ,CC64,Mini Cab Hire for Education,575,"1,512.00",10/31/2012,R,NVCAR HIRE LTD                
2012-NOV,CS -Oth Operating Inc & Expend,Trading A/c Surpluses/Deficits,Transport-Contract Hire                 ,J01374,Transport Related Expenditure ,Contract Hire and Op Leasing  ,CC64,Mini Cab Hire for Education,576,800,10/31/2012,R,NVCAR HIRE LTD                
2012-NOV,CS -Oth Operating Inc & Expend,Trading A/c Surpluses/Deficits,Transport-Contract Hire                 ,J01374,Transport Related Expenditure ,Contract Hire and Op Leasing  ,CC64,Mini Cab Hire for Education,577,"1,344.00",10/31/2012,R,NVCAR HIRE LTD                
2012-NOV,CS -Oth Operating Inc & Expend,Trading A/c Surpluses/Deficits,Transport-Contract Hire                 ,J01374,Transport Related Expenditure ,Contract Hire and Op Leasing  ,CC64,Mini Cab Hire for Education,578,"1,920.00",10/31/2012,R,BARCLAYS ASSET & SALES FINANCE
2012-NOV,CS -Oth Operating Inc & Expend,Trading A/c Surpluses/Deficits,Transport-Contract Hire                 ,J01374,Transport Related Expenditure ,Contract Hire and Op Leasing  ,CC64,Mini Cab Hire for Education,579,"2,108.00",10/31/2012,R,BARCLAYS ASSET & SALES FINANCE
2012-NOV,CS -Oth Operating Inc & Expend,Trading A/c Surpluses/Deficits,Transport-Contract Hire                 ,J01374,Transport Related Expenditure ,Contract Hire and Op Leasing  ,CC64,Mini Cab Hire for Education,580,"1,638.00",10/31/2012,R,BARCLAYS ASSET & SALES FINANCE
2012-NOV,CS -Oth Operating Inc & Expend,Trading A/c Surpluses/Deficits,Transport-Contract Hire                 ,J01374,Transport Related Expenditure ,Contract Hire and Op Leasing  ,CC64,Mini Cab Hire for Education,581,"1,493.00",10/31/2012,R,BARCLAYS ASSET & SALES FINANCE
2012-NOV,CS -Oth Operating Inc & Expend,Trading A/c Surpluses/Deficits,Transport-Contract Hire                 ,J01374,Transport Related Expenditure ,Contract Hire and Op Leasing  ,CC64,Mini Cab Hire for Education,582,777,10/31/2012,R,BARCLAYS ASSET & SALES FINANCE
2012-NOV,CS -Oth Operating Inc & Expend,Trading A/c Surpluses/Deficits,Transport-Contract Hire                 ,J01374,Transport Related Expenditure ,Contract Hire and Op Leasing  ,CC64,Mini Cab Hire for Education,583,640,10/31/2012,R,BARCLAYS ASSET & SALES FINANCE
2012-NOV,CS -Oth Operating Inc & Expend,Trading A/c Surpluses/Deficits,Transport-Contract Hire                 ,J01374,Transport Related Expenditure ,Contract Hire and Op Leasing  ,CC64,Mini Cab Hire for Education,584,"11,644.52",11/11/2012,R,KINGSTON ACCESSIBILITY TRAN LT
2012-NOV,CS -Oth Operating Inc & Expend,Trading A/c Surpluses/Deficits,Transport-Contract Hire                 ,J01374,Transport Related Expenditure ,Contract Hire and Op Leasing  ,CC64,Mini Cab Hire for Education,585,"1,292.00",10/31/2012,R,BRUNSWICK CARS LTD            
2012-NOV,CS -Oth Operating Inc & Expend,Trading A/c Surpluses/Deficits,Transport-Contract Hire                 ,J01374,Transport Related Expenditure ,Contract Hire and Op Leasing  ,CC64,Mini Cab Hire for Education,586,"1,680.00",10/31/2012,R,CAPITAL CARS                  
2012-NOV,CS -Oth Operating Inc & Expend,Trading A/c Surpluses/Deficits,Transport-Contract Hire                 ,J01374,Transport Related Expenditure ,Contract Hire and Op Leasing  ,CC64,Mini Cab Hire for Education,587,778,10/31/2012,R,CAPITAL CARS                  
2012-NOV,CS -Oth Operating Inc & Expend,Trading A/c Surpluses/Deficits,Transport-Contract Hire                 ,J01374,Transport Related Expenditure ,Contract Hire and Op Leasing  ,CC64,Mini Cab Hire for Education,588,"1,000.00",10/31/2012,R,CAPITAL CARS                  
2012-NOV,CS -Oth Operating Inc & Expend,Trading A/c Surpluses/Deficits,Transport-Contract Hire                 ,J01374,Transport Related Expenditure ,Contract Hire and Op Leasing  ,CC64,Mini Cab Hire for Education,589,621,10/31/2012,R,CAPITAL CARS                  
2012-NOV,CS -Oth Operating Inc & Expend,Trading A/c Surpluses/Deficits,Transport-Contract Hire                 ,J01374,Transport Related Expenditure ,Contract Hire and Op Leasing  ,CC64,Mini Cab Hire for Education,590,640,10/21/2012,R,REDACTED
2012-NOV,CS -Oth Operating Inc & Expend,Trading A/c Surpluses/Deficits,Transport-Contract Hire                 ,J01374,Transport Related Expenditure ,Contract Hire and Op Leasing  ,CC64,Mini Cab Hire for Education,591,"1,200.00",10/31/2012,R,CAPITAL CARS                  
2012-NOV,CS -Oth Operating Inc & Expend,Trading A/c Surpluses/Deficits,Transport-Contract Hire                 ,J01374,Transport Related Expenditure ,Contract Hire and Op Leasing  ,CC64,Mini Cab Hire for Education,592,672,10/31/2012,R,A STAR TRANSPORT LIMITED      
2012-NOV,CS -Oth Operating Inc & Expend,Trading A/c Surpluses/Deficits,Transport-Contract Hire                 ,J01374,Transport Related Expenditure ,Contract Hire and Op Leasing  ,CC64,Mini Cab Hire for Education,593,"1,902.00",10/31/2012,R,BARCLAYS ASSET & SALES FINANCE
2012-NOV,CS -Oth Operating Inc & Expend,Trading A/c Surpluses/Deficits,Transport-Contract Hire                 ,J01374,Transport Related Expenditure ,Contract Hire and Op Leasing  ,CC64,Mini Cab Hire for Education,594,740,10/31/2012,R,CAPITAL CARS                  
2012-NOV,CS -Oth Operating Inc & Expend,Trading A/c Surpluses/Deficits,Transport-Contract Hire                 ,J01374,Transport Related Expenditure ,Contract Hire and Op Leasing  ,CC64,Mini Cab Hire for Education,595,"2,800.00",10/31/2012,R,CAPITAL CARS                  
2012-NOV,CS -Oth Operating Inc & Expend,Trading A/c Surpluses/Deficits,Transport-Contract Hire                 ,J01374,Transport Related Expenditure ,Contract Hire and Op Leasing  ,CC64,Mini Cab Hire for Education,596,"1,880.00",10/31/2012,R,CAPITAL CARS                  
2012-NOV,CS -Oth Operating Inc & Expend,Trading A/c Surpluses/Deficits,Transport-Contract Hire                 ,J01374,Transport Related Expenditure ,Contract Hire and Op Leasing  ,CC64,Mini Cab Hire for Education,597,"1,200.00",10/31/2012,R,CAPITAL CARS                  
2012-NOV,CS -Oth Operating Inc & Expend,Trading A/c Surpluses/Deficits,Transport-Contract Hire                 ,J01374,Transport Related Expenditure ,Contract Hire and Op Leasing  ,CC64,Mini Cab Hire for Education,598,570,10/31/2012,R,CAPITAL CARS                  
2012-NOV,CS -Oth Operating Inc & Expend,Trading A/c Surpluses/Deficits,Transport-Contract Hire                 ,J01374,Transport Related Expenditure ,Contract Hire and Op Leasing  ,CC64,Mini Cab Hire for Education,599,800,10/31/2012,R,GALPINS SERVICE               
2012-NOV,CS -Oth Operating Inc & Expend,Trading A/c Surpluses/Deficits,Transport-Contract Hire                 ,J01374,Transport Related Expenditure ,Contract Hire and Op Leasing  ,CC64,Mini Cab Hire for Education,600,810,10/31/2012,R,GALPINS SERVICE               
2012-NOV,CS -Oth Operating Inc & Expend,Trading A/c Surpluses/Deficits,Transport-Contract Hire                 ,J01374,Transport Related Expenditure ,Contract Hire and Op Leasing  ,CC64,Mini Cab Hire for Education,601,660,10/31/2012,R,GALPINS SERVICE               
2012-NOV,CS -Oth Operating Inc & Expend,Trading A/c Surpluses/Deficits,Transport-Contract Hire                 ,J01374,Transport Related Expenditure ,Contract Hire and Op Leasing  ,CC64,Mini Cab Hire for Education,602,"1,078.00",10/31/2012,R,SHERWOOD TRANSPORT GROUP      
2012-NOV,CS -Oth Operating Inc & Expend,Trading A/c Surpluses/Deficits,Transport-Contract Hire                 ,J01374,Transport Related Expenditure ,Contract Hire and Op Leasing  ,CC64,Mini Cab Hire for Education,603,"2,320.00",10/31/2012,R,SHERWOOD TRANSPORT GROUP      
2012-NOV,CS -Oth Operating Inc & Expend,Trading A/c Surpluses/Deficits,Transport-Contract Hire                 ,J01374,Transport Related Expenditure ,Contract Hire and Op Leasing  ,CC64,Mini Cab Hire for Education,604,"1,400.00",10/31/2012,R,SHERWOOD TRANSPORT GROUP      
2012-NOV,CS -Oth Operating Inc & Expend,Trading A/c Surpluses/Deficits,Transport-Contract Hire                 ,J01374,Transport Related Expenditure ,Contract Hire and Op Leasing  ,CC64,Mini Cab Hire for Education,605,660,10/31/2012,R,SHERWOOD TRANSPORT GROUP      
2012-NOV,CS -Oth Operating Inc & Expend,Trading A/c Surpluses/Deficits,Transport-Contract Hire                 ,J01374,Transport Related Expenditure ,Contract Hire and Op Leasing  ,CC64,Mini Cab Hire for Education,606,"1,155.00",10/31/2012,R,SHERWOOD TRANSPORT GROUP      
2012-NOV,CS -Oth Operating Inc & Expend,Trading A/c Surpluses/Deficits,Transport-Contract Hire                 ,J01374,Transport Related Expenditure ,Contract Hire and Op Leasing  ,CC64,Mini Cab Hire for Education,607,"1,330.45",10/31/2012,R,SHERWOOD TRANSPORT GROUP      
2012-NOV,CS -Oth Operating Inc & Expend,Trading A/c Surpluses/Deficits,Transport-Contract Hire                 ,J01374,Transport Related Expenditure ,Contract Hire and Op Leasing  ,CC64,Mini Cab Hire for Education,608,"2,941.50",10/31/2012,R,SHERWOOD TRANSPORT GROUP      
2012-NOV,CS -Oth Operating Inc & Expend,Trading A/c Surpluses/Deficits,Transport-Contract Hire                 ,J01374,Transport Related Expenditure ,Contract Hire and Op Leasing  ,CC64,Mini Cab Hire for Education,609,"2,009.00",10/31/2012,R,SHERWOOD TRANSPORT GROUP      
2012-NOV,CS -Oth Operating Inc & Expend,Trading A/c Surpluses/Deficits,Transport-Contract Hire                 ,J01374,Transport Related Expenditure ,Contract Hire and Op Leasing  ,CC64,Mini Cab Hire for Education,610,"2,380.00",10/31/2012,R,SHERWOOD TRANSPORT GROUP      
2012-NOV,CS -Oth Operating Inc & Expend,Trading A/c Surpluses/Deficits,Transport-Contract Hire                 ,J01374,Transport Related Expenditure ,Contract Hire and Op Leasing  ,CC64,Mini Cab Hire for Education,611,"1,320.00",10/26/2012,R,SILVERBURN FINANCE (UK) LTD   
2012-NOV,CS -Oth Operating Inc & Expend,Trading A/c Surpluses/Deficits,Transport-Contract Hire                 ,J01374,Transport Related Expenditure ,Contract Hire and Op Leasing  ,CC64,Mini Cab Hire for Education,612,720,10/26/2012,R,SILVERBURN FINANCE (UK) LTD   
2012-NOV,CS -Oth Operating Inc & Expend,Trading A/c Surpluses/Deficits,Transport-Contract Hire                 ,J01374,Transport Related Expenditure ,Contract Hire and Op Leasing  ,CC64,Mini Cab Hire for Education,613,"2,016.00",10/26/2012,R,SILVERBURN FINANCE (UK) LTD   
2012-NOV,CS -Oth Operating Inc & Expend,Trading A/c Surpluses/Deficits,Transport-Contract Hire                 ,J01374,Transport Related Expenditure ,Contract Hire and Op Leasing  ,CC64,Mini Cab Hire for Education,614,"3,400.00",10/26/2012,R,SILVERBURN FINANCE (UK) LTD   
2012-NOV,CS -Oth Operating Inc & Expend,Trading A/c Surpluses/Deficits,Transport-Contract Hire                 ,J01374,Transport Related Expenditure ,Contract Hire and Op Leasing  ,CC64,Mini Cab Hire for Education,615,"1,200.00",10/26/2012,R,SILVERBURN FINANCE (UK) LTD   
2012-NOV,CS -Oth Operating Inc & Expend,Trading A/c Surpluses/Deficits,Transport-Contract Hire                 ,J01374,Transport Related Expenditure ,Contract Hire and Op Leasing  ,CC64,Mini Cab Hire for Education,616,608,10/26/2012,R,SILVERBURN FINANCE (UK) LTD   
2012-NOV,CS -Oth Operating Inc & Expend,Trading A/c Surpluses/Deficits,Transport-Contract Hire                 ,J01374,Transport Related Expenditure ,Contract Hire and Op Leasing  ,CC64,Mini Cab Hire for Education,617,"1,120.00",10/26/2012,R,SILVERBURN FINANCE (UK) LTD   
2012-NOV,CS -Oth Operating Inc & Expend,Trading A/c Surpluses/Deficits,Transport-Contract Hire                 ,J01374,Transport Related Expenditure ,Contract Hire and Op Leasing  ,CC64,Mini Cab Hire for Education,618,818,10/26/2012,R,SILVERBURN FINANCE (UK) LTD   
2012-NOV,CS -Oth Operating Inc & Expend,Trading A/c Surpluses/Deficits,Transport-Contract Hire                 ,J01374,Transport Related Expenditure ,Contract Hire and Op Leasing  ,CC64,Mini Cab Hire for Education,619,"1,110.00",10/26/2012,R,SILVERBURN FINANCE (UK) LTD   
2012-NOV,CS -Oth Operating Inc & Expend,Trading A/c Surpluses/Deficits,Transport-Contract Hire                 ,J01374,Transport Related Expenditure ,Contract Hire and Op Leasing  ,CC64,Mini Cab Hire for Education,620,"1,480.00",10/31/2012,R,CAPITAL CARS                  
2012-NOV,CS -Oth Operating Inc & Expend,Trading A/c Surpluses/Deficits,Transport-Contract Hire                 ,J01374,Transport Related Expenditure ,Contract Hire and Op Leasing  ,CC64,Mini Cab Hire for Education,621,855,10/31/2012,R,GALPINS SERVICE               
2012-NOV,CS -Oth Operating Inc & Expend,Trading A/c Surpluses/Deficits,Transport-Contract Hire                 ,J01374,Transport Related Expenditure ,Contract Hire and Op Leasing  ,CC64,Mini Cab Hire for Education,622,"1,782.00",10/31/2012,R,SHERWOOD TRANSPORT GROUP      
2012-NOV,CS -Oth Operating Inc & Expend,Trading A/c Surpluses/Deficits,Transport-Contract Hire                 ,J01374,Transport Related Expenditure ,Contract Hire and Op Leasing  ,CC64,Mini Cab Hire for Education,623,"1,015.00",10/31/2012,R,SHERWOOD TRANSPORT GROUP      
2012-NOV,CS -Oth Operating Inc & Expend,Trading A/c Surpluses/Deficits,Transport-Contract Hire                 ,J01374,Transport Related Expenditure ,Contract Hire and Op Leasing  ,CC64,Mini Cab Hire for Education,624,"1,920.00",10/26/2012,R,SILVERBURN FINANCE (UK) LTD   
2012-NOV,CS -Oth Operating Inc & Expend,Trading A/c Surpluses/Deficits,Transport-Contract Hire                 ,J01374,Transport Related Expenditure ,Contract Hire and Op Leasing  ,CC64,Mini Cab Hire for Education,625,800,10/26/2012,R,SILVERBURN FINANCE (UK) LTD   
2012-NOV,CS -Oth Operating Inc & Expend,Trading A/c Surpluses/Deficits,Transport-Contract Hire                 ,J01374,Transport Related Expenditure ,Contract Hire and Op Leasing  ,CC64,Mini Cab Hire for Education,626,"1,430.00",10/26/2012,R,SILVERBURN FINANCE (UK) LTD   
2012-NOV,CS -Oth Operating Inc & Expend,Trading A/c Surpluses/Deficits,Transport-Contract Hire                 ,J01374,Transport Related Expenditure ,Contract Hire and Op Leasing  ,CC64,Mini Cab Hire for Education,627,"1,440.00",10/26/2012,R,SILVERBURN FINANCE (UK) LTD   
2012-NOV,CS -Oth Operating Inc & Expend,Trading A/c Surpluses/Deficits,Transport-Contract Hire                 ,J01374,Transport Related Expenditure ,Contract Hire and Op Leasing  ,CC64,Mini Cab Hire for Education,628,"3,148.80",10/26/2012,R,SILVERBURN FINANCE (UK) LTD   
2012-NOV,CS -Oth Operating Inc & Expend,Trading A/c Surpluses/Deficits,Transport-Contract Hire                 ,J01374,Transport Related Expenditure ,Contract Hire and Op Leasing  ,CC64,Mini Cab Hire for Education,629,"1,680.00",10/26/2012,R,SILVERBURN FINANCE (UK) LTD   
2012-NOV,CS -Oth Operating Inc & Expend,Trading A/c Surpluses/Deficits,Transport-Contract Hire                 ,J01374,Transport Related Expenditure ,Contract Hire and Op Leasing  ,CC64,Mini Cab Hire for Education,630,"1,440.00",10/26/2012,R,SILVERBURN FINANCE (UK) LTD   
2012-NOV,CS -Oth Operating Inc & Expend,Trading A/c Surpluses/Deficits,Transport-Contract Hire                 ,J01374,Transport Related Expenditure ,Contract Hire and Op Leasing  ,CC64,Mini Cab Hire for Education,631,680,10/26/2012,R,SILVERBURN FINANCE (UK) LTD   
2012-NOV,CS -Oth Operating Inc & Expend,Trading A/c Surpluses/Deficits,Transport-Contract Hire                 ,J01374,Transport Related Expenditure ,Contract Hire and Op Leasing  ,CC64,Mini Cab Hire for Education,632,"1,000.00",10/31/2012,R,CHEAM STATION CARS            
2012-NOV,CS -Oth Operating Inc & Expend,Trading A/c Surpluses/Deficits,Transport-Contract Hire                 ,J01374,Transport Related Expenditure ,Contract Hire and Op Leasing  ,CC64,Mini Cab Hire for Education,633,"1,080.00",10/31/2012,R,CHEAM STATION CARS            
2012-NOV,CS -Oth Operating Inc & Expend,Trading A/c Surpluses/Deficits,Transport-Contract Hire                 ,J01374,Transport Related Expenditure ,Contract Hire and Op Leasing  ,CC64,Mini Cab Hire for Education,634,570,10/31/2012,R,BARCLAYS ASSET & SALES FINANCE
2012-NOV,CS -Oth Operating Inc & Expend,Trading A/c Surpluses/Deficits,Transport-Contract Hire                 ,J01374,Transport Related Expenditure ,Contract Hire and Op Leasing  ,CC64,Mini Cab Hire for Education,635,920,11/1/2012,R,KENDALL CARS                  
2012-NOV,CS -Oth Operating Inc & Expend,Trading A/c Surpluses/Deficits,Transport-Contract Hire                 ,J01374,Transport Related Expenditure ,Contract Hire and Op Leasing  ,CC64,Mini Cab Hire for Education,636,"1,354.00",10/31/2012,R,BARCLAYS ASSET & SALES FINANCE
2012-NOV,CS -Oth Operating Inc & Expend,Trading A/c Surpluses/Deficits,Transport-Contract Hire                 ,J01374,Transport Related Expenditure ,Contract Hire and Op Leasing  ,CC64,Mini Cab Hire for Education,637,984,10/26/2012,R,SILVERBURN FINANCE (UK) LTD   
2012-NOV,CS -Oth Operating Inc & Expend,Trading A/c Surpluses/Deficits,Transport-Contract Hire                 ,J01374,Transport Related Expenditure ,Contract Hire and Op Leasing  ,CC64,Mini Cab Hire for Education,638,919.7,10/26/2012,R,OLYMPIA TRANSPORT LIMITED     
2012-NOV,CS -Oth Operating Inc & Expend,Trading A/c Surpluses/Deficits,Transport-Contract Hire                 ,J01374,Transport Related Expenditure ,Contract Hire and Op Leasing  ,CC64,Mini Cab Hire for Education,639,"11,743.44",11/18/2012,R,KINGSTON ACCESSIBILITY TRAN LT
2012-NOV,CS -Oth Operating Inc & Expend,Trading A/c Surpluses/Deficits,Transport-Contract Hire                 ,J01374,Transport Related Expenditure ,Contract Hire and Op Leasing  ,CC64,Mini Cab Hire for Education,640,"11,881.44",11/25/2012,R,KINGSTON ACCESSIBILITY TRAN LT
2012-NOV,CS -Oth Operating Inc & Expend,Trading A/c Surpluses/Deficits,Transport-Contract Hire                 ,J01374,Transport Related Expenditure ,Contract Hire and Op Leasing  ,CC64,Mini Cab Hire for Education,641,556,10/31/2012,R,MERTON COMMUNITY TRANSPORT    
2012-NOV,CS -Oth Operating Inc & Expend,Trading A/c Surpluses/Deficits,Transport-Contract Hire                 ,J01374,Transport Related Expenditure ,Contract Hire and Op Leasing  ,CC66,Mini Cab Hire -Soc Serv -Child,642,"1,762.90",10/28/2012,R,KINGSTON ACCESSIBILITY TRAN LT
2012-NOV,CS -Oth Operating Inc & Expend,Trading A/c Surpluses/Deficits,Transport-Contract Hire                 ,J01374,Transport Related Expenditure ,Contract Hire and Op Leasing  ,CC66,Mini Cab Hire -Soc Serv -Child,643,"2,082.89",11/11/2012,R,KINGSTON ACCESSIBILITY TRAN LT
2012-NOV,CS -Oth Operating Inc & Expend,Trading A/c Surpluses/Deficits,Transport-Contract Hire                 ,J01374,Transport Related Expenditure ,Contract Hire and Op Leasing  ,CC66,Mini Cab Hire -Soc Serv -Child,644,800,10/31/2012,R,GALPINS SERVICE               
2012-NOV,CS -Oth Operating Inc & Expend,Trading A/c Surpluses/Deficits,Transport-Contract Hire                 ,J01374,Transport Related Expenditure ,Contract Hire and Op Leasing  ,CC66,Mini Cab Hire -Soc Serv -Child,645,"1,927.90",11/18/2012,R,KINGSTON ACCESSIBILITY TRAN LT
2012-NOV,CS -Oth Operating Inc & Expend,Trading A/c Surpluses/Deficits,Transport-Contract Hire                 ,J01374,Transport Related Expenditure ,Contract Hire and Op Leasing  ,CC66,Mini Cab Hire -Soc Serv -Child,646,"2,032.90",11/25/2012,R,KINGSTON ACCESSIBILITY TRAN LT
2012-NOV,CS -Oth Operating Inc & Expend,Trading A/c Surpluses/Deficits,Transport-Contract Hire                 ,J01374,Transport Related Expenditure ,Contract Hire and Op Leasing  ,CC67,Mini Cab Hire -Soc Serv -Adult,647,"1,857.49",10/28/2012,R,KINGSTON ACCESSIBILITY TRAN LT
2012-NOV,CS -Oth Operating Inc & Expend,Trading A/c Surpluses/Deficits,Transport-Contract Hire                 ,J01374,Transport Related Expenditure ,Contract Hire and Op Leasing  ,CC67,Mini Cab Hire -Soc Serv -Adult,648,"1,358.00",10/31/2012,R,NVCAR HIRE LTD                
2012-NOV,CS -Oth Operating Inc & Expend,Trading A/c Surpluses/Deficits,Transport-Contract Hire                 ,J01374,Transport Related Expenditure ,Contract Hire and Op Leasing  ,CC67,Mini Cab Hire -Soc Serv -Adult,649,980,10/31/2012,R,CAPITAL CARS                  
2012-NOV,CS -Oth Operating Inc & Expend,Trading A/c Surpluses/Deficits,Transport-Contract Hire                 ,J01374,Transport Related Expenditure ,Contract Hire and Op Leasing  ,CC67,Mini Cab Hire -Soc Serv -Adult,650,672,10/31/2012,R,BARCLAYS ASSET & SALES FINANCE
2012-NOV,CS -Oth Operating Inc & Expend,Trading A/c Surpluses/Deficits,Transport-Contract Hire                 ,J01374,Transport Related Expenditure ,Contract Hire and Op Leasing  ,CC67,Mini Cab Hire -Soc Serv -Adult,651,"1,544.00",10/31/2012,R,CAPITAL CARS                  
2012-NOV,CS -Oth Operating Inc & Expend,Trading A/c Surpluses/Deficits,Transport-Contract Hire                 ,J01374,Transport Related Expenditure ,Contract Hire and Op Leasing  ,CC67,Mini Cab Hire -Soc Serv -Adult,652,"1,330.90",11/4/2012,R,KINGSTON ACCESSIBILITY TRAN LT
2012-NOV,CS -Oth Operating Inc & Expend,Trading A/c Surpluses/Deficits,Transport-Contract Hire                 ,J01374,Transport Related Expenditure ,Contract Hire and Op Leasing  ,CC67,Mini Cab Hire -Soc Serv -Adult,653,672,10/31/2012,R,BARCLAYS ASSET & SALES FINANCE
2012-NOV,CS -Oth Operating Inc & Expend,Trading A/c Surpluses/Deficits,Transport-Contract Hire                 ,J01374,Transport Related Expenditure ,Contract Hire and Op Leasing  ,CC67,Mini Cab Hire -Soc Serv -Adult,654,512,10/31/2012,R,BARCLAYS ASSET & SALES FINANCE
2012-NOV,CS -Oth Operating Inc & Expend,Trading A/c Surpluses/Deficits,Transport-Contract Hire                 ,J01374,Transport Related Expenditure ,Contract Hire and Op Leasing  ,CC67,Mini Cab Hire -Soc Serv -Adult,655,"1,280.00",10/31/2012,R,BARCLAYS ASSET & SALES FINANCE
2012-NOV,CS -Oth Operating Inc & Expend,Trading A/c Surpluses/Deficits,Transport-Contract Hire                 ,J01374,Transport Related Expenditure ,Contract Hire and Op Leasing  ,CC67,Mini Cab Hire -Soc Serv -Adult,656,"1,882.52",11/11/2012,R,KINGSTON ACCESSIBILITY TRAN LT
2012-NOV,CS -Oth Operating Inc & Expend,Trading A/c Surpluses/Deficits,Transport-Contract Hire                 ,J01374,Transport Related Expenditure ,Contract Hire and Op Leasing  ,CC67,Mini Cab Hire -Soc Serv -Adult,657,776,10/31/2012,R,A STAR TRANSPORT LIMITED      
2012-NOV,CS -Oth Operating Inc & Expend,Trading A/c Surpluses/Deficits,Transport-Contract Hire                 ,J01374,Transport Related Expenditure ,Contract Hire and Op Leasing  ,CC67,Mini Cab Hire -Soc Serv -Adult,658,920,10/31/2012,R,AERIAL CAR SERVICES LTD       
2012-NOV,CS -Oth Operating Inc & Expend,Trading A/c Surpluses/Deficits,Transport-Contract Hire                 ,J01374,Transport Related Expenditure ,Contract Hire and Op Leasing  ,CC67,Mini Cab Hire -Soc Serv -Adult,659,"1,036.00",10/31/2012,R,AERIAL CAR SERVICES LTD       
2012-NOV,CS -Oth Operating Inc & Expend,Trading A/c Surpluses/Deficits,Transport-Contract Hire                 ,J01374,Transport Related Expenditure ,Contract Hire and Op Leasing  ,CC67,Mini Cab Hire -Soc Serv -Adult,660,540.52,10/26/2012,R,SILVERBURN FINANCE (UK) LTD   
2012-NOV,CS -Oth Operating Inc & Expend,Trading A/c Surpluses/Deficits,Transport-Contract Hire                 ,J01374,Transport Related Expenditure ,Contract Hire and Op Leasing  ,CC67,Mini Cab Hire -Soc Serv -Adult,661,"1,882.52",11/18/2012,R,KINGSTON ACCESSIBILITY TRAN LT
2012-NOV,CS -Oth Operating Inc & Expend,Trading A/c Surpluses/Deficits,Transport-Contract Hire                 ,J01374,Transport Related Expenditure ,Contract Hire and Op Leasing  ,CC67,Mini Cab Hire -Soc Serv -Adult,662,"1,882.52",11/25/2012,R,KINGSTON ACCESSIBILITY TRAN LT
2012-NOV,CS -Oth Operating Inc & Expend,Trading A/c Surpluses/Deficits,Transport-Contract Hire                 ,J01374,Transport Related Expenditure ,Contract Hire and Op Leasing  ,CC68,Vehicle Hire Special Projects,663,"1,019.00",10/28/2012,R,KINGSTON ACCESSIBILITY TRAN LT
2012-NOV,CS -Oth Operating Inc & Expend,Trading A/c Surpluses/Deficits,Transport-Contract Hire                 ,J01374,Transport Related Expenditure ,Contract Hire and Op Leasing  ,CC68,Vehicle Hire Special Projects,664,"1,536.00",10/31/2012,R,BARCLAYS ASSET & SALES FINANCE
2012-NOV,CS -Oth Operating Inc & Expend,Trading A/c Surpluses/Deficits,Transport-Contract Hire                 ,J01374,Transport Related Expenditure ,Contract Hire and Op Leasing  ,CC68,Vehicle Hire Special Projects,665,945,10/31/2012,R,BARCLAYS ASSET & SALES FINANCE
2012-NOV,CS -Oth Operating Inc & Expend,Trading A/c Surpluses/Deficits,Transport-Contract Hire                 ,J01374,Transport Related Expenditure ,Contract Hire and Op Leasing  ,CC68,Vehicle Hire Special Projects,666,"3,318.00",10/31/2012,R,BARCLAYS ASSET & SALES FINANCE
2012-NOV,CS -Oth Operating Inc & Expend,Trading A/c Surpluses/Deficits,Transport-Contract Hire                 ,J01374,Transport Related Expenditure ,Contract Hire and Op Leasing  ,CC68,Vehicle Hire Special Projects,667,904,10/31/2012,R,BARCLAYS ASSET & SALES FINANCE
2012-NOV,CS -Oth Operating Inc & Expend,Trading A/c Surpluses/Deficits,Transport-Contract Hire                 ,J01374,Transport Related Expenditure ,Contract Hire and Op Leasing  ,CC68,Vehicle Hire Special Projects,668,"1,260.00",11/11/2012,R,KINGSTON ACCESSIBILITY TRAN LT
2012-NOV,CS -Oth Operating Inc & Expend,Trading A/c Surpluses/Deficits,Transport-Contract Hire                 ,J01374,Transport Related Expenditure ,Contract Hire and Op Leasing  ,CC68,Vehicle Hire Special Projects,669,650,10/31/2012,R,CAPITAL CARS                  
2012-NOV,CS -Oth Operating Inc & Expend,Trading A/c Surpluses/Deficits,Transport-Contract Hire                 ,J01374,Transport Related Expenditure ,Contract Hire and Op Leasing  ,CC68,Vehicle Hire Special Projects,670,660,10/31/2012,R,CAPITAL CARS                  
2012-NOV,CS -Oth Operating Inc & Expend,Trading A/c Surpluses/Deficits,Transport-Contract Hire                 ,J01374,Transport Related Expenditure ,Contract Hire and Op Leasing  ,CC68,Vehicle Hire Special Projects,671,960,10/31/2012,R,GALPINS SERVICE               
2012-NOV,CS -Oth Operating Inc & Expend,Trading A/c Surpluses/Deficits,Transport-Contract Hire                 ,J01374,Transport Related Expenditure ,Contract Hire and Op Leasing  ,CC68,Vehicle Hire Special Projects,672,"1,980.00",10/31/2012,R,SHERWOOD TRANSPORT GROUP      
2012-NOV,CS -Oth Operating Inc & Expend,Trading A/c Surpluses/Deficits,Transport-Contract Hire                 ,J01374,Transport Related Expenditure ,Contract Hire and Op Leasing  ,CC68,Vehicle Hire Special Projects,673,"1,360.00",10/26/2012,R,SILVERBURN FINANCE (UK) LTD   
2012-NOV,CS -Oth Operating Inc & Expend,Trading A/c Surpluses/Deficits,Transport-Contract Hire                 ,J01374,Transport Related Expenditure ,Contract Hire and Op Leasing  ,CC68,Vehicle Hire Special Projects,674,608,10/31/2012,R,GALPINS SERVICE               
2012-NOV,CS -Oth Operating Inc & Expend,Trading A/c Surpluses/Deficits,Transport-Contract Hire                 ,J01374,Transport Related Expenditure ,Contract Hire and Op Leasing  ,CC68,Vehicle Hire Special Projects,675,"1,260.00",11/18/2012,R,KINGSTON ACCESSIBILITY TRAN LT
2012-NOV,CS -Oth Operating Inc & Expend,Trading A/c Surpluses/Deficits,Transport-Contract Hire                 ,J01374,Transport Related Expenditure ,Contract Hire and Op Leasing  ,CC68,Vehicle Hire Special Projects,676,"1,260.00",11/25/2012,R,KINGSTON ACCESSIBILITY TRAN LT
2012-NOV,CS -Oth Operating Inc & Expend,Trading A/c Surpluses/Deficits,Transport-Contract Hire                 ,J01374,Supplies & Services           ,Grants and Subscriptions      ,DJ04,Subscriptions,677,861,9/18/2012,R,FREIGHT TRANSPORT ASSOCIATION 
2012-NOV,CS -Oth Operating Inc & Expend,Trading A/c Surpluses/Deficits,Transport-Workshop                      ,J01376,Premises Related Expenditure  ,RepairsAlterations&MtceOfBldgs,BA03,DDM - Mechanical,678,501.37,10/25/2012,R,COFELY LIMITED                
2012-NOV,CS -Oth Operating Inc & Expend,Trading A/c Surpluses/Deficits,Transport-Workshop                      ,J01376,Premises Related Expenditure  ,Energy Costs                  ,BB02,Electricity,679,"1,061.79",11/1/2012,R,EDF ENERGY                    
2012-NOV,CS -Oth Operating Inc & Expend,Trading A/c Surpluses/Deficits,Transport-Workshop                      ,J01376,Transport Related Expenditure ,Direct Transport Costs        ,CA01,Petrol Derv & Oil,680,"1,250.00",11/6/2012,R,REDACTED
2012-NOV,CS -Oth Operating Inc & Expend,Trading A/c Surpluses/Deficits,Transport-Workshop                      ,J01376,Transport Related Expenditure ,Direct Transport Costs        ,CA02,Tyres,681,925,10/26/2012,R,MORDEN TYRE SERVICES LTD      
2012-NOV,CS -Oth Operating Inc & Expend,Trading A/c Surpluses/Deficits,Transport-Workshop                      ,J01376,Transport Related Expenditure ,Direct Transport Costs        ,CA02,Tyres,682,820,11/5/2012,R,MORDEN TYRE SERVICES LTD      
2012-NOV,CS -Oth Operating Inc & Expend,Trading A/c Surpluses/Deficits,Transport-Workshop                      ,J01376,Transport Related Expenditure ,Direct Transport Costs        ,CA02,Tyres,683,740,11/2/2012,R,MORDEN TYRE SERVICES LTD      
2012-NOV,CS -Oth Operating Inc & Expend,Trading A/c Surpluses/Deficits,Transport-Workshop                      ,J01376,Transport Related Expenditure ,Direct Transport Costs        ,CA02,Tyres,684,"1,275.00",11/13/2012,R,MORDEN TYRE SERVICES LTD      
2012-NOV,CS -Oth Operating Inc & Expend,Trading A/c Surpluses/Deficits,Transport-Workshop                      ,J01376,Transport Related Expenditure ,Direct Transport Costs        ,CA02,Tyres,685,540,11/13/2012,R,MORDEN TYRE SERVICES LTD      
2012-NOV,CS -Oth Operating Inc & Expend,Trading A/c Surpluses/Deficits,Transport-Workshop                      ,J01376,Transport Related Expenditure ,Direct Transport Costs        ,CA02,Tyres,686,"1,075.00",11/9/2012,R,MORDEN TYRE SERVICES LTD      
2012-NOV,CS -Oth Operating Inc & Expend,Trading A/c Surpluses/Deficits,Transport-Workshop                      ,J01376,Transport Related Expenditure ,Direct Transport Costs        ,CA05,Vehicle MOTs,687,"3,000.00",11/29/2012,R,V.O.S.A                       
2012-NOV,CS -Oth Operating Inc & Expend,Trading A/c Surpluses/Deficits,Transport-Workshop                      ,J01376,Transport Related Expenditure ,Direct Transport Costs        ,CA55,Specialist Maint. (Off Site),688,"2,310.24",10/17/2012,R,GRAYS TRUCK CENTRE LIMITED    
2012-NOV,CS -Oth Operating Inc & Expend,Trading A/c Surpluses/Deficits,Transport-Workshop                      ,J01376,Transport Related Expenditure ,Direct Transport Costs        ,CA55,Specialist Maint. (Off Site),689,500,10/30/2012,R,FLEETSPEED COACHWORKS LTD.    
2012-NOV,CS -Oth Operating Inc & Expend,Trading A/c Surpluses/Deficits,Transport-Workshop                      ,J01376,Transport Related Expenditure ,Direct Transport Costs        ,CA55,Specialist Maint. (Off Site),690,852.25,10/30/2012,R,GRAYS TRUCK CENTRE LIMITED    
2012-NOV,CS -Oth Operating Inc & Expend,Trading A/c Surpluses/Deficits,Transport-Workshop                      ,J01376,Transport Related Expenditure ,Direct Transport Costs        ,CA55,Specialist Maint. (Off Site),691,921.06,10/15/2012,R,KINGSLEY COMM COMPONENTS LTD  
2012-NOV,CS -Oth Operating Inc & Expend,Trading A/c Surpluses/Deficits,Transport-Workshop                      ,J01376,Transport Related Expenditure ,Direct Transport Costs        ,CA55,Specialist Maint. (Off Site),692,921.06,10/15/2012,R,KINGSLEY COMM COMPONENTS LTD  
2012-NOV,CS -Oth Operating Inc & Expend,Trading A/c Surpluses/Deficits,Transport-Workshop                      ,J01376,Transport Related Expenditure ,Direct Transport Costs        ,CA55,Specialist Maint. (Off Site),693,569.5,6/19/2012,R,GRAYS TRUCK CENTRE LIMITED    
2012-NOV,CS -Oth Operating Inc & Expend,Trading A/c Surpluses/Deficits,Transport-Workshop                      ,J01376,Transport Related Expenditure ,Direct Transport Costs        ,CA55,Specialist Maint. (Off Site),694,"1,747.70",11/13/2012,R,VFS (SOUTHAMPTON) LTD         
2012-NOV,CS -Oth Operating Inc & Expend,Trading A/c Surpluses/Deficits,Transport-Workshop                      ,J01376,Transport Related Expenditure ,Direct Transport Costs        ,CA56,Specialist Maint. (On Site),695,627.85,11/16/2012,R,GEESINK NORBA                 
2012-NOV,CS -Oth Operating Inc & Expend,Trading A/c Surpluses/Deficits,Transport-Workshop                      ,J01376,Transport Related Expenditure ,Direct Transport Costs        ,CA72,Vehicle Parts,696,855.11,10/29/2012,R,COMMERCIAL & PLANT LTD        
2012-NOV,CS -Oth Operating Inc & Expend,Trading A/c Surpluses/Deficits,Transport-Workshop                      ,J01376,Transport Related Expenditure ,Direct Transport Costs        ,CA72,Vehicle Parts,697,715,10/24/2012,R,TENNANTS                      
2012-NOV,CS -Oth Operating Inc & Expend,Trading A/c Surpluses/Deficits,Transport-Workshop                      ,J01376,Transport Related Expenditure ,Direct Transport Costs        ,CA72,Vehicle Parts,698,"4,506.90",10/25/2012,R,OPTIMUM OILS LTD              
2012-NOV,CS -Oth Operating Inc & Expend,Trading A/c Surpluses/Deficits,Transport-Workshop                      ,J01376,Transport Related Expenditure ,Direct Transport Costs        ,CA72,Vehicle Parts,699,527.3,10/29/2012,R,BOC LTD.                      
2012-NOV,CS -Oth Operating Inc & Expend,Trading A/c Surpluses/Deficits,Transport-Workshop                      ,J01376,Transport Related Expenditure ,Direct Transport Costs        ,CA72,Vehicle Parts,700,942.54,10/25/2012,R,GEESINK NORBA                 
2012-NOV,CS -Oth Operating Inc & Expend,Trading A/c Surpluses/Deficits,Transport-Workshop                      ,J01376,Transport Related Expenditure ,Direct Transport Costs        ,CA72,Vehicle Parts,701,672.96,10/31/2012,R,GEESINK NORBA                 
2012-NOV,CS -Oth Operating Inc & Expend,Trading A/c Surpluses/Deficits,Transport-Workshop                      ,J01376,Transport Related Expenditure ,Direct Transport Costs        ,CA72,Vehicle Parts,702,612.62,10/23/2012,R,GRAYS TRUCK CENTRE LIMITED    
2012-NOV,CS -Oth Operating Inc & Expend,Trading A/c Surpluses/Deficits,Transport-Workshop                      ,J01376,Transport Related Expenditure ,Direct Transport Costs        ,CA72,Vehicle Parts,703,"6,510.82",11/7/2012,R,SCANIA(GREAT BRITAIN)LIMITED  
2012-NOV,CS -Oth Operating Inc & Expend,Trading A/c Surpluses/Deficits,Transport-Workshop                      ,J01376,Transport Related Expenditure ,Direct Transport Costs        ,CA72,Vehicle Parts,704,"1,740.82",11/13/2012,R,GEESINK NORBA                 
2012-NOV,CS -Oth Operating Inc & Expend,Trading A/c Surpluses/Deficits,Transport-Workshop                      ,J01376,Transport Related Expenditure ,Direct Transport Costs        ,CA72,Vehicle Parts,705,"1,120.00",11/7/2012,R,SCANIA(GREAT BRITAIN)LIMITED  
2012-NOV,CS -Oth Operating Inc & Expend,Trading A/c Surpluses/Deficits,Transport-Workshop                      ,J01376,Transport Related Expenditure ,Direct Transport Costs        ,CA72,Vehicle Parts,706,"1,779.77",11/15/2012,R,REDACTED
2012-NOV,CS -Oth Operating Inc & Expend,Trading A/c Surpluses/Deficits,Transport-Workshop                      ,J01376,Transport Related Expenditure ,Direct Transport Costs        ,CA72,Vehicle Parts,707,688.78,11/26/2012,R,FARID MUNICIPAL VEHICLES LTD  
2012-NOV,CS -Oth Operating Inc & Expend,Trading A/c Surpluses/Deficits,Transport-Workshop                      ,J01376,Transport Related Expenditure ,Contract Hire and Op Leasing  ,CC60,Vehicle Hire for LB Sutton,708,740,10/31/2012,R,CAPITAL CARS                  
2012-NOV,CS -Oth Operating Inc & Expend,Trading A/c Surpluses/Deficits,Transport-Workshop                      ,J01376,Transport Related Expenditure ,Contract Hire and Op Leasing  ,CC60,Vehicle Hire for LB Sutton,709,"1,720.00",10/31/2012,R,BARCLAYS ASSET & SALES FINANCE
2012-NOV,CS -Oth Operating Inc & Expend,Trading A/c Surpluses/Deficits,Transport-Workshop                      ,J01376,Transport Related Expenditure ,Contract Hire and Op Leasing  ,CC60,Vehicle Hire for LB Sutton,710,"1,957.00",10/31/2012,R,BRUNSWICK CARS LTD            
2012-NOV,CS -Oth Operating Inc & Expend,Trading A/c Surpluses/Deficits,Transport-Workshop                      ,J01376,Transport Related Expenditure ,Contract Hire and Op Leasing  ,CC60,Vehicle Hire for LB Sutton,711,"1,520.00",10/29/2012,R,CALVERTON FACTORS LTD         
2012-NOV,CS -Oth Operating Inc & Expend,Trading A/c Surpluses/Deficits,Transport-Workshop                      ,J01376,Transport Related Expenditure ,Contract Hire and Op Leasing  ,CC60,Vehicle Hire for LB Sutton,712,"1,800.00",10/29/2012,R,CALVERTON FACTORS LTD         
2012-NOV,CS -Oth Operating Inc & Expend,Trading A/c Surpluses/Deficits,Transport-Workshop                      ,J01376,Transport Related Expenditure ,Contract Hire and Op Leasing  ,CC60,Vehicle Hire for LB Sutton,713,"1,080.00",10/31/2012,R,BARCLAYS ASSET & SALES FINANCE
2012-NOV,CS -Oth Operating Inc & Expend,Trading A/c Surpluses/Deficits,Transport-Workshop                      ,J01376,Transport Related Expenditure ,Contract Hire and Op Leasing  ,CC60,Vehicle Hire for LB Sutton,714,"4,234.00",10/31/2012,R,BARCLAYS ASSET & SALES FINANCE
2012-NOV,CS -Oth Operating Inc & Expend,Trading A/c Surpluses/Deficits,Transport-Workshop                      ,J01376,Transport Related Expenditure ,Contract Hire and Op Leasing  ,CC60,Vehicle Hire for LB Sutton,715,"2,660.00",10/31/2012,R,BRUNSWICK CARS LTD            
2012-NOV,CS -Oth Operating Inc & Expend,Trading A/c Surpluses/Deficits,Transport-Workshop                      ,J01376,Transport Related Expenditure ,Contract Hire and Op Leasing  ,CC60,Vehicle Hire for LB Sutton,716,"2,380.00",10/31/2012,R,BRUNSWICK CARS LTD            
2012-NOV,CS -Oth Operating Inc & Expend,Trading A/c Surpluses/Deficits,Transport-Workshop                      ,J01376,Transport Related Expenditure ,Contract Hire and Op Leasing  ,CC60,Vehicle Hire for LB Sutton,717,960,10/29/2012,R,CALVERTON FACTORS LTD         
2012-NOV,CS -Oth Operating Inc & Expend,Trading A/c Surpluses/Deficits,Transport-Workshop                      ,J01376,Transport Related Expenditure ,Contract Hire and Op Leasing  ,CC60,Vehicle Hire for LB Sutton,718,"2,055.00",10/29/2012,R,CALVERTON FACTORS LTD         
2012-NOV,CS -Oth Operating Inc & Expend,Trading A/c Surpluses/Deficits,Transport-Workshop                      ,J01376,Supplies & Services           ,Equip Furniture/Materials     ,DA01,Equipment - R & M,719,710.8,10/27/2012,R,SUNLIGHT SERVICE GROUP LTD    
2012-NOV,CS -Oth Operating Inc & Expend,Trading A/c Surpluses/Deficits,Transport-Workshop                      ,J01376,Supplies & Services           ,Comms and Computing           ,DG07,Computer Software,720,"6,483.04",10/10/2012,R,KAPPA LAMBDA SQUARED LTD      
2012-NOV,CS -Oth Operating Inc & Expend,INVESTMENT PROPERTIES,Housing Shops                           ,J01533,Premises Related Expenditure  ,RepairsAlterations&MtceOfBldgs,BA01,DDM - General Building,721,655,10/10/2012,R,COFELY LIMITED                
2012-NOV,Central Services,Unused Share - Other Assets,Montgomery Close                        ,J02044,Premises Related Expenditure  ,RepairsAlterations&MtceOfBldgs,BA03,DDM - Mechanical,722,617.24,10/25/2012,R,COFELY LIMITED                
2012-NOV,CS -Oth Operating Inc & Expend,INVESTMENT PROPERTIES,Pollards Hill Comm Cntre                ,J08074,Premises Related Expenditure  ,RepairsAlterations&MtceOfBldgs,BA03,DDM - Mechanical,723,692.01,10/25/2012,R,COFELY LIMITED                
2012-NOV,Childrens & Education Services,Schools Strategic Management,Senior Mngt & Support Services          ,K01005,Employees                     ,Indirect Employee Expenses    ,AB57,External Training Costs,724,874,10/31/2012,R,PENNA PLC                     
2012-NOV,Childrens & Education Services,Schools Strategic Management,Pension and Redundancy Costs            ,K01010,Employees                     ,Indirect Employee Expenses    ,AB19,Severance-Creditors,725,"109,198.13",11/27/2012,R,BISHOPSFORD COMMUNITY SCHOOL  
2012-NOV,Childrens & Education Services,Schools Strategic Management,Schools IT Support                      ,K02008,Supplies & Services           ,Comms and Computing           ,DG50,Other IT Expenditure,726,"4,575.22",10/23/2012,R,STUFF-UK.NET                  
2012-NOV,Childrens & Education Services,Schools Strategic Management,Research and Statistics                 ,K03016,Supplies & Services           ,Comms and Computing           ,DG02,Software Licences,727,555,9/9/2011,R,IBM UNITED KINGDOM LIMITED    
2012-NOV,Childrens & Education Services,Assuring Access To Schools,PFI Unitary Charges                     ,K03023,Third Party Payments          ,Private Contractors           ,EH02,Miscellaneous Hired Services,728,"1,530.67",10/11/2012,R,NEWSCHOOLS (MERTON) LIMITED   
2012-NOV,Childrens & Education Services,Assuring Access To Schools,PFI Unitary Charges                     ,K03023,Third Party Payments          ,Private Contractors           ,EH10,Contract Payments,729,"2,255.00",9/27/2012,R,SODEXO                        
2012-NOV,Childrens & Education Services,GENERATED ACCOUNT,SEN Transitions Team                    ,K04016,Employees                     ,Direct Employee Expenses      ,AA17,Agency Staff & Casual Paymts,730,"3,200.00",11/10/2012,R,PERMANENT FUTURES             
2012-NOV,Childrens & Education Services,Supporting SEN,Education Psychology.                   ,K04018,Employees                     ,Direct Employee Expenses      ,AA17,Agency Staff & Casual Paymts,731,"3,000.00",10/21/2012,R,REDACTED
2012-NOV,Childrens & Education Services,Supporting SEN,Education Psychology.                   ,K04018,Employees                     ,Direct Employee Expenses      ,AA17,Agency Staff & Casual Paymts,732,"1,875.00",11/6/2012,R,FACE YOUTH                    
2012-NOV,Childrens & Education Services,Supporting SEN,Education Psychology.                   ,K04018,Employees                     ,Direct Employee Expenses      ,AA17,Agency Staff & Casual Paymts,733,750,11/9/2012,R,REDACTED
2012-NOV,Childrens & Education Services,Supporting SEN,Statementing-Transport                  ,K04023,Transport Related Expenditure ,Public Transport              ,CD50,Home Sch/Coll Trans(Trav Exps),734,"3,192.00",10/5/2012,R,SURREY COUNTY COUNCIL         
2012-NOV,Childrens & Education Services,Supporting SEN,Statement Support Team                  ,K04034,Employees                     ,Direct Employee Expenses      ,AA17,Agency Staff & Casual Paymts,735,"4,000.00",10/13/2012,R,PERMANENT FUTURES             
2012-NOV,Childrens & Education Services,Supporting SEN,Statement Support Team                  ,K04034,Employees                     ,Direct Employee Expenses      ,AA17,Agency Staff & Casual Paymts,736,"4,000.00",10/27/2012,R,PERMANENT FUTURES             
2012-NOV,Childrens & Education Services,Supporting SEN,Expanded Pupil Referral Unit            ,K05099,Third Party Payments          ,Private Contractors           ,EH01,Miscellaneous Contrct Services,737,"4,865.14",10/25/2012,R,SW LONDON ST GEORGES NHS TRUST
2012-NOV,Childrens & Education Services,Pre-School Ed (inc Nursery),GSSG Workforce Development              ,K05111,Supplies & Services           ,Services                      ,DF03,Consultants,738,"3,000.00",11/1/2012,R,REDACTED
2012-NOV,Childrens & Education Services,Pre-School Ed (inc Nursery),Nursery Grant payment-2 yr old          ,K05408,Supplies & Services           ,Grants and Subscriptions      ,DJ01,Grants,739,626.34,11/2/2012,R,DICKY BIRDS PRE SCHOOL NURSERY
2012-NOV,Childrens & Education Services,Pre-School Ed (inc Nursery),Nursery Grant payment-2 yr old          ,K05408,Supplies & Services           ,Grants and Subscriptions      ,DJ01,Grants,740,"1,314.00",11/2/2012,R,DICKY BIRDS PRE SCHOOL NURSERY
2012-NOV,Childrens & Education Services,Pre-School Ed (inc Nursery),Nursery Grant payment-2 yr old          ,K05408,Supplies & Services           ,Grants and Subscriptions      ,DJ01,Grants,741,"1,314.00",11/6/2012,R,THE GRANGE DAY NURSERY        
2012-NOV,Childrens & Education Services,Pre-School Ed (inc Nursery),Nursery Grant payment-2 yr old          ,K05408,Supplies & Services           ,Grants and Subscriptions      ,DJ01,Grants,742,"1,314.00",11/6/2012,R,THE GRANGE DAY NURSERY        
2012-NOV,Childrens & Education Services,Pre-School Ed (inc Nursery),Nursery Grant payment-2 yr old          ,K05408,Supplies & Services           ,Grants and Subscriptions      ,DJ01,Grants,743,"1,314.00",11/6/2012,R,THE GRANGE DAY NURSERY        
2012-NOV,Childrens & Education Services,Pre-School Ed (inc Nursery),Nursery Grant payment-2 yr old          ,K05408,Supplies & Services           ,Grants and Subscriptions      ,DJ01,Grants,744,"1,170.00",11/6/2012,R,THE GRANGE DAY NURSERY        
2012-NOV,Childrens & Education Services,Pre-School Ed (inc Nursery),Nursery Grant payment-2 yr old          ,K05408,Supplies & Services           ,Grants and Subscriptions      ,DJ01,Grants,745,"1,350.00",11/6/2012,R,HASLEMERE HOUSE DAY NURSERY   
2012-NOV,Childrens & Education Services,Pre-School Ed (inc Nursery),Nursery Grant payment-2 yr old          ,K05408,Supplies & Services           ,Grants and Subscriptions      ,DJ01,Grants,746,"1,314.00",11/7/2012,R,COLLIERS WOOD VILLAGE DAY NUR.
2012-NOV,Childrens & Education Services,Pre-School Ed (inc Nursery),Nursery Grant payment-2 yr old          ,K05408,Supplies & Services           ,Grants and Subscriptions      ,DJ01,Grants,747,"1,080.00",11/7/2012,R,WILLOW PRE SCHOOL             
2012-NOV,Childrens & Education Services,Pre-School Ed (inc Nursery),Nursery Grant payment-2 yr old          ,K05408,Supplies & Services           ,Grants and Subscriptions      ,DJ01,Grants,748,720,11/7/2012,R,REDACTED
2012-NOV,Childrens & Education Services,Pre-School Ed (inc Nursery),Nursery Grant payment-2 yr old          ,K05408,Supplies & Services           ,Grants and Subscriptions      ,DJ01,Grants,749,"1,300.00",11/22/2012,R,LITTLE GATES                  
2012-NOV,Childrens & Education Services,Pre-School Ed (inc Nursery),Nursery Grant payment-2 yr old          ,K05408,Supplies & Services           ,Grants and Subscriptions      ,DJ01,Grants,750,810,11/29/2012,R,WILLOWS PRE-SCHOOL            
2012-NOV,Childrens & Education Services,Pre-School Ed (inc Nursery),Nursery Grant payment-2 yr old          ,K05408,Supplies & Services           ,Grants and Subscriptions      ,DJ01,Grants,751,540,11/29/2012,R,ROSEHILL NURSERY              
2012-NOV,Childrens & Education Services,Pre-School Ed (inc Nursery),Nursery Grant payment-2 yr old          ,K05408,Supplies & Services           ,Grants and Subscriptions      ,DJ01,Grants,752,810,11/29/2012,R,LA PETITE FLEUR PRE-SCHOOL    
2012-NOV,Childrens & Education Services,Pre-School Ed (inc Nursery),EY Family Support Team                  ,K05411,Third Party Payments          ,Private Contractors           ,EH02,Miscellaneous Hired Services,753,"10,000.00",10/25/2012,R,MERTON PRE-SCH LEARN ALLIANCE 
2012-NOV,Childrens & Education Services,Pre-School Ed (inc Nursery),Mitcham MAT (Premises)                  ,K05412,Premises Related Expenditure  ,Energy Costs                  ,BB02,Electricity,754,"2,790.85",11/2/2012,R,EDF ENERGY 1 LIMITED          
2012-NOV,Childrens & Education Services,Pre-School Ed (inc Nursery),Mitcham MAT (Premises)                  ,K05412,Premises Related Expenditure  ,Cleaning and Domestic Supplies,BH03,Cleaning Services,755,"1,139.32",10/18/2012,R,RE MCS CLEANING SERVICES LTD  
2012-NOV,Childrens & Education Services,Pre-School Ed (inc Nursery),Lavender CC Non Childcare               ,K05415,Premises Related Expenditure  ,Energy Costs                  ,BB03,Gas (incl. Butane),756,897.01,11/12/2012,R,KENT COUNTY COUNCIL           
2012-NOV,Childrens & Education Services,Pre-School Ed (inc Nursery),Lavender CC Non Childcare               ,K05415,Premises Related Expenditure  ,Cleaning and Domestic Supplies,BH03,Cleaning Services,757,574.52,11/5/2012,R,RE MCS CLEANING SERVICES LTD  
2012-NOV,Childrens & Education Services,Pre-School Ed (inc Nursery),E.Years-Intergenerational Cntr          ,K05416,Premises Related Expenditure  ,RepairsAlterations&MtceOfBldgs,BA05,DDM - Electrical,758,521,10/15/2012,R,FIRST CHOICE FACILITIES PLC   
2012-NOV,Childrens & Education Services,Pre-School Ed (inc Nursery),E.Years-Intergenerational Cntr          ,K05416,Premises Related Expenditure  ,Energy Costs                  ,BB02,Electricity,759,780.69,10/5/2012,R,KENT COUNTY COUNCIL           
2012-NOV,Childrens & Education Services,Pre-School Ed (inc Nursery),Acacia Pre School                       ,K05420,Supplies & Services           ,Equip Furniture/Materials     ,DA04,Materials,760,"1,479.04",8/16/2012,R,GALT EDUCATIONAL              
2012-NOV,Childrens & Education Services,Adult Education,AE-Familiy Learning                     ,K06041,Supplies & Services           ,Services                      ,DF30,Activities Programme,761,"1,447.41",11/8/2012,R,MERTON PRE-SCH LEARN ALLIANCE 
2012-NOV,Childrens & Education Services,Adult Education,AE-Adult Education Main                 ,K06049,Premises Related Expenditure  ,Energy Costs                  ,BB02,Electricity,762,"4,543.15",11/1/2012,R,EDF ENERGY 1 LIMITED          
2012-NOV,Childrens & Education Services,Adult Education,AE-Adult Education Main                 ,K06049,Premises Related Expenditure  ,Water Services                ,BE01,Use of Water (Metered),763,"1,572.59",10/16/2012,R,THAMES WATER UTILITIES LTD.   
2012-NOV,Childrens & Education Services,Adult Education,AE-Adult Education Main                 ,K06049,Premises Related Expenditure  ,Fixtures and Fittings         ,BF01,Fixtures and Fittings,764,671,11/7/2012,R,TIME SIGNS LTD                
2012-NOV,Childrens & Education Services,Adult Education,AE-Adult Education Main                 ,K06049,Supplies & Services           ,Equip Furniture/Materials     ,DA01,Equipment - R & M,765,793.8,10/25/2012,R,MILLERS CATERING EQUIPMENT    
2012-NOV,Childrens & Education Services,Adult Education,AE-Adult Education Main                 ,K06049,Supplies & Services           ,Equip Furniture/Materials     ,DA04,Materials,766,505,11/16/2012,R,REDACTED
2012-NOV,Childrens & Education Services,Adult Education,AE-Adult Education Main                 ,K06049,Supplies & Services           ,Equip Furniture/Materials     ,DA81,Materials,767,650,10/23/2012,R,SALONWEAR DIRECT              
2012-NOV,Childrens & Education Services,Adult Education,AE-Learner Support Fund-Access          ,K06050,Supplies & Services           ,Services                      ,DF09,Miscellaneous Fees,768,660,11/1/2012,R,REDACTED
2012-NOV,Childrens & Education Services,Adult Education,AE-Learner Support Fund-Access          ,K06050,Supplies & Services           ,Services                      ,DF09,Miscellaneous Fees,769,630,11/1/2012,R,REDACTED
2012-NOV,Childrens & Education Services,Adult Education,AE-Learner Support Fund-Access          ,K06050,Customer and client receipts  ,Fees                          ,RB41,Tuition and Training Fee E,770,829,11/21/2012,R,MINI TREASURES DAY NURSERY    
2012-NOV,Childrens & Education Services,Adult Education,AE-Learner Support Fund-Access          ,K06050,Customer and client receipts  ,Fees                          ,RB41,Tuition and Training Fee E,771,750,11/29/2012,R,ROSEBUDS DAYCARE              
2012-NOV,Childrens & Education Services,Youth Service,Youth Service                           ,K06053,Supplies & Services           ,Services                      ,DF07,Bought in Teaching Services,772,"2,655.15",11/19/2012,R,GREENWICH LEISURE LTD         
2012-NOV,Childrens & Education Services,Youth Service,Youth Service                           ,K06053,Supplies & Services           ,Expenses                      ,DH12,Young Peoples Expenses,773,"2,100.00",10/24/2012,R,THE AWARD SCHEME LTD          
2012-NOV,Childrens & Education Services,Youth Service,Youth Service                           ,K06053,Supplies & Services           ,Expenses                      ,DH12,Young Peoples Expenses,774,553.6,9/2/2012,R,GIRLGUIDING UK                
2012-NOV,Childrens & Education Services,Youth Service,Youth Service                           ,K06053,Supplies & Services           ,Expenses                      ,DH12,Young Peoples Expenses,775,"3,560.00",11/21/2012,R,PGL TRAVEL LTD                
2012-NOV,Childrens & Education Services,Youth Service,Phipps Bridge Yth Ctre                  ,K06059,Premises Related Expenditure  ,Energy Costs                  ,BB02,Electricity,776,513.71,11/6/2012,R,EDF ENERGY                    
2012-NOV,Childrens & Education Services,Youth Service,Youth Office Premises Cost              ,K06073,Premises Related Expenditure  ,RepairsAlterations&MtceOfBldgs,BA06,Repairs & Maintenance General,777,"1,770.00",11/17/2012,R,LITTLE OAK TREE CARE          
2012-NOV,Childrens & Education Services,Adult Education,AE-Family Literacy                      ,K06082,Supplies & Services           ,Services                      ,DF02,Misc Advertising/Publicity,778,"1,104.00",9/29/2012,R,NEWSQUEST (LONDON)LTD         
2012-NOV,Childrens & Education Services,Assuring Access To Schools,Careers Educ IAG Contracts              ,K06097,Third Party Payments          ,Private Contractors           ,EH01,Miscellaneous Contrct Services,779,"8,280.00",11/12/2012,R,CASCAID LTD                   
2012-NOV,Childrens & Education Services,Assuring Access To Schools,Careers Educ IAG Contracts              ,K06097,Third Party Payments          ,Private Contractors           ,EH01,Miscellaneous Contrct Services,780,"6,540.00",11/12/2012,R,CASCAID LTD                   
2012-NOV,Childrens & Education Services,Adult Education,AE-Mind & Body                          ,K06104,Supplies & Services           ,Equip Furniture/Materials     ,DA04,Materials,781,971.69,10/11/2012,R,ELLISONS                      
2012-NOV,Childrens & Education Services,Assuring Access To Schools,Children & Yth Participation            ,K06115,Third Party Payments          ,Private Contractors           ,EH01,Miscellaneous Contrct Services,782,"2,000.00",11/13/2012,R,YOUNG ADVISORS                
2012-NOV,Childrens & Education Services,Assuring Access To Schools,Premises and Contracts                  ,K08069,Supplies & Services           ,Services                      ,DF03,Consultants,783,"18,000.00",10/31/2012,R,CAPITA SYMONDS LTD            
2012-NOV,Childrens & Education Services,Assuring Access To Schools,Premises and Contracts                  ,K08069,Supplies & Services           ,Services                      ,DF03,Consultants,784,"4,312.50",11/3/2012,R,PERMANENT FUTURES             
2012-NOV,Childrens & Education Services,Assuring Access To Schools,Revenuisation & S106 Proj               ,K08077,Premises Related Expenditure  ,RepairsAlterations&MtceOfBldgs,BA79,Security of Premises,785,"9,426.10",11/1/2012,R,SIGHT & SOUND                 
2012-NOV,Childrens & Education Services,Assuring Access To Schools,Revenuisation & S106 Proj               ,K08077,Premises Related Expenditure  ,Ground Maintenance Costs      ,BL03,Maintenance of Grounds,786,650,11/20/2012,R,MOY CONSTRUCTION CO LTD       
2012-NOV,Childrens & Education Services,Assuring Access To Schools,Centre Commissioned Servs               ,K08078,Supplies & Services           ,Grants and Subscriptions      ,DJ01,Grants,787,"2,825.00",9/26/2012,R,SOUTH THAMES CROSSROADS       
2012-NOV,Childrens & Education Services,Assuring Access To Schools,Centre Commissioned Servs               ,K08078,Supplies & Services           ,Grants and Subscriptions      ,DJ01,Grants,788,"2,825.00",9/26/2012,R,SOUTH THAMES CROSSROADS       
2012-NOV,Childrens & Education Services,Assuring Access To Schools,Centre Commissioned Servs               ,K08078,Supplies & Services           ,Grants and Subscriptions      ,DJ01,Grants,789,"3,368.00",11/16/2012,R,RCCG THORP                    
2012-NOV,Childrens & Education Services,Assuring Access To Schools,Centre Commissioned Servs               ,K08078,Supplies & Services           ,Grants and Subscriptions      ,DJ01,Grants,790,"7,675.00",11/21/2012,R,VOLUNTEER CENTRE MERTON       
2012-NOV,Childrens & Education Services,Facilitating Sch Improvement,SSQ                                     ,K09077,Supplies & Services           ,Services                      ,DF03,Consultants,791,"3,850.00",11/7/2012,R,MOTT MACDONALD LIMITED        
2012-NOV,Childrens & Education Services,Facilitating Sch Improvement,SSQ                                     ,K09077,Supplies & Services           ,Services                      ,DF03,Consultants,792,"5,000.00",11/12/2012,R,WIDEHORIZONS OUTDOOR EDUC TRUS
2012-NOV,Childrens & Education Services,Facilitating Sch Improvement,SSQ                                     ,K09077,Supplies & Services           ,Services                      ,DF03,Consultants,793,"1,500.00",11/1/2012,R,REDACTED
2012-NOV,Childrens & Education Services,Schools Strategic Management,Profess Develop Cntre                   ,K09084,Premises Related Expenditure  ,Energy Costs                  ,BB02,Electricity,794,"2,392.79",11/1/2012,R,EDF ENERGY                    
2012-NOV,Childrens & Education Services,Schools Strategic Management,Profess Develop Cntre                   ,K09084,Premises Related Expenditure  ,Cleaning and Domestic Supplies,BH03,Cleaning Services,795,"2,854.20",10/25/2012,R,JULIUS RUTHERFOORD & CO LTD   
2012-NOV,Childrens & Education Services,Assuring Access To Schools,School Meals                            ,K90002,Premises Related Expenditure  ,RepairsAlterations&MtceOfBldgs,BA01,DDM - General Building,796,602,10/16/2012,R,CATERCRAFT SUPPLIES LTD       
2012-NOV,Childrens & Education Services,Supporting SEN,Head of Social Inclusion                ,K90005,Supplies & Services           ,Expenses                      ,DH02,Conferences,797,"1,044.20",9/9/2012,R,A&E LEGAL TRAINING            
2012-NOV,Childrens & Education Services,Supporting SEN,Hospital Tuition                        ,K90008,Third Party Payments          ,Other Local Authorities       ,EB54,Hospital Tuition,798,"8,903.82",10/18/2012,R,LONDON BOROUGH OF SUTTON      
2012-NOV,Childrens & Education Services,Supporting SEN,Alt Educn(Incl Yr 11 Project)           ,K90009,Supplies & Services           ,Services                      ,DF07,Bought in Teaching Services,799,"1,037.30",11/6/2012,R,IMMANUEL HOUSE-COMM TRAINING  
2012-NOV,Childrens & Education Services,Supporting SEN,Alt Educn(Incl Yr 11 Project)           ,K90009,Supplies & Services           ,Services                      ,DF07,Bought in Teaching Services,800,"4,100.00",10/31/2012,R,SOUTH THAMES COLLEGE          
2012-NOV,Childrens & Education Services,Supporting SEN,Alt Educn(Incl Yr 11 Project)           ,K90009,Supplies & Services           ,Services                      ,DF07,Bought in Teaching Services,801,"1,120.00",10/29/2012,R,JUSTLEARN LTD                 
2012-NOV,Childrens & Education Services,Supporting SEN,Alt Educn(Incl Yr 11 Project)           ,K90009,Supplies & Services           ,Services                      ,DF07,Bought in Teaching Services,802,"1,787.50",4/12/2012,R,R W RECHERE & ASSOCIATES LTD  
2012-NOV,Childrens & Education Services,Supporting SEN,Alt Educn(Incl Yr 11 Project)           ,K90009,Supplies & Services           ,Services                      ,DF07,Bought in Teaching Services,803,"1,120.00",10/29/2012,R,JUSTLEARN LTD                 
2012-NOV,Childrens & Education Services,Supporting SEN,Alt Educn(Incl Yr 11 Project)           ,K90009,Supplies & Services           ,Services                      ,DF07,Bought in Teaching Services,804,"1,120.00",10/29/2012,R,JUSTLEARN LTD                 
2012-NOV,Childrens & Education Services,Supporting SEN,Alt Educn(Incl Yr 11 Project)           ,K90009,Supplies & Services           ,Services                      ,DF07,Bought in Teaching Services,805,"1,120.00",10/29/2012,R,JUSTLEARN LTD                 
2012-NOV,Childrens & Education Services,Supporting SEN,Alt Educn(Incl Yr 11 Project)           ,K90009,Supplies & Services           ,Services                      ,DF07,Bought in Teaching Services,806,"2,052.00",11/6/2012,R,IMMANUEL HOUSE-COMM TRAINING  
2012-NOV,Childrens & Education Services,Supporting SEN,Alt Educn(Incl Yr 11 Project)           ,K90009,Supplies & Services           ,Services                      ,DF07,Bought in Teaching Services,807,"2,405.00",10/26/2012,R,SUTTON & DISTRICT TRAINING LTD
2012-NOV,Childrens & Education Services,Supporting SEN,Alt Educn(Incl Yr 11 Project)           ,K90009,Supplies & Services           ,Services                      ,DF07,Bought in Teaching Services,808,"9,552.00",10/26/2012,R,IMMANUEL HOUSE-COMM TRAINING  
2012-NOV,Childrens & Education Services,Supporting SEN,Alt Educn(Incl Yr 11 Project)           ,K90009,Supplies & Services           ,Services                      ,DF07,Bought in Teaching Services,809,"1,485.00",10/22/2012,R,JACE TRAINING                 
2012-NOV,Childrens & Education Services,Supporting SEN,Alt Educn(Incl Yr 11 Project)           ,K90009,Supplies & Services           ,Services                      ,DF07,Bought in Teaching Services,810,780,11/12/2012,R,JUSTLEARN LTD                 
2012-NOV,Childrens & Education Services,Supporting SEN,Alt Educn(Incl Yr 11 Project)           ,K90009,Supplies & Services           ,Services                      ,DF07,Bought in Teaching Services,811,975,11/12/2012,R,JUSTLEARN LTD                 
2012-NOV,Childrens & Education Services,Supporting SEN,Alt Educn(Incl Yr 11 Project)           ,K90009,Supplies & Services           ,Services                      ,DF07,Bought in Teaching Services,812,975,11/12/2012,R,JUSTLEARN LTD                 
2012-NOV,Childrens & Education Services,Supporting SEN,Smart Centre (Pupil Refer Unit          ,K90019,Employees                     ,Direct Employee Expenses      ,AA17,Agency Staff & Casual Paymts,813,550,10/21/2012,R,TRADEWIND RECRUITMENT         
2012-NOV,Childrens & Education Services,Supporting SEN,Smart Centre (Pupil Refer Unit          ,K90019,Employees                     ,Direct Employee Expenses      ,AA17,Agency Staff & Casual Paymts,814,550,10/14/2012,R,TRADEWIND RECRUITMENT         
2012-NOV,Childrens & Education Services,Supporting SEN,Smart Centre (Pupil Refer Unit          ,K90019,Employees                     ,Direct Employee Expenses      ,AA74,Public Duties (AP),815,"1,225.00",10/3/2012,R,EDUCATION PLUS                
2012-NOV,Childrens & Education Services,Supporting SEN,Smart Centre (Pupil Refer Unit          ,K90019,Premises Related Expenditure  ,Cleaning and Domestic Supplies,BH03,Cleaning Services,816,"1,500.20",9/25/2012,R,JULIUS RUTHERFOORD & CO LTD   
2012-NOV,Childrens & Education Services,Supporting SEN,Smart Centre (Pupil Refer Unit          ,K90019,Supplies & Services           ,Services                      ,DF07,Bought in Teaching Services,817,"2,310.00",9/17/2012,R,REDACTED
2012-NOV,Childrens & Education Services,Supporting SEN,Smart Centre (Pupil Refer Unit          ,K90019,Third Party Payments          ,Other Local Authorities       ,EB55,Placements,818,"1,200.00",10/26/2012,R,IMMANUEL HOUSE-COMM TRAINING  
2012-NOV,Childrens & Education Services,Supporting SEN,Portage                                 ,K90023,Supplies & Services           ,Equip Furniture/Materials     ,DA09,Equip-Purchases,819,"1,290.10",10/11/2012,R,COMET GROUP PLC               
2012-NOV,Childrens & Education Services,Supporting SEN,Non-Delegated Statements                ,K90024,Employees                     ,Direct Employee Expenses      ,AA17,Agency Staff & Casual Paymts,820,945,10/24/2012,R,SENSATIONAL KIDS              
2012-NOV,Childrens & Education Services,Supporting SEN,Non-Delegated Statements                ,K90024,Employees                     ,Direct Employee Expenses      ,AA17,Agency Staff & Casual Paymts,821,"1,260.00",10/28/2012,R,INTEGRATIA THERAPY SERVICES   
2012-NOV,Childrens & Education Services,Supporting SEN,Non-Delegated Statements                ,K90024,Employees                     ,Direct Employee Expenses      ,AA17,Agency Staff & Casual Paymts,822,"2,000.00",11/5/2012,R,REDACTED
2012-NOV,Childrens & Education Services,Supporting SEN,Non-Delegated Statements                ,K90024,Employees                     ,Direct Employee Expenses      ,AA17,Agency Staff & Casual Paymts,823,745,10/26/2012,R,CRICKET GREEN SCHOOL          
2012-NOV,Childrens & Education Services,Supporting SEN,Non-Delegated Statements                ,K90024,Employees                     ,Direct Employee Expenses      ,AA17,Agency Staff & Casual Paymts,824,700,11/19/2012,R,CHILDTALK SOLUTION LTD        
2012-NOV,Childrens & Education Services,Supporting SEN,Non-Delegated Statements                ,K90024,Employees                     ,Direct Employee Expenses      ,AA17,Agency Staff & Casual Paymts,825,562.5,11/20/2012,R,REDACTED
2012-NOV,Childrens & Education Services,Supporting SEN,Non-Delegated Statements                ,K90024,Transport Related Expenditure ,Public Transport              ,CD50,Home Sch/Coll Trans(Trav Exps),826,503.1,10/26/2012,R,REDACTED
2012-NOV,Childrens & Education Services,Supporting SEN,Non-Delegated Statements                ,K90024,Transport Related Expenditure ,Public Transport              ,CD50,Home Sch/Coll Trans(Trav Exps),827,729,10/25/2012,R,ST MARY'S WRESTWOOD CHILDRENS 
2012-NOV,Childrens & Education Services,Supporting SEN,Non-Delegated Statements                ,K90024,Supplies & Services           ,Equip Furniture/Materials     ,DA09,Equip-Purchases,828,597,10/12/2012,R,GREENMEAD SCHOOL              
2012-NOV,Childrens & Education Services,Supporting SEN,Non-Delegated Statements                ,K90024,Supplies & Services           ,Services                      ,DF09,Miscellaneous Fees,829,"1,469.00",10/15/2012,R,PERSEID SCHOOL                
